{"text_format":"1","workbook":"xlsx","n_sheets":10,"sheets":["Base Maestra","Instructivo","Resumen de Calidad","XX.Institución-2024","Notas 2025","1.Catálogo Espacio Temporal","2.Catálgo CAI","3.Catálogo COG","4.Equivalencias COG=CFA","5.Equivalencias CAI=CFA"],"not_rendered":{"charts":0,"images":1,"macros":1,"external_links":0,"defined_names":38,"comments":2,"pivot_tables":0},"unopened":[],"bounds":{"document_bytes":16777216,"sheet_cells":100000,"rows_first":2000,"rows_last":500,"rows_between":2000,"halvings":0,"cell_chars":16384,"cell_head_chars":4096},"cells_cut":0,"cells_raw":0,"read":"whole","date_system":"1900"}

{"sheet":"Base Maestra","index":0,"n_rows":519,"n_cols":23,"rows_kept":519,"cut":false,"hidden":true,"merged":[[2,13,3,13],[2,8,2,11],[179,5,179,10],[194,5,194,10],[67,5,67,8],[2,3,2,6],[24,0,24,2],[24,5,24,8]]}
["Cuenta Pública 2024"]
["Miles de Pesos "]
[null,null,null,"Referencia de Subfunción_Cuenta Pública",null,null,null,null,"Referencia de Subfunción_Matriz de Gasto",null,null,null,null,"Fuente de Financiamiento Evaluda",null,"Penalización por días de retraso en la calificación de Oportunidad"]
["Número de Proveedor","Institución","Descripción",1,2,3,4,"Suma",1,2,3,4,"Suma",null,null,"Días hábiles de retraso","Penalización","Puntaje de oportunidad","Calificación",null,"Cve_Edo_Ins","Cve_FF_VM","Descripción"]
[33,"IMSS","Instituto Mexicano del Seguro Social",0,471886547.42000192,6764204.8999999994,0,{"$f":"SUM(D5:G5)","v":478650752.3200019},{"$f":"SUMIFS('XX.Institución-2024'!$W$1:$W$63000,'XX.Institución-2024'!$D$1:$D$63000,'Base Maestra'!$A5,'XX.Institución-2024'!$F$1:$F$63000,'Base Maestra'!I$4,'XX.Institución-2024'!$E$1:$E$63000,'Base Maestra'!$N5)","v":0},{"$f":"SUMIFS('XX.Institución-2024'!$W$1:$W$63000,'XX.Institución-2024'!$D$1:$D$63000,'Base Maestra'!$A5,'XX.Institución-2024'!$F$1:$F$63000,'Base Maestra'!J$4,'XX.Institución-2024'!$E$1:$E$63000,'Base Maestra'!$N5)","v":0},{"$f":"SUMIFS('XX.Institución-2024'!$W$1:$W$63000,'XX.Institución-2024'!$D$1:$D$63000,'Base Maestra'!$A5,'XX.Institución-2024'!$F$1:$F$63000,'Base Maestra'!K$4,'XX.Institución-2024'!$E$1:$E$63000,'Base Maestra'!$N5)","v":0},{"$f":"SUMIFS('XX.Institución-2024'!$W$1:$W$63000,'XX.Institución-2024'!$D$1:$D$63000,'Base Maestra'!$A5,'XX.Institución-2024'!$F$1:$F$63000,'Base Maestra'!L$4,'XX.Institución-2024'!$E$1:$E$63000,'Base Maestra'!$N5)","v":0},{"$f":"SUM(I5:L5)","v":0},"A08",null,0,0,1,100,null,37,"A01","Ramo 07 (SEDENA)"]
[34,"ISSSTE","Instituto de Seguridad y Servicios Sociales de los Trabajadores del Estado",0,93088093.249999791,0,0,{"$f":"SUM(D6:G6)","v":93088093.249999791},{"$f":"SUMIFS('XX.Institución-2024'!$W$1:$W$63000,'XX.Institución-2024'!$D$1:$D$63000,'Base Maestra'!$A6,'XX.Institución-2024'!$F$1:$F$63000,'Base Maestra'!I$4,'XX.Institución-2024'!$E$1:$E$63000,'Base Maestra'!$N6)","v":0},{"$f":"SUMIFS('XX.Institución-2024'!$W$1:$W$63000,'XX.Institución-2024'!$D$1:$D$63000,'Base Maestra'!$A6,'XX.Institución-2024'!$F$1:$F$63000,'Base Maestra'!J$4,'XX.Institución-2024'!$E$1:$E$63000,'Base Maestra'!$N6)","v":0},{"$f":"SUMIFS('XX.Institución-2024'!$W$1:$W$63000,'XX.Institución-2024'!$D$1:$D$63000,'Base Maestra'!$A6,'XX.Institución-2024'!$F$1:$F$63000,'Base Maestra'!K$4,'XX.Institución-2024'!$E$1:$E$63000,'Base Maestra'!$N6)","v":0},{"$f":"SUMIFS('XX.Institución-2024'!$W$1:$W$63000,'XX.Institución-2024'!$D$1:$D$63000,'Base Maestra'!$A6,'XX.Institución-2024'!$F$1:$F$63000,'Base Maestra'!L$4,'XX.Institución-2024'!$E$1:$E$63000,'Base Maestra'!$N6)","v":0},{"$f":"SUM(I6:L6)","v":0},"A07",null,1,0.05,0.95,95,null,38,"A03","Ramo 13 (SEMAR)"]
[35,"PEMEX","Petroleos Mexicanos",0,17922541.200000003,0,0,17922541.200000003,{"$f":"SUMIFS('XX.Institución-2024'!$W$1:$W$63000,'XX.Institución-2024'!$D$1:$D$63000,'Base Maestra'!$A7,'XX.Institución-2024'!$F$1:$F$63000,'Base Maestra'!I$4,'XX.Institución-2024'!$E$1:$E$63000,'Base Maestra'!$N7)","v":0},{"$f":"SUMIFS('XX.Institución-2024'!$W$1:$W$63000,'XX.Institución-2024'!$D$1:$D$63000,'Base Maestra'!$A7,'XX.Institución-2024'!$F$1:$F$63000,'Base Maestra'!J$4,'XX.Institución-2024'!$E$1:$E$63000,'Base Maestra'!$N7)","v":0},{"$f":"SUMIFS('XX.Institución-2024'!$W$1:$W$63000,'XX.Institución-2024'!$D$1:$D$63000,'Base Maestra'!$A7,'XX.Institución-2024'!$F$1:$F$63000,'Base Maestra'!K$4,'XX.Institución-2024'!$E$1:$E$63000,'Base Maestra'!$N7)","v":0},{"$f":"SUMIFS('XX.Institución-2024'!$W$1:$W$63000,'XX.Institución-2024'!$D$1:$D$63000,'Base Maestra'!$A7,'XX.Institución-2024'!$F$1:$F$63000,'Base Maestra'!L$4,'XX.Institución-2024'!$E$1:$E$63000,'Base Maestra'!$N7)","v":0},{"$f":"SUM(I7:L7)","v":0},"A09",null,2,0.1,0.9,90,null,36,"A04","Ramo 19 (IMSS-BIENESTAR)"]
[36,"IMSS-Bienestar","Programa IMSS-Bienestar",0,19584685,0,0,19584685,{"$f":"SUMIFS('XX.Institución-2024'!$W$1:$W$63000,'XX.Institución-2024'!$D$1:$D$63000,'Base Maestra'!$A8,'XX.Institución-2024'!$F$1:$F$63000,'Base Maestra'!I$4,'XX.Institución-2024'!$E$1:$E$63000,'Base Maestra'!$N8)","v":0},{"$f":"SUMIFS('XX.Institución-2024'!$W$1:$W$63000,'XX.Institución-2024'!$D$1:$D$63000,'Base Maestra'!$A8,'XX.Institución-2024'!$F$1:$F$63000,'Base Maestra'!J$4,'XX.Institución-2024'!$E$1:$E$63000,'Base Maestra'!$N8)","v":0},{"$f":"SUMIFS('XX.Institución-2024'!$W$1:$W$63000,'XX.Institución-2024'!$D$1:$D$63000,'Base Maestra'!$A8,'XX.Institución-2024'!$F$1:$F$63000,'Base Maestra'!K$4,'XX.Institución-2024'!$E$1:$E$63000,'Base Maestra'!$N8)","v":0},{"$f":"SUMIFS('XX.Institución-2024'!$W$1:$W$63000,'XX.Institución-2024'!$D$1:$D$63000,'Base Maestra'!$A8,'XX.Institución-2024'!$F$1:$F$63000,'Base Maestra'!L$4,'XX.Institución-2024'!$E$1:$E$63000,'Base Maestra'!$N8)","v":0},0,"A04",null,3,0.15,0.85,85,null,34,"A07","Instituto de Seguridad y Servicios Sociales de los Trabajadores del Estado (ISSSTE)"]
[37,"SEDENA","Secretaria de la Defensa Nacional",0,8783561.959999999,0,0,8783561.959999999,{"$f":"SUMIFS('XX.Institución-2024'!$W$1:$W$63000,'XX.Institución-2024'!$D$1:$D$63000,'Base Maestra'!$A9,'XX.Institución-2024'!$F$1:$F$63000,'Base Maestra'!I$4,'XX.Institución-2024'!$E$1:$E$63000,'Base Maestra'!$N9)","v":0},{"$f":"SUMIFS('XX.Institución-2024'!$W$1:$W$63000,'XX.Institución-2024'!$D$1:$D$63000,'Base Maestra'!$A9,'XX.Institución-2024'!$F$1:$F$63000,'Base Maestra'!J$4,'XX.Institución-2024'!$E$1:$E$63000,'Base Maestra'!$N9)","v":0},{"$f":"SUMIFS('XX.Institución-2024'!$W$1:$W$63000,'XX.Institución-2024'!$D$1:$D$63000,'Base Maestra'!$A9,'XX.Institución-2024'!$F$1:$F$63000,'Base Maestra'!K$4,'XX.Institución-2024'!$E$1:$E$63000,'Base Maestra'!$N9)","v":0},{"$f":"SUMIFS('XX.Institución-2024'!$W$1:$W$63000,'XX.Institución-2024'!$D$1:$D$63000,'Base Maestra'!$A9,'XX.Institución-2024'!$F$1:$F$63000,'Base Maestra'!L$4,'XX.Institución-2024'!$E$1:$E$63000,'Base Maestra'!$N9)","v":0},0,"A01",null,4,0.2,0.8,80,null,33,"A08","Instituto Mexicano del Seguro Social (IMSS)"]
[38,"SEMAR","Secretaria de Marina",0,6161427.379999998,0,0,6161427.379999998,{"$f":"SUMIFS('XX.Institución-2024'!$W$1:$W$63000,'XX.Institución-2024'!$D$1:$D$63000,'Base Maestra'!$A10,'XX.Institución-2024'!$F$1:$F$63000,'Base Maestra'!I$4,'XX.Institución-2024'!$E$1:$E$63000,'Base Maestra'!$N10)","v":0},{"$f":"SUMIFS('XX.Institución-2024'!$W$1:$W$63000,'XX.Institución-2024'!$D$1:$D$63000,'Base Maestra'!$A10,'XX.Institución-2024'!$F$1:$F$63000,'Base Maestra'!J$4,'XX.Institución-2024'!$E$1:$E$63000,'Base Maestra'!$N10)","v":0},{"$f":"SUMIFS('XX.Institución-2024'!$W$1:$W$63000,'XX.Institución-2024'!$D$1:$D$63000,'Base Maestra'!$A10,'XX.Institución-2024'!$F$1:$F$63000,'Base Maestra'!K$4,'XX.Institución-2024'!$E$1:$E$63000,'Base Maestra'!$N10)","v":0},{"$f":"SUMIFS('XX.Institución-2024'!$W$1:$W$63000,'XX.Institución-2024'!$D$1:$D$63000,'Base Maestra'!$A10,'XX.Institución-2024'!$F$1:$F$63000,'Base Maestra'!L$4,'XX.Institución-2024'!$E$1:$E$63000,'Base Maestra'!$N10)","v":0},0,"A03",null,5,0.25,0.75,75,null,35,"A09","Petróleos Mexicanos (PEMEX)"]
[39,"ISSFAM","Instituto de Seguridad Social para las Fuerzas Armadas Mexicanas",0,6902362.0010000002,0,0,6902362.0010000002,{"$f":"SUMIFS('XX.Institución-2024'!$W$1:$W$63000,'XX.Institución-2024'!$D$1:$D$63000,'Base Maestra'!$A11,'XX.Institución-2024'!$F$1:$F$63000,'Base Maestra'!I$4,'XX.Institución-2024'!$E$1:$E$63000,'Base Maestra'!$N11)","v":0},{"$f":"SUMIFS('XX.Institución-2024'!$W$1:$W$63000,'XX.Institución-2024'!$D$1:$D$63000,'Base Maestra'!$A11,'XX.Institución-2024'!$F$1:$F$63000,'Base Maestra'!J$4,'XX.Institución-2024'!$E$1:$E$63000,'Base Maestra'!$N11)","v":0},{"$f":"SUMIFS('XX.Institución-2024'!$W$1:$W$63000,'XX.Institución-2024'!$D$1:$D$63000,'Base Maestra'!$A11,'XX.Institución-2024'!$F$1:$F$63000,'Base Maestra'!K$4,'XX.Institución-2024'!$E$1:$E$63000,'Base Maestra'!$N11)","v":0},{"$f":"SUMIFS('XX.Institución-2024'!$W$1:$W$63000,'XX.Institución-2024'!$D$1:$D$63000,'Base Maestra'!$A11,'XX.Institución-2024'!$F$1:$F$63000,'Base Maestra'!L$4,'XX.Institución-2024'!$E$1:$E$63000,'Base Maestra'!$N11)","v":0},0,"A10",null,6,0.3,0.7,70,null,39,"A10","Instituto de Seguridad Social para las Fuerzas Armadas Mexicanas (ISSFAM)"]
[98,"HNM","Hospital del Niño Morelense",0,304827.62999999995,0,0,{"$f":"SUM(D12:G12)","v":304827.62999999995},{"$f":"SUMIFS('XX.Institución-2024'!$W$1:$W$63000,'XX.Institución-2024'!$D$1:$D$63000,'Base Maestra'!$A12,'XX.Institución-2024'!$F$1:$F$63000,'Base Maestra'!I$4,'XX.Institución-2024'!$E$1:$E$63000,'Base Maestra'!$N12)","v":0},{"$f":"SUMIFS('XX.Institución-2024'!$W$1:$W$63000,'XX.Institución-2024'!$D$1:$D$63000,'Base Maestra'!$A12,'XX.Institución-2024'!$F$1:$F$63000,'Base Maestra'!J$4,'XX.Institución-2024'!$E$1:$E$63000,'Base Maestra'!$N12)","v":0},{"$f":"SUMIFS('XX.Institución-2024'!$W$1:$W$63000,'XX.Institución-2024'!$D$1:$D$63000,'Base Maestra'!$A12,'XX.Institución-2024'!$F$1:$F$63000,'Base Maestra'!K$4,'XX.Institución-2024'!$E$1:$E$63000,'Base Maestra'!$N12)","v":0},{"$f":"SUMIFS('XX.Institución-2024'!$W$1:$W$63000,'XX.Institución-2024'!$D$1:$D$63000,'Base Maestra'!$A12,'XX.Institución-2024'!$F$1:$F$63000,'Base Maestra'!L$4,'XX.Institución-2024'!$E$1:$E$63000,'Base Maestra'!$N12)","v":0},{"$f":"SUM(I12:L12)","v":0},"A06"]
[99,"IMIEM","Instituto Materno Infantil del Estado de México",0,1404518.6999999993,0,0,1404518.6999999993,{"$f":"SUMIFS('XX.Institución-2024'!$W$1:$W$63000,'XX.Institución-2024'!$D$1:$D$63000,'Base Maestra'!$A13,'XX.Institución-2024'!$F$1:$F$63000,'Base Maestra'!I$4,'XX.Institución-2024'!$E$1:$E$63000,'Base Maestra'!$N13)","v":0},{"$f":"SUMIFS('XX.Institución-2024'!$W$1:$W$63000,'XX.Institución-2024'!$D$1:$D$63000,'Base Maestra'!$A13,'XX.Institución-2024'!$F$1:$F$63000,'Base Maestra'!J$4,'XX.Institución-2024'!$E$1:$E$63000,'Base Maestra'!$N13)","v":0},{"$f":"SUMIFS('XX.Institución-2024'!$W$1:$W$63000,'XX.Institución-2024'!$D$1:$D$63000,'Base Maestra'!$A13,'XX.Institución-2024'!$F$1:$F$63000,'Base Maestra'!K$4,'XX.Institución-2024'!$E$1:$E$63000,'Base Maestra'!$N13)","v":0},{"$f":"SUMIFS('XX.Institución-2024'!$W$1:$W$63000,'XX.Institución-2024'!$D$1:$D$63000,'Base Maestra'!$A13,'XX.Institución-2024'!$F$1:$F$63000,'Base Maestra'!L$4,'XX.Institución-2024'!$E$1:$E$63000,'Base Maestra'!$N13)","v":0},0,"A06"]
[40,"ISSSTECALI","Instituto de Seguridad y Servicios Sociales de los Trabajadores del Gobierno y Municipios del Estado de Baja California",0,3005061.1069999998,0,0,3005061.1069999998,{"$f":"SUMIFS('XX.Institución-2024'!$W$1:$W$63000,'XX.Institución-2024'!$D$1:$D$63000,'Base Maestra'!$A14,'XX.Institución-2024'!$F$1:$F$63000,'Base Maestra'!I$4,'XX.Institución-2024'!$E$1:$E$63000,'Base Maestra'!$N14)","v":0},{"$f":"SUMIFS('XX.Institución-2024'!$W$1:$W$63000,'XX.Institución-2024'!$D$1:$D$63000,'Base Maestra'!$A14,'XX.Institución-2024'!$F$1:$F$63000,'Base Maestra'!J$4,'XX.Institución-2024'!$E$1:$E$63000,'Base Maestra'!$N14)","v":0},{"$f":"SUMIFS('XX.Institución-2024'!$W$1:$W$63000,'XX.Institución-2024'!$D$1:$D$63000,'Base Maestra'!$A14,'XX.Institución-2024'!$F$1:$F$63000,'Base Maestra'!K$4,'XX.Institución-2024'!$E$1:$E$63000,'Base Maestra'!$N14)","v":0},{"$f":"SUMIFS('XX.Institución-2024'!$W$1:$W$63000,'XX.Institución-2024'!$D$1:$D$63000,'Base Maestra'!$A14,'XX.Institución-2024'!$F$1:$F$63000,'Base Maestra'!L$4,'XX.Institución-2024'!$E$1:$E$63000,'Base Maestra'!$N14)","v":0},{"$f":"SUM(I14:L14)","v":0},"A11",null,7,0.35,0.65,65]
[41,"ISSSTECAM","Instituto de Seguridad y Servicios Sociales de los Trabajadores del Estado de Campeche",0,null,0,23718.04,23718.04,{"$f":"SUMIFS('XX.Institución-2024'!$W$1:$W$63000,'XX.Institución-2024'!$D$1:$D$63000,'Base Maestra'!$A15,'XX.Institución-2024'!$F$1:$F$63000,'Base Maestra'!I$4,'XX.Institución-2024'!$E$1:$E$63000,'Base Maestra'!$N15)","v":0},{"$f":"SUMIFS('XX.Institución-2024'!$W$1:$W$63000,'XX.Institución-2024'!$D$1:$D$63000,'Base Maestra'!$A15,'XX.Institución-2024'!$F$1:$F$63000,'Base Maestra'!J$4,'XX.Institución-2024'!$E$1:$E$63000,'Base Maestra'!$N15)","v":0},{"$f":"SUMIFS('XX.Institución-2024'!$W$1:$W$63000,'XX.Institución-2024'!$D$1:$D$63000,'Base Maestra'!$A15,'XX.Institución-2024'!$F$1:$F$63000,'Base Maestra'!K$4,'XX.Institución-2024'!$E$1:$E$63000,'Base Maestra'!$N15)","v":0},{"$f":"SUMIFS('XX.Institución-2024'!$W$1:$W$63000,'XX.Institución-2024'!$D$1:$D$63000,'Base Maestra'!$A15,'XX.Institución-2024'!$F$1:$F$63000,'Base Maestra'!L$4,'XX.Institución-2024'!$E$1:$E$63000,'Base Maestra'!$N15)","v":0},0,"A11",null,8,0.4,0.6,60]
[42,"ISMTECoah","Instituto de Servicio Médico de los Trabajadores de la Educación del Estado de Coahuila",0,593222.01650000003,0,0,593222.01650000003,{"$f":"SUMIFS('XX.Institución-2024'!$W$1:$W$63000,'XX.Institución-2024'!$D$1:$D$63000,'Base Maestra'!$A16,'XX.Institución-2024'!$F$1:$F$63000,'Base Maestra'!I$4,'XX.Institución-2024'!$E$1:$E$63000,'Base Maestra'!$N16)","v":0},{"$f":"SUMIFS('XX.Institución-2024'!$W$1:$W$63000,'XX.Institución-2024'!$D$1:$D$63000,'Base Maestra'!$A16,'XX.Institución-2024'!$F$1:$F$63000,'Base Maestra'!J$4,'XX.Institución-2024'!$E$1:$E$63000,'Base Maestra'!$N16)","v":0},{"$f":"SUMIFS('XX.Institución-2024'!$W$1:$W$63000,'XX.Institución-2024'!$D$1:$D$63000,'Base Maestra'!$A16,'XX.Institución-2024'!$F$1:$F$63000,'Base Maestra'!K$4,'XX.Institución-2024'!$E$1:$E$63000,'Base Maestra'!$N16)","v":0},{"$f":"SUMIFS('XX.Institución-2024'!$W$1:$W$63000,'XX.Institución-2024'!$D$1:$D$63000,'Base Maestra'!$A16,'XX.Institución-2024'!$F$1:$F$63000,'Base Maestra'!L$4,'XX.Institución-2024'!$E$1:$E$63000,'Base Maestra'!$N16)","v":0},0,"A11",null,9,0.45,0.55000000000000004,55]
[43,"ISSTECH","Instituto de Seguridad Social de los Trabajadores del Estado de Chiapas",191973.34,1217125.4599999979,0,0,{"$f":"SUM(D17:G17)","v":1409098.799999998},{"$f":"SUMIFS('XX.Institución-2024'!$W$1:$W$63000,'XX.Institución-2024'!$D$1:$D$63000,'Base Maestra'!$A17,'XX.Institución-2024'!$F$1:$F$63000,'Base Maestra'!I$4,'XX.Institución-2024'!$E$1:$E$63000,'Base Maestra'!$N17)","v":0},{"$f":"SUMIFS('XX.Institución-2024'!$W$1:$W$63000,'XX.Institución-2024'!$D$1:$D$63000,'Base Maestra'!$A17,'XX.Institución-2024'!$F$1:$F$63000,'Base Maestra'!J$4,'XX.Institución-2024'!$E$1:$E$63000,'Base Maestra'!$N17)","v":0},{"$f":"SUMIFS('XX.Institución-2024'!$W$1:$W$63000,'XX.Institución-2024'!$D$1:$D$63000,'Base Maestra'!$A17,'XX.Institución-2024'!$F$1:$F$63000,'Base Maestra'!K$4,'XX.Institución-2024'!$E$1:$E$63000,'Base Maestra'!$N17)","v":0},{"$f":"SUMIFS('XX.Institución-2024'!$W$1:$W$63000,'XX.Institución-2024'!$D$1:$D$63000,'Base Maestra'!$A17,'XX.Institución-2024'!$F$1:$F$63000,'Base Maestra'!L$4,'XX.Institución-2024'!$E$1:$E$63000,'Base Maestra'!$N17)","v":0},{"$f":"SUM(I17:L17)","v":0},"A11",null,10,0.5,0.5,50]
[44,"ISSEMYM","Instituto de Seguridad Social del Estado de México y Municipios",0,13475001.739,0,0,13475001.739,{"$f":"SUMIFS('XX.Institución-2024'!$W$1:$W$63000,'XX.Institución-2024'!$D$1:$D$63000,'Base Maestra'!$A18,'XX.Institución-2024'!$F$1:$F$63000,'Base Maestra'!I$4,'XX.Institución-2024'!$E$1:$E$63000,'Base Maestra'!$N18)","v":0},{"$f":"SUMIFS('XX.Institución-2024'!$W$1:$W$63000,'XX.Institución-2024'!$D$1:$D$63000,'Base Maestra'!$A18,'XX.Institución-2024'!$F$1:$F$63000,'Base Maestra'!J$4,'XX.Institución-2024'!$E$1:$E$63000,'Base Maestra'!$N18)","v":0},{"$f":"SUMIFS('XX.Institución-2024'!$W$1:$W$63000,'XX.Institución-2024'!$D$1:$D$63000,'Base Maestra'!$A18,'XX.Institución-2024'!$F$1:$F$63000,'Base Maestra'!K$4,'XX.Institución-2024'!$E$1:$E$63000,'Base Maestra'!$N18)","v":0},{"$f":"SUMIFS('XX.Institución-2024'!$W$1:$W$63000,'XX.Institución-2024'!$D$1:$D$63000,'Base Maestra'!$A18,'XX.Institución-2024'!$F$1:$F$63000,'Base Maestra'!L$4,'XX.Institución-2024'!$E$1:$E$63000,'Base Maestra'!$N18)","v":0},{"$f":"SUM(I18:L18)","v":0},"A11",null,11,0.55000000000000004,0.45,45]
[45,"ISSSTELEON","Instituto de Seguridad y Servicios Sociales de los Trabajadores del Estado de Nuevo León",0,2091500.6400000001,0,0,2091500.6400000001,{"$f":"SUMIFS('XX.Institución-2024'!$W$1:$W$63000,'XX.Institución-2024'!$D$1:$D$63000,'Base Maestra'!$A19,'XX.Institución-2024'!$F$1:$F$63000,'Base Maestra'!I$4,'XX.Institución-2024'!$E$1:$E$63000,'Base Maestra'!$N19)","v":0},{"$f":"SUMIFS('XX.Institución-2024'!$W$1:$W$63000,'XX.Institución-2024'!$D$1:$D$63000,'Base Maestra'!$A19,'XX.Institución-2024'!$F$1:$F$63000,'Base Maestra'!J$4,'XX.Institución-2024'!$E$1:$E$63000,'Base Maestra'!$N19)","v":0},{"$f":"SUMIFS('XX.Institución-2024'!$W$1:$W$63000,'XX.Institución-2024'!$D$1:$D$63000,'Base Maestra'!$A19,'XX.Institución-2024'!$F$1:$F$63000,'Base Maestra'!K$4,'XX.Institución-2024'!$E$1:$E$63000,'Base Maestra'!$N19)","v":0},{"$f":"SUMIFS('XX.Institución-2024'!$W$1:$W$63000,'XX.Institución-2024'!$D$1:$D$63000,'Base Maestra'!$A19,'XX.Institución-2024'!$F$1:$F$63000,'Base Maestra'!L$4,'XX.Institución-2024'!$E$1:$E$63000,'Base Maestra'!$N19)","v":0},0,"A11",null,12,0.6,0.4,40]
[46,"ISSSTESON","Instituto de Seguridad y Servicios Sociales de los Trabajadores del Estado de Sonora",0,2777078.8600000013,0,0,2777078.8600000013,{"$f":"SUMIFS('XX.Institución-2024'!$W$1:$W$63000,'XX.Institución-2024'!$D$1:$D$63000,'Base Maestra'!$A20,'XX.Institución-2024'!$F$1:$F$63000,'Base Maestra'!I$4,'XX.Institución-2024'!$E$1:$E$63000,'Base Maestra'!$N20)","v":0},{"$f":"SUMIFS('XX.Institución-2024'!$W$1:$W$63000,'XX.Institución-2024'!$D$1:$D$63000,'Base Maestra'!$A20,'XX.Institución-2024'!$F$1:$F$63000,'Base Maestra'!J$4,'XX.Institución-2024'!$E$1:$E$63000,'Base Maestra'!$N20)","v":0},{"$f":"SUMIFS('XX.Institución-2024'!$W$1:$W$63000,'XX.Institución-2024'!$D$1:$D$63000,'Base Maestra'!$A20,'XX.Institución-2024'!$F$1:$F$63000,'Base Maestra'!K$4,'XX.Institución-2024'!$E$1:$E$63000,'Base Maestra'!$N20)","v":0},{"$f":"SUMIFS('XX.Institución-2024'!$W$1:$W$63000,'XX.Institución-2024'!$D$1:$D$63000,'Base Maestra'!$A20,'XX.Institución-2024'!$F$1:$F$63000,'Base Maestra'!L$4,'XX.Institución-2024'!$E$1:$E$63000,'Base Maestra'!$N20)","v":0},0,"A11",null,13,0.65,0.35,35]
[47,"ISSSTEY","Instituto de Seguridad Social de los Trabajadores del Estado de Yucatán",0,501508.62,0,0,501508.62,{"$f":"SUMIFS('XX.Institución-2024'!$W$1:$W$63000,'XX.Institución-2024'!$D$1:$D$63000,'Base Maestra'!$A21,'XX.Institución-2024'!$F$1:$F$63000,'Base Maestra'!I$4,'XX.Institución-2024'!$E$1:$E$63000,'Base Maestra'!$N21)","v":0},{"$f":"SUMIFS('XX.Institución-2024'!$W$1:$W$63000,'XX.Institución-2024'!$D$1:$D$63000,'Base Maestra'!$A21,'XX.Institución-2024'!$F$1:$F$63000,'Base Maestra'!J$4,'XX.Institución-2024'!$E$1:$E$63000,'Base Maestra'!$N21)","v":0},{"$f":"SUMIFS('XX.Institución-2024'!$W$1:$W$63000,'XX.Institución-2024'!$D$1:$D$63000,'Base Maestra'!$A21,'XX.Institución-2024'!$F$1:$F$63000,'Base Maestra'!K$4,'XX.Institución-2024'!$E$1:$E$63000,'Base Maestra'!$N21)","v":0},{"$f":"SUMIFS('XX.Institución-2024'!$W$1:$W$63000,'XX.Institución-2024'!$D$1:$D$63000,'Base Maestra'!$A21,'XX.Institución-2024'!$F$1:$F$63000,'Base Maestra'!L$4,'XX.Institución-2024'!$E$1:$E$63000,'Base Maestra'!$N21)","v":0},0,"A11",null,14,0.7,0.3,30]
[null,null,null,{"$f":"SUM(D5:D11)","v":0},{"$f":"SUM(E5:E11)","v":624329218.21100187},6764204.8999999994,0,631093423.11100185,0,{"$f":"SUM(J5:J11)","v":0},0,0,0,null,null,15,0.75,0.25,25]
[null,null,null,null,null,null,null,null,null,null,null,null,null,null,null,16,0.8,0.2,20]
[null,null,null,null,null,null,null,null,null,null,null,null,null,null,null,17,0.85,0.15,15]
["Validador COG",null,null,null,null,"Validador CFA",null,null,null,null,null,null,null,null,null,18,0.9,0.1,10]
["Capitulo","Concepto","Partida ",null,null,"Cve_Función","Cve_Subf","Cve_Actividad","Cve_Subactividad",null,null,null,null,null,null,19,0.95,0.05,5]
[1000,1100,1110,null,null,"HC.1","HC.1.1","HC.1.1.1",null,null,null,null,null,null,null,"20 o más",1,0,0]
[1000,1100,1120,null,null,"HC.1","HC.1.1","HC.1.1.2"]
[1000,1100,1130,null,null,"HC.1","HC.1.2","HC.1.2.1"]
[1000,1100,1140,null,null,"HC.1","HC.1.2","HC.1.2.2"]
[1000,1200,1210,null,null,"HC.1","HC.1.3","HC.1.3.1"]
[1000,1200,12201,null,null,"HC.1","HC.1.3","HC.1.3.2"]
[1000,1200,12202,null,null,"HC.1","HC.1.3","HC.1.3.3"]
[1000,1200,12301,null,null,"HC.1","HC.1.4"]
[1000,1200,1240,null,null,"HC.2","HC.2.1"]
[1000,1300,13101,null,null,"HC.2","HC.2.2"]
[1000,1300,13102,null,null,"HC.2","HC.2.3"]
[1000,1300,13103,null,null,"HC.2","HC.2.4"]
[1000,1300,13104,null,null,"HC.4","HC.4.1"]
[1000,1300,13201,null,null,"HC.4","HC.4.2"]
[1000,1300,13202,null,null,"HC.4","HC.4.3"]
[1000,1300,1330,null,null,"HC.6","HC.6.1"]
[1000,1300,13401,null,null,"HC.6","HC.6.2"]
[1000,1300,13402,null,null,"HC.6","HC.6.3"]
[1000,1300,13403,null,null,"HC.6","HC.6.4"]
[1000,1300,13404,null,null,"HC.6","HC.6.5"]
[1000,1300,13405,null,null,"HC.6","HC.6.6"]
[1000,1300,13406,null,null,"HC.7","HC.7.1"]
[1000,1300,13407,null,null,"HC.7","HC.7.2"]
[1000,1300,13408,null,null,"HC.9"]
[1000,1300,13409,null,null,"HCR.1","HCR.1.1"]
[1000,1300,13410,null,null,"HCR.1","HCR.1.2"]
[1000,1300,13411,null,null,"HCR.2"]
[1000,1300,13412,null,null,"HK.1","HK.1.1","HK.1.1.1","HK.1.1.1.1"]
[1000,1300,13413,null,null,"HK.1","HK.1.1","HK.1.1.1","HK.1.1.1.2"]
[1000,1300,13414,null,null,"HK.1","HK.1.1","HK.1.1.2","HK.1.1.2.1"]
[1000,1300,1350,null,null,"HK.1","HK.1.1","HK.1.1.2","HK.1.1.2.2"]
[1000,1300,13601,null,null,"HK.1","HK.1.1","HK.1.1.2","HK.1.1.2.3"]
[1000,1300,13602,null,null,"HK.1","HK.1.1","HK.1.1.2","HK.1.1.2.4"]
[1000,1300,13603,null,null,"HK.1","HK.1.1","HK.1.1.3","HK.1.1.3.1"]
[1000,1300,13604,null,null,"HK.1","HK.1.1","HK.1.1.3","HK.1.1.3.2"]
[1000,1300,13605,null,null,"HK.2","HK.2.1"]
[1000,1300,1370,null,null,"HK.2","HK.2.2"]
[1000,1300,1380,null,null,"HKR.4"]
[1000,1400,14101,null,null,"HKR.5"]
[1000,1400,14102]
[1000,1400,14103]
[1000,1400,14104,null,null,"Validador CAI"]
[1000,1400,14105,null,null,"SF","AI","Cve_H","Descripción "]
[1000,1400,14201,null,null,1,2,"H10","Apoyar los servicios administrativos","-"]
[1000,1400,14202,null,null,1,2,"H19","Apoyar a otras instituciones públicas del sector para atender las necesidades propias de sus funciones","-"]
[1000,1400,14301,null,null,1,2,"H57","Fortalecer y apoyar a las Jurisdicciones Sanitarias","-"]
[1000,1400,14302,null,null,1,12,"H94","Promover programas para procurar el bienestar de los grupos vulnerables de la población","-"]
[1000,1400,14401,null,null,1,15,"H11","Promover los determinantes personales de salud, en los entornos escolares, con énfasis en la alimentación saludable y la activación física para una mejor salud","-"]
[1000,1400,14402,null,null,1,15,"H12","Promover los determinantes colectivos de salud","-"]
[1000,1400,14403,null,null,1,15,"H13","Fortalecer la promoción de la salud y determinantes sociales de la salud","-"]
[1000,1400,14404,null,null,1,15,"H14","Prevenir las lesiones de causa externa intencionales y no intencionales y fortalecer la seguridad vial","-"]
[1000,1400,14405,null,null,1,15,"H15","Proteger la salud de la población migrante y sus familias","-"]
[1000,1400,14406,null,null,1,15,"H16","Promocionar una mejor salud y nutrición de manera integral a la población indígena y otros grupos vulnerables","-"]
[1000,1500,15101,null,null,1,15,"H17","Prevenir, controlar y disminuir las enfermedades cardiometabólicas (sobrepeso, obesidad, diabetes, hipertension, dislipidemias, riesgo cardiovascular)","-"]
[1000,1500,15102,null,null,1,15,"H18","Fortalecer el programa de planificación familiar y anticoncepción","-"]
[1000,1500,15103,null,null,1,15,"H20","Fortalecer el programa de prevención y control de cáncer de la mujer","-"]
[1000,1500,15201,null,null,1,15,"H21","Reforzar el programa de prevención, promoción, detección y atención de cáncer de próstata","-"]
[1000,1500,15202,null,null,1,15,"H22","Fortalecer la donación y el trasplante de órganos y tejidos","-"]
[1000,1500,1530,null,null,1,15,"H23","Desarrollar acciones integrales para prevenir, detectar, diagnosticar y atender los problemas de salud mental y adicciones","-"]
[1000,1500,15401,null,null,1,15,"H25","Fortalecer el programa de acceso universal a sangre segura","-"]
[1000,1500,15402,null,null,1,15,"H26","Fortalecer las acciones de salud a población en condiciones de pobreza y en comunidades de difícil acceso","-"]
[1000,1500,15403,null,null,1,15,"H27","Fortalecer el programa de salud materna y perinatal","-"]
[1000,1500,1550,null,null,1,15,"H29","Desarrollar acciones integrales para mejorar la salud de la infancia y la adolescencia","-"]
[1000,1500,15901,null,null,1,15,"H30","Desarrollar acciones de salud sexual y reproductiva para los adolescentes, con perspectiva de derechos humanos y de género","-"]
[1000,1500,15902,null,null,1,15,"H31","Reforzar la prevención, control y atención integral de las infecciones respiratorias agudas.(Neumonías, Influenza, COVID-19) y las enfermedades respiratorias crónicas (ASMA Y EPOC).","-"]
[1000,1600,16101,null,null,1,15,"H36","Fortalecer el Programa de VIH-SIDA e ITS de manera integral","-"]
[1000,1600,16102,null,null,1,15,"H37","Atender de manera integral los efectos del envejecimiento de las personas adultas y personas adultas mayores","-"]
[1000,1600,16103,null,null,1,15,"H42","Promover, prevenir, diagnosticar y reestablecer la salud bucal","-"]
[1000,1600,16104,null,null,1,15,"H50","Desarrollar acciones integrales para fortalecer el programa de igualdad de género en salud","-"]
[1000,1600,16105,null,null,1,15,"H55","Mejorar la atención obstétrica, durante el embarazo, parto y puerperio para reducir la mortalidad materna y perinatal","-"]
[1000,1600,16106,null,null,1,15,"H59","Fortalecer el programa de prevención y atención médica integral (rehabilitación)  de discapacidades y malformaciones congénitas","-"]
[1000,1600,16107,null,null,1,15,"H66","Fortalecer la atención médica del primer nivel de atención","-"]
[1000,1600,16108,null,null,1,15,"H71","Fortalecer el programa de prevención y atención de la violencia familiar y de género, con capacidad de respuesta efectiva","-"]
[1000,1600,16109,null,null,1,15,"H78","Fortalecer el Programa Nacional de Eliminación de la Hepatitis C","-"]
[1000,1700,17101,null,null,1,16,"H32","Prevenir, detectar y controlar las micobacteriosis (Tuberculosis y Lepra)","-"]
[1000,1700,17102,null,null,1,16,"H33","Combatir las enfermedades de problemas de rezago (EDA - cólera)","-"]
[1000,1700,1720,null,null,1,16,"H34","Prevenir, detectar, combatir y brindar atención integral a las enfermedades transmitidas por vector (dengue, paludismo, chagas, leishmaniasis, oncocercosis, chikungunya, zika, mayaro, fiebre amarilla y oeste del nilo)","-"]
[2000,2100,2110,null,null,1,16,"H35","Fortalecer el Programa de Zoonosis de manera integral (Rabia, Brucelosis, Leptospirosis, Rickettsiosis, Teniasis-cisticercosis)","-"]
[2000,2100,2120,null,null,1,16,"H39","Atender las intoxicaciones por mordedura de artrópodos y serpientes con dotación suficiente de antídotos","-"]
[2000,2100,2130,null,null,1,16,"H40","Fortalecer la vigilancia epidemiológica a través del análisis y diagnóstico de referencia","-"]
[2000,2100,2140,null,null,1,16,"H41","Atender oportunamente los desastres y urgencias epidemiológicas","-"]
[2000,2100,21501,null,null,1,16,"H43","Fortalecer el sistema de vigilancia epidemiológica","-"]
[2000,2100,21502,null,null,1,17,"H44","Análisis de riesgos sanitarios","-"]
[2000,2100,2160,null,null,1,17,"H45","Fortalecer el control y la vigilancia sanitaria, ambiental, ocupacional y saneamiento básico","-"]
[2000,2100,2170,null,null,1,17,"H46","Promover la cultura de prevención contra riesgos sanitarios","-"]
[2000,2100,2180,null,null,1,17,"H47","Coordinar las acciones entre órdenes de gobierno para el control de emergencias y alertas sanitarias","-"]
[2000,2200,22101,null,null,1,17,"H48","Fortalecer la capacidad analítica con enfoque de riesgos sanitarios","-"]
[2000,2200,22102,null,null,2,2,"H10","Apoyar los servicios administrativos","-"]
[2000,2200,22103,null,null,2,2,"H19","Apoyar a otras instituciones públicas del sector para atender las necesidades propias de sus funciones","-"]
[2000,2200,22104,null,null,2,12,"H93","Otorgar servicios de asistencia social integral","-"]
[2000,2200,22105,null,null,2,18,"H100","Fortalecer el abasto oportuno de medicamentos gratuitos y otros insumos para la salud para la población sin seguridad social laboral","-"]
[2000,2200,22106,null,null,2,18,"H14","Prevenir las lesiones de causa externa intencionales y no intencionales y fortalecer la seguridad vial","-"]
[2000,2200,2220,null,null,2,18,"H17","Prevenir, controlar y disminuir las enfermedades cardiometabólicas (sobrepeso, obesidad, diabetes, hipertension, dislipidemias, riesgo cardiovascular)","-"]
[2000,2200,2230,null,null,2,18,"H18","Fortalecer el programa de planificación familiar y anticoncepción","-"]
[2000,2300,2310,null,null,2,18,"H20","Fortalecer el programa de prevención y control de cáncer de la mujer","-"]
[2000,2300,2320,null,null,2,18,"H21","Reforzar el programa de prevención, promoción, detección y atención de cáncer de próstata","-"]
[2000,2300,2330,null,null,2,18,"H22","Fortalecer la donación y el trasplante de órganos y tejidos","-"]
[2000,2300,2340,null,null,2,18,"H23","Desarrollar acciones integrales para prevenir, detectar, diagnosticar y atender los problemas de salud mental y adicciones","-"]
[2000,2300,2350,null,null,2,18,"H25","Fortalecer el programa de acceso universal a sangre segura","-"]
[2000,2300,2360,null,null,2,18,"H26","Fortalecer las acciones de salud a población en condiciones de pobreza y en comunidades de difícil acceso","-"]
[2000,2300,2370,null,null,2,18,"H27","Fortalecer el programa de salud materna y perinatal","-"]
[2000,2300,2380,null,null,2,18,"H28","Fortalecer el programa de vacunación universal","-"]
[2000,2300,23901,null,null,2,18,"H29","Desarrollar acciones integrales para mejorar la salud de la infancia y la adolescencia","-"]
[2000,2300,23902,null,null,2,18,"H30","Desarrollar acciones de salud sexual y reproductiva para los adolescentes, con perspectiva de derechos humanos y de género","-"]
[2000,2400,2410,null,null,2,18,"H31","Reforzar la prevención, control y atención integral de las infecciones respiratorias agudas.(Neumonías, Influenza, COVID-19) y las enfermedades respiratorias crónicas (ASMA Y EPOC).","-"]
[2000,2400,2420,null,null,2,18,"H32","Prevenir, detectar y controlar las micobacteriosis (Tuberculosis y Lepra)","-"]
[2000,2400,2430,null,null,2,18,"H33","Combatir las enfermedades de problemas de rezago (EDA - cólera)","-"]
[2000,2400,2440,null,null,2,18,"H34","Prevenir, detectar, combatir y brindar atención integral a las enfermedades transmitidas por vector (dengue, paludismo, chagas, leishmaniasis, oncocercosis, chikungunya, zika, mayaro, fiebre amarilla y oeste del nilo)","-"]
[2000,2400,2450,null,null,2,18,"H35","Fortalecer el Programa de Zoonosis de manera integral (Rabia, Brucelosis, Leptospirosis, Rickettsiosis, Teniasis-cisticercosis)","-"]
[2000,2400,2460,null,null,2,18,"H36","Fortalecer el Programa de VIH-SIDA e ITS de manera integral","-"]
[2000,2400,2470,null,null,2,18,"H37","Atender de manera integral los efectos del envejecimiento de las personas adultas y personas adultas mayores","-"]
[2000,2400,2480,null,null,2,18,"H39","Atender las intoxicaciones por mordedura de artrópodos y serpientes con dotación suficiente de antídotos","-"]
[2000,2400,2490,null,null,2,18,"H42","Promover, prevenir, diagnosticar y reestablecer la salud bucal","-"]
[2000,2500,2510,null,null,2,18,"H55","Mejorar la atención obstétrica, durante el embarazo, parto y puerperio para reducir la mortalidad materna y perinatal","-"]
[2000,2500,2520,null,null,2,18,"H56","Brindar servicios de atención médica integral a las personas que padecen de labio leporino y paladar hendido ","-"]
[2000,2500,2530,null,null,2,18,"H59","Fortalecer el programa de prevención y atención médica integral (rehabilitación)  de discapacidades y malformaciones congénitas","-"]
[2000,2500,2540,null,null,2,18,"H60","Brindar servicios de Atención médica a través de Unidades médicas móviles","-"]
[2000,2500,2550,null,null,2,18,"H61","Brindar atención médica de primer nivel de atención","-"]
[2000,2500,2560,null,null,2,18,"H62","Brindar atención médica de segundo nivel de atención","-"]
[2000,2500,2590,null,null,2,18,"H63","Brindar atención médica de tercer nivel de atención","-"]
[2000,2600,26101,null,null,2,18,"H64","Brindar servicios y atención de urgencias médicas ","-"]
[2000,2600,26102,null,null,2,18,"H65","Fortalecer los laboratorios clínicos de apoyo a la atención médica","-"]
[2000,2600,26103,null,null,2,18,"H71","Fortalecer el programa de prevención y atención de la violencia familiar y de género, con capacidad de respuesta efectiva","-"]
[2000,2600,26104,null,null,2,18,"H76","Fortalecer la detección temprana y la atención integral de la insuficiencia renal crónica","-"]
[2000,2600,26105,null,null,2,18,"H77","Fortalecer el diagnóstico oportuno y tratamiento de tumores malignos","-"]
[2000,2600,26106,null,null,2,18,"H78","Fortalecer el Programa Nacional de Eliminación de la Hepatitis C","-"]
[2000,2600,26107,null,null,3,2,"H10","Apoyar los servicios administrativos","-"]
[2000,2600,26108,null,null,3,19,"H09","Capacitar al personal administrativo y directivo a nivel técnico y gerencial","-"]
[2000,2600,2620,null,null,3,19,"H49","Capacitar y sensibilizar a agentes y personal de salud en acciones de interculturalidad, no discriminación e igualdad de género","-"]
[2000,2700,2710,null,null,3,19,"H84","Capacitar a los prestadores de servicios de la salud","-"]
[2000,2700,2720,null,null,3,19,"H85","Formar especialistas en materia de salud (enseñanza)","-"]
[2000,2700,2730,null,null,3,20,"H03","Diseñar y/o coordinar programas de fortalecimiento de la oferta de servicios (planes maestros de Infraestructura en salud)","-"]
[2000,2700,2740,null,null,3,20,"H38","Fortalecer el equipamiento y la infraestructura física","-"]
[2000,2700,2750,null,null,3,20,"H54","Mantener y ampliar la certificación de las unidades de salud  con supervisión integral","-"]
[2000,2800,2810,null,null,3,20,"H87","Desarrollar acciones de conservación y mantenimiento","-"]
[2000,2800,2820,null,null,3,20,"H88","Fortalecer la obra pública y rehabilitación","-"]
[2000,2800,2830,null,null,3,24,"H08","Fortalecer el diseño, implementación y mantenimiento de los sistemas de información para facilitar la accesibilidad a los servicios de salud","-"]
[2000,2900,2910,null,null,3,24,"H86","Fomentar la Investigación en salud","-"]
[2000,2900,2920,null,null,4,2,"H10","Apoyar los servicios administrativos","-"]
[2000,2900,2930,null,null,4,14,"H04","Atender asuntos jurídicos y Derechos Humanos","-"]
[2000,2900,2940,null,null,4,14,"H05","Monitorear la operación, control interno, la protección de datos personales y la rendición de cuentas","-"]
[2000,2900,2950,null,null,4,14,"H07","Fortalecer el sistema de evaluación del desempeño, la transparencia y la rendición de cuentas.","-"]
[2000,2900,2960,null,null,4,14,"H51","Prevenir y atender oportunamente los conflictos derivados de la relación médico - paciente (Arbitraje Médico)","-"]
[2000,2900,2970,null,null,4,14,"H92","Promover la cooperación internacional en salud","-"]
[2000,2900,2980,null,null,4,25,"H01","Fortalecer el papel de la rectoria de los Servicios de Salud","-"]
[2000,2900,2990,null,null,4,25,"H02","Ampliar la participación ciudadana en la planeación, desarrollo y operación eficiente de los servicios de salud","-"]
[3000,3100,3110,null,null,4,25,"H06","Fortalecer el sistema integral y universal de información en salud","-"]
[3000,3100,3120,null,null,4,25,"H52","Fortalecer la calidad efectiva de los servicios de salud","-"]
[3000,3100,3130,null,null,4,25,"H53","Fortalecer el sistema de seguimiento y respuesta a solicitudes de atención.","-"]
[3000,3100,3140,null,null,4,25,"H54","Mantener y ampliar la certificación de las unidades de salud  con supervisión integral","-"]
[3000,3100,3150,null,null,4,25,"H90","Emitir, regular, supervisar y difundir normatividad y regulaciones de políticas y programas de salud","-"]
[3000,3100,31601,null,null,4,25,"H91","Impulsar acciones de coordinación entre instituciones de salud, entidades federativas, municipios y jurisdicciones, así como con otros sectores y/o organismos autónomos","-"]
[3000,3100,31602]
[3000,3100,31603,null,null,"IMSS"]
[3000,3100,3170,null,null,"Cve_Sub \nfunción","Cve_AI","Cve_H","Actividad Institucional","Cve_PP","Programa Presupuestario"]
[3000,3100,31801,null,null,2,2,null,"Servicios de apoyo administrativo","M001","Actividades de apoyo administrativo"]
[3000,3100,31802,null,null,2,2,null,"Servicios de apoyo administrativo","W001","Operaciones ajenas"]
[3000,3100,31901,null,null,2,3,null,"Eficacia en la atención médica preventiva","E001","Prevención y control de enfermedades"]
[3000,3100,31902,null,null,2,4,null,"Oportunidad en la atención curativa, quirúrgica, hospitalaria y de rehabilitación","E003","Atención a la Salud en el Trabajo"]
[3000,3100,31903,null,null,2,4,null,"Oportunidad en la atención curativa, quirúrgica, hospitalaria y de rehabilitación","E011","Atención a la Salud"]
[3000,3100,31904,null,null,2,4,null,"Oportunidad en la atención curativa, quirúrgica, hospitalaria y de rehabilitación","K012","Proyectos de infraestructura social de asistencia y seguridad social"]
[3000,3200,3210,null,null,2,4,null,"Oportunidad en la atención curativa, quirúrgica, hospitalaria y de rehabilitación","K027","Mantenimiento de infraestructura"]
[3000,3200,3220,null,null,2,4,null,"Oportunidad en la atención curativa, quirúrgica, hospitalaria y de rehabilitación","K028","Estudios de preinversión"]
[3000,3200,32301,null,null,2,4,null,"Oportunidad en la atención curativa, quirúrgica, hospitalaria y de rehabilitación","K029","Programas de adquisiciones"]
[3000,3200,32302,null,null,2,4,null,"Oportunidad en la atención curativa, quirúrgica, hospitalaria y de rehabilitación","M001","Actividades de apoyo administrativo"]
[3000,3200,32303,null,null,3,5,null,"Servicios de incorporación y recaudación","E006","Recaudación de ingresos obrero patronales"]
[3000,3200,3240,null,null,3,5,null,"Servicios de incorporación y recaudación","M001","Actividades de apoyo administrativo"]
[3000,3200,32501]
[3000,3200,32502,null,null,"ISSSTE"]
[3000,3200,32503,null,null,"Cve_Sub\nfunción","Cve_AI","Cve_H","Actividad Institucional","Cve_PP","Programa Presupuestario"]
[3000,3200,32504,null,null,2,2,null,"Servicios de apoyo administrativo","K029","Programa de Adquisiciones"]
[3000,3200,32505,null,null,2,3,null,"Cobertura de la atención médica preventiva","E043","Prevención y control de enfermedades"]
[3000,3200,3260,null,null,2,4,null,"Cobertura de la atención médica curativa","E044","Atención a la Salud"]
[3000,3200,3270,null,null,2,5,null,"Otros Servicios de Salud","E018","Suministro de Claves de Medicamentos"]
[3000,3200,3280,null,null,2,5,null,"Otros Servicios de Salud","E044","Atención a la Salud"]
[3000,3200,32901,null,null,2,5,null,"Otros Servicios de Salud","K011","Proyectos de infraestructura social"]
[3000,3200,32902,null,null,2,5,null,"Otros Servicios de Salud","K027","Mantenimiento de infraestructura"]
[3000,3200,32903,null,null,2,5,null,"Otros Servicios de Salud","K028","Estudios de preinversión"]
[3000,3300,33101,null,null,2,5,null,"Otros Servicios de Salud","K029","Programa de Adquisiciones"]
[3000,3300,33102,null,null,2,5,null,"Otros Servicios de Salud","M002","Gastos Administrativos por Operación de Fondos y Seguros"]
[3000,3300,33103,null,null,2,5,null,"Otros Servicios de Salud","R001","Provisiones para el Programa de Fortalecimiento del ISSSTE"]
[3000,3300,33104,null,null,2,5,null,"Otros Servicios de Salud","W001","Operaciones ajenas"]
[3000,3300,33105]
[3000,3300,3320]
[3000,3300,33301]
[3000,3300,33302]
[3000,3300,33303]
[3000,3300,33304]
[3000,3300,3340]
[3000,3300,3350]
[3000,3300,33601]
[3000,3300,33602]
[3000,3300,33603]
[3000,3300,33604]
[3000,3300,33605]
[3000,3300,33606]
[3000,3300,33701]
[3000,3300,33702]
[3000,3300,3380]
[3000,3300,33901]
[3000,3300,33902]
[3000,3300,33903]
[3000,3300,33904]
[3000,3300,33905]
[3000,3300,33906]
[3000,3400,3410]
[3000,3400,3420]
[3000,3400,3430]
[3000,3400,3440]
[3000,3400,3450]
[3000,3400,3460]
[3000,3400,3470]
[3000,3400,3480]
[3000,3400,3490]
[3000,3500,35101]
[3000,3500,35102]
[3000,3500,3520]
[3000,3500,3530]
[3000,3500,3540]
[3000,3500,3550]
[3000,3500,3560]
[3000,3500,35701]
[3000,3500,35702]
[3000,3500,3580]
[3000,3500,3590]
[3000,3600,3610]
[3000,3600,3620]
[3000,3600,3630]
[3000,3600,3640]
[3000,3600,3650]
[3000,3600,3660]
[3000,3600,3690]
[3000,3700,37101]
[3000,3700,37102]
[3000,3700,37103]
[3000,3700,37104]
[3000,3700,37105]
[3000,3700,37106]
[3000,3700,37201]
[3000,3700,37202]
[3000,3700,37203]
[3000,3700,37204]
[3000,3700,37205]
[3000,3700,37206]
[3000,3700,37207]
[3000,3700,37301]
[3000,3700,37302]
[3000,3700,37303]
[3000,3700,37304]
[3000,3700,3740]
[3000,3700,37501]
[3000,3700,37502]
[3000,3700,37503]
[3000,3700,37504]
[3000,3700,37601]
[3000,3700,37602]
[3000,3700,3770]
[3000,3700,37801]
[3000,3700,37802]
[3000,3700,3790]
[3000,3800,38101]
[3000,3800,38102]
[3000,3800,38103]
[3000,3800,3820]
[3000,3800,3830]
[3000,3800,3840]
[3000,3800,3850]
[3000,3900,3910]
[3000,3900,39201]
[3000,3900,39202]
[3000,3900,3930]
[3000,3900,39401]
[3000,3900,39402]
[3000,3900,39403]
[3000,3900,3950]
[3000,3900,39601]
[3000,3900,39602]
[3000,3900,3970]
[3000,3900,3980]
[3000,3900,39901]
[3000,3900,39902]
[3000,3900,39904]
[3000,3900,39905]
[3000,3900,39906]
[3000,3900,39907]
[3000,3900,39908]
[3000,3900,39909]
[3000,3900,39910]
[4000,4100,4110]
[4000,4100,4120]
[4000,4100,4130]
[4000,4100,4140]
[4000,4100,4150]
[4000,4100,4160]
[4000,4100,4170]
[4000,4100,4180]
[4000,4100,4190]
[4000,4200,4210]
[4000,4200,4220]
[4000,4200,4230]
[4000,4200,4240]
[4000,4200,4250]
[4000,4300,4310]
[4000,4300,4320]
[4000,4300,4330]
[4000,4300,4340]
[4000,4300,4350]
[4000,4300,4360]
[4000,4300,4370]
[4000,4300,4380]
[4000,4300,43901]
[4000,4300,43902]
[4000,4400,44101]
[4000,4400,44102]
[4000,4400,44103]
[4000,4400,44104]
[4000,4400,44105]
[4000,4400,44106]
[4000,4400,4420]
[4000,4400,4430]
[4000,4400,44401]
[4000,4400,44402]
[4000,4400,4450]
[4000,4400,4460]
[4000,4400,4470]
[4000,4400,4480]
[4000,4500,4510]
[4000,4500,45201]
[4000,4500,45202]
[4000,4500,45203]
[4000,4500,45901]
[4000,4500,45902]
[4000,4600,46101]
[4000,4600,46102]
[4000,4600,4620]
[4000,4600,4630]
[4000,4600,4640]
[4000,4600,4650]
[4000,4600,4660]
[4000,4600,4690]
[4000,4700,47101]
[4000,4700,47102]
[4000,4800,4810]
[4000,4800,4820]
[4000,4800,4830]
[4000,4800,4840]
[4000,4800,4850]
[4000,4900,4910]
[4000,4900,49201]
[4000,4900,49202]
[4000,4900,4930]
[7000,7100,7110]
[7000,7100,7120]
[7000,7200,7210]
[7000,7200,7220]
[7000,7200,7230]
[7000,7200,7240]
[7000,7200,7250]
[7000,7200,7260]
[7000,7200,7270]
[7000,7200,7280]
[7000,7200,7290]
[7000,7300,7310]
[7000,7300,7320]
[7000,7300,7330]
[7000,7300,7340]
[7000,7300,7350]
[7000,7300,73901]
[7000,7300,73902]
[7000,7300,73903]
[7000,7400,7410]
[7000,7400,7420]
[7000,7400,7430]
[7000,7400,7440]
[7000,7400,74501]
[7000,7400,74502]
[7000,7400,74503]
[7000,7400,74504]
[7000,7400,74505]
[7000,7400,74506]
[7000,7400,7460]
[7000,7400,7470]
[7000,7400,7480]
[7000,7400,7490]
[7000,7500,7510]
[7000,7500,7520]
[7000,7500,7530]
[7000,7500,7540]
[7000,7500,7550]
[7000,7500,75601]
[7000,7500,75602]
[7000,7500,7570]
[7000,7500,7580]
[7000,7500,7590]
[7000,7600,7610]
[7000,7600,7620]
[7000,7900,7910]
[7000,7900,7920]
[7000,7900,79901]
[7000,7900,79902]
[5000,5100,5110]
[5000,5100,5120]
[5000,5100,5130]
[5000,5100,5140]
[5000,5100,5150]
[5000,5100,51901]
[5000,5100,51902]
[5000,5200,5210]
[5000,5200,5220]
[5000,5200,5230]
[5000,5200,5290]
[5000,5300,5310]
[5000,5300,5320]
[5000,5400,54101]
[5000,5400,54102]
[5000,5400,54103]
[5000,5400,54104]
[5000,5400,54105]
[5000,5400,5420]
[5000,5400,54301]
[5000,5400,54302]
[5000,5400,54303]
[5000,5400,5440]
[5000,5400,54501]
[5000,5400,54502]
[5000,5400,54503]
[5000,5400,5490]
[5000,5500,55101]
[5000,5500,55102]
[5000,5600,5610]
[5000,5600,5620]
[5000,5600,5630]
[5000,5600,5640]
[5000,5600,5650]
[5000,5600,5660]
[5000,5600,5670]
[5000,5600,56901]
[5000,5600,56902]
[5000,5700,5710]
[5000,5700,5720]
[5000,5700,5730]
[5000,5700,5740]
[5000,5700,5750]
[5000,5700,5760]
[5000,5700,5770]
[5000,5700,5780]
[5000,5700,5790]
[5000,5800,5810]
[5000,5800,5820]
[5000,5800,5830]
[5000,5800,58901]
[5000,5800,58902]
[5000,5800,58903]
[5000,5800,58904]
[5000,5900,5910]
[5000,5900,5920]
[5000,5900,5930]
[5000,5900,5940]
[5000,5900,5950]
[5000,5900,5960]
[5000,5900,5970]
[5000,5900,5980]
[5000,5900,5990]
[6000,6100,6110]
[6000,6100,6120]
[6000,6100,6130]
[6000,6100,6140]
[6000,6100,6150]
[6000,6100,6160]
[6000,6100,6170]
[6000,6100,6190]
[6000,6200,62101]
[6000,6200,62102]
[6000,6200,62201]
[6000,6200,62202]
[6000,6200,62301]
[6000,6200,62302]
[6000,6200,62401]
[6000,6200,62402]
[6000,6200,62403]
[6000,6200,62501]
[6000,6200,62502]
[6000,6200,62601]
[6000,6200,62602]
[6000,6200,6270]
[6000,6200,62901]
[6000,6200,62902]
[6000,6200,62903]
[6000,6200,62904]
[6000,6200,62905]
[6000,6300,6310]
[6000,6300,6320]
[9000,9900,9910]

{"sheet":"Instructivo","index":1,"n_rows":112,"n_cols":10,"rows_kept":112,"cut":false,"hidden":false,"merged":[[111,1,111,14],[63,9,63,12],[64,9,64,12],[83,2,83,14],[85,2,85,14],[88,3,88,5],[98,3,98,14],[99,3,99,14],[100,3,100,14],[101,3,101,14],[104,3,104,5],[109,3,109,5],[65,9,65,12],[66,9,66,12],[67,9,67,12],[68,9,68,12],[62,9,62,12],[27,1,27,14],[29,1,29,14],[31,1,31,14],[32,2,32,14],[33,2,33,14],[35,1,35,14],[37,1,37,14],[55,1,55,14],[57,2,57,14],[60,9,60,12],[61,9,61,12],[25,1,25,14],[6,1,6,14],[10,1,10,14],[13,2,13,14],[14,2,14,14],[15,2,15,14],[16,2,16,14],[17,2,17,14],[19,1,19,14],[21,1,21,14],[22,1,22,14],[23,1,23,14]]}
[]
[null,null,null,null,null,null,"Subsecretaria de Políticas de Salud y Bienestar Poblacional"]
[null,null,null,null,null,null,"Dirección General de Información en Salud"]
[null,null,null,null,null,null,"Subsistema de Cuentas en Salud a Nivel Federal y Estatal (SICUENTAS)"]
[null,null,null,null,null,null,"INSTRUCTIVO DE LLENADO"]
[]
[null,"Este formato tiene como objetivo recopilar información detallada sobre el gasto en salud realizado durante el ejercicio 2024 por los diferentes tipos de establecimientos (hospitales, centros de salud, etc.) y unidades administrativas centrales (direcciones de planeación, finanzas, recursos humanos, etc.). La información se registrará utilizando los clasificadores de la administración pública: el Clasificador por Actividad Institucional (CAI) y el Clasificador por Objeto del Gasto (COG). Adicionalmente, el gasto se codificará según el clasificador de la Organización Mundial de la Salud (OMS) de Funciones de Atención (HC/CFA)."]
[]
[null,"Estructura del Formato:"]
[]
[null,"1. La pestaña “Resumen de Calidad” presenta los resultados de los atributos de calidad requeridos en la información: Cobertura Oportuna, Validez, Integridad y Consistencia.\nDado que el reporte del gasto público en salud debe realizarse a nivel de unidad (hospitales generales, hospitales especializados, centros de salud, establecimientos de apoyo, etc.), los indicadores de calidad permiten evaluar esta solicitud de información consolidada, conforme a los clasificadores requeridos.\nUna vez completado el llenado de la matriz, el cuadro de “Semáforo de calidad” mostrará el desempeño del usuario en la clasificación y codificación de datos."]
[]
[null,"Instrucciones generales para el llenado y evaluación:"]
[null,null,"a. Antes de proceder a la evaluación de la calidad, es indispensable llenar completamente la matriz, requisitando todas las columnas correspondientes para cada unidad, utilizando los catálogos oficiales y conforme a las especificaciones descritas a continuación."]
[null,null,"b. Una vez concluido el llenado de la matriz, dirigirse a la pestaña \"Resumen de Calidad\" y dar clic el botón \"Evaluación\". Es necesario verificar que todos los validadores de calidad cumplan con los criterios establecidos, a saber:"]
[null,null,"\u009f Cobertura Oportuna: debe alcanzar una calificación mínima de 50 puntos (la DGIS complementará esta calificación con base en la fecha de recepción).","Cobertura Oportuna: debe alcanzar una calificación mínima de 50 puntos (la DGIS complementará esta calificación con base en la fecha de recepción)."]
[null,null,"\u009f Validez e Integridad: deben obtener una calificación de 100 puntos cada una."]
[null,null,"\u009f Consistencia: se registrará inicialmente en cero; esta evaluación será incorporada por la DGIS al inicio del proceso de revisión."]
[null,"Especificaciones:"]
[null,"a) La codificación Espacio-Temporal debe completarse para toda la información incluida en la matriz.\nb) La Información Presupuestal se codifica en la pestaña \"Notas\". En esta misma sección, en caso de no reportar o codificar alguna fuente de financiamiento, explique la razón. Asimismo, indique cualquier detalle relevante que deba considerarse para el análisis y la adecuada interpretación de la información. Si no se dispone del valor Autorizado, Modificado o Autorizado del siguiente año de alguna fuente, registre ceros. En caso de no contar con observaciones o comentarios específicos, indicar expresamente: \"Sin comentarios adicionales.\"\nc) Para que la información se reciba y se registre como \"entregada\", los valores del Semáforo de Calidad deberán cumplir con las características descritas en el punto b. del presente instructivo."]
[]
[null,"2. La pestaña “XX.Institución-2024” es la matriz de gasto donde cada Institución debe integrar la información del Ejercicio de Gasto 2024. Para conocer la metodología de codificación y clasificación, se ponen a disposición de los usuarios los Manuales para la codificación Espacio Temporal, la Clasificación por Actividad Institucional, la Clasificación por Objeto del Gasto y la Clasificación por Funciones de Atención en la siguiente dirección electrónica:"]
[null,"http://sinba.salud.gob.mx/SSASICUENTAS"]
[null,"Este archivo incluye una pestaña por cada catálogo de equivalencias necesario para completar la codificación de la matriz."]
[]
[null,"3. Para llenar las columnas A-E y la columna Q (Codificación Espacio Temporal): Consulte la pestaña \"1.Catálogo Espacio Temporal\", la cual contiene los catálogos de entidades federativas, fuentes de financiamiento, grupos de proveedores y establecimientos de salud."]
[]
[null,"4. Para llenar las columnas F-M (Clasificador por Actividad Institucional - CAI): Utilice la información del catálogo que se encuentra en la pestaña \"2.Catálogo CAI\". La estructura funcional de cada proveedor determinará cuáles de estas columnas se deben codificar. Al utilizar el formato correspondiente al grupo de proveedor, los validadores identificarán si las claves se están aplicando correctamente en estas columnas."]
[]
[null,"5. Para llenar las columnas N-P (Clasificador por Objeto del Gasto - COG): Utilice la estructura del catálogo en la pestaña \"3.Catálogo COG\". Codifique las partidas específicas cuando formen parte de un grupo que contenga más de una variable. Si una partida genérica solo tiene una desagregación específica, manténgala a nivel genérico (sin desagregar). Esto significa que en la columna P pueden coexistir claves de 4 y 5 dígitos, según corresponda. El validador considerará las claves correctas solo si también están correctamente codificados el capítulo y el concepto."]
[]
[null,"6. Para llenar las columnas S-V (Clasificador por Funciones de Atención - HC/CFA): La codificación de estas columnas se basa en dos criterios, según el tipo de gasto:"]
[null,null,"\u009f Gasto de Inversión (Capítulos 5000 y 6000): Para su codificación, consulte las equivalencias entre el Clasificador por Objeto del Gasto (COG) y las Funciones de Atención (CFA) que se encuentran en la pestaña \"4.Equivalencias COG=CFA\"."]
[null,null,"\u009f Gasto Corriente (Capitulos 1000-4000): Para su codificación, consulte las equivalencias entre el tipo de unidad y el Clasificador por Actividad Institucional (CAI) que se encuentran en la pestaña \"5.Equivalencias CAI=CFA\"."]
[]
[null,"7. Para llenar la columna W (Monto del Presupuesto Ejercido 2024): Registre en esta columna los montos correspondientes al Presupuesto Ejercido durante el ejercicio fiscal 2024. Los montos deben expresarse en miles de pesos con dos decimales."]
[]
[null,"8. El nombre de la pestaña que contiene la matriz de gasto debe ser modificado según los siguientes criterios:"]
[null,null,"XX.","Número de Cve_Edo_Ins (ver pestaña 1.Catálogo Espacio Temporal)"]
[null,null,"Institución","Es el acrónimo de la institución que reporta la información"]
[null,null,-2024,"No se modifica, indica el año del ejercicio presupuestal que se reporta"]
[null,"Ejemplo: Instituto de Seguridad y Servicios Sociales de los Trabajadores del Estado"]
[null,null,null,"35.ISSSTE-2024"]
[]
[null,"9. El nombre del archivo debe modificarse según cada institución de la siguiente manera:"]
[null,null,"1.XX. ","Número de Cve_Edo_Ins (ver pestaña COD Espacial)"]
[null,null,"MATRIZ","Acrónimo de la Institución que reporta"]
[null,null,"_XXX-2025","Se modifica según el grupo de proveedor y año en que se reporta la información"]
[null,"Ejemplo: Instituto de Seguridad Social para las Fuerzas Armadas Mexicanas y Secretaria de Marina"]
[null,null,null,"39.ISSFAM_ISS-2025"]
[null,null,null,"38.SEMAR_FA-2025"]
[]
[]
[null,"Criterios de evaluación"]
[]
[null,"La Norma Oficial Mexicana NOM-035-SSA3-2012, en materia de información en salud, establece la medición de criterios de calidad, los cuales son fundamentales para asegurar la utilidad y confiabilidad de los datos recopilados. Los cuatro criterios que se evalúan en este archivo, y que se enfocan en la calidad de la información plasmada en la matriz de gasto, son los siguientes:"]
[]
[null,null,"\u009f Cobertura Oportuna: Este componente de calidad mide que la totalidad de la información financiera sea entregada a tiempo y completa en la fecha establecida en la solicitud. Se penalizará cada día de retraso y la escasez en la entrega. La calificación de este criterio será completada por la DGIS al registrar la fecha de recepción del archivo."]
[]
[null,null,"Penalización por días de retraso en la calificación de Oportunidad",null,null,null,null,null,"Fuentes de financiamiento solicitadas por grupo de proveedor (SSA)"]
[null,null,"Días hábiles de retraso","Penalización","Puntaje de oportunidad","Calificación",null,null,"Cve_FF","Descripción"]
[null,null,0,0,1,100,null,null,"A01","Ramo 07 (SEDENA)"]
[null,null,1,0.05,0.95,95,null,null,"A03","Ramo 13 (SEMAR)"]
[null,null,2,0.1,0.9,90,null,null,"A04","Ramo 19 (IMSS-BIENESTAR)"]
[null,null,3,0.15,0.85,85,null,null,"A07","Instituto de Seguridad y Servicios Sociales de los Trabajadores del Estado (ISSSTE)"]
[null,null,4,0.2,0.8,80,null,null,"A08","Instituto Mexicano del Seguro Social (IMSS)"]
[null,null,5,0.25,0.75,75,null,null,"A09","Petróleos Mexicanos (PEMEX)"]
[null,null,6,0.3,0.7,70,null,null,"A10","Instituto de Seguridad Social para las Fuerzas Armadas Mexicanas (ISSFAM)"]
[null,null,7,0.35,0.65,65,null,null,"A11","Instituciones de Seguridad Social de las Entidades Federativas (ISSES)"]
[null,null,8,0.4,0.6,60,null,null,"Nota: La fuente de financiamiento depende del proveedor que reporta la información;"]
[null,null,9,0.45,0.55000000000000004,55,null,null,"cada proveedor debe registrar únicamente la fuente que le corresponde. No se deben"]
[null,null,10,0.5,0.5,50,null,null,"capturar todas las fuentes del catálogo, solo la que aplique."]
[null,null,11,0.55000000000000004,0.45,45]
[null,null,12,0.6,0.4,40]
[null,null,13,0.65,0.35,35]
[null,null,14,0.7,0.3,30]
[null,null,15,0.75,0.25,25]
[null,null,16,0.8,0.2,20]
[null,null,17,0.85,0.15,15]
[null,null,18,0.9,0.1,10]
[null,null,19,0.95,0.05,5]
[null,null,"20 o más",1,0,0]
[]
[null,null,"\u009f Validez: La Validez mide la proporción de la información fuera de los rangos y valores permitidos. Los rangos considerados como referencia para evaluar la información del Gasto en Salud recibida son los que se encuentran disponibles en la Cuenta de la Hacienda Pública Federal, cuentas públicas estatales o información histórica disponible."]
[]
[null,null,"\u009f Integridad: Mide la completitud en los requerimientos de la información. Se enlistaron una serie de criterios a los que se les asignó una ponderación, los cuales deben verse reflejados en la codificación de la Matriz de Gasto."]
[]
[null,null,"Ponderaciones de integridad para el ejercicio 2024"]
[null,null,null,"Criterio",null,null,"Ponderación"]
[null,null,1,"Codificación en el formato correspondiente",null,null,10]
[null,null,2,"Información Presupuestal",null,null,10]
[null,null,3,"Notas a Fuentes de Financiamiento",null,null,20]
[null,null,4,"Clasificación por Objeto de Gasto",null,null,20]
[null,null,5,"Clasificación por Actividad Institucional ",null,null,20]
[null,null,6,"Clasificación por Funciones de atención",null,null,20]
[]
[null,null,"\u009f Consistencia: La consistencia mide la coherencia interna entre los datos que registra y codifica cada proveedor. Se evaluarán los siguientes criterios:"]
[]
[null,null,null,"Codificación Espacio-Temporal: Las codificaciones del año del ejercicio, fuentes de financiamiento, proveedor y entidad federativa deben estar correctamente asignadas según el catálogo correspondiente (pestaña \"1.Catálogo Espacio Temporal\")."]
[null,null,null,"Codificación del clasificador COG: La cuenta de Capital debe coincidir con lo reportado en la cuenta pública y en la entrega de la matriz. Las partidas Genéricas y Específicas deben corresponder al concepto y capitulo según el catálogo. La tendencia histórica debe ser estable."]
[null,null,null,"Codificación del clasificador CAI: Se verifica que la distribución del gasto por subfunción sea coherente con ejercicios anteriores, considerando la tendencia histórica. Cambios significativos deben estar justificados, ya que podrían reflejar errores de codificación o clasificación."]
[null,null,null,"Codificación por Funciones de Atención: Deben estar correctamente asignadas las equivalencias COG=CFA en la cuenta de capital y las equivalencias UM=CAI=CFA en la cuenta corriente. La Cuenta corriente solo deben reportarse capítulos 1000 al 4000 y en la cuenta de capital solo deben reportarse capítulos 5000, 6000 y 9000. El gasto de capacitación e investigación y desarrollo (HKR.4) ahora se clasifica en la función principal de la unidad o del sistema de salud. El gasto administrativo (HC.7.1) solo debe reportarse en unidades administrativas."]
[]
[null,null,"Ponderaciones de Consistencia para el ejercicio 2024"]
[null,null,null,"Criterio",null,null,"Valoración"]
[null,null,1,"Montos valorados en Miles de pesos",null,null,20]
[null,null,2,"Codificación Espacio-Temporal",null,null,20]
[null,null,3,"Codificación del clasificador COG",null,null,20]
[null,null,4,"Codificación del clasificador CAI",null,null,20]
[null,null,5,"Codificación por Funciones de Atención COG=CFA y UM=CAI=CFA",null,null,20]
[]
[null,"Se recomienda consultar el documento \"Metodología para generar el indicador de calidad de la Información del subsistema SICUENTAS\" para conocer la metodología detallada del cálculo de estos componentes de calidad. Adicionalmente, para que la información se reciba y se registre como \"entregada\", la Cobertura Oportuna debe alcanzar una calificación de 50 puntos (la DGIS completará esta calificación añadiendo la fecha de recepción). La Validez y la Integridad deben obtener una calificación de 100 puntos, y la Consistencia se registrará en ceros (la DGIS AÑADIRÁ ESTA EVALUACIÓN al iniciar el proceso de revisión)."]

{"sheet":"Resumen de Calidad","index":2,"n_rows":54,"n_cols":8,"rows_kept":54,"cut":false,"hidden":false,"merged":[]}
[]
[null,null,"Subsecretaria de Políticas de Salud y Bienestar Poblacional"]
[null,null,"Dirección General de Información en Salud"]
[null,null,"Subsistema de Cuentas en Salud a Nivel Federal y Estatal (SICUENTAS)"]
[null,null,{"$f":"IF(B10=\"\", \"\",\nIF(OR(B10=33,B10=34,B10=35,B10=36,B10=39), \"Instituciones de Seguridad Social\",\nIF(OR(B10=37,B10=38), \"Fuerzas Armadas\",\nIF(OR(B10=40,B10=41,B10=42,B10=43,B10=44,B10=45,B10=46,B10=47), \"Instituciones de Seguridad Social Estatales (ISSES)\", \"\"))))","v":""}]
[]
[null,null,"Semáforo de Calidad"]
[]
[null,"CVE_Proveedor ","Entidad Federativa","Cobertura Oportuna","Validez","Integridad","Consistencia","Calificación"]
[null,{"$f":"IF('XX.Institución-2024'!D2=\"\",\"\",'XX.Institución-2024'!D2)","v":""},{"$f":"IFERROR(VLOOKUP($B$10,'Base Maestra'!$A$5:$C$21,3,FALSE),\"\")","v":""},{"$f":"IF(IF(ISNUMBER(F16)*ISNUMBER(F24),(F16+F24)/2,IF(ISNUMBER(F16),F16/2,IF(ISNUMBER(F24),F24/2,\"\")))=0,\"\",IF(ISNUMBER(F16)*ISNUMBER(F24),(F16+F24)/2,IF(ISNUMBER(F16),F16/2,IF(ISNUMBER(F24),F24/2,\"\"))))","v":""},{"$f":"IF(F33=0,\"\",F33)","v":""},{"$f":"IF(F44=0,\"\",F44)","v":""},{"$f":"IF(F54=0,\"\",F54)","v":""},{"$f":"IFERROR(IF(AVERAGE(D10:G10)=0,\"\",AVERAGE(D10:G10)),\"\")","v":""}]
[]
[null,"1. Cobertura Oportuna "]
[]
[null,"a) Entrega a tiempo"]
[null,"Cve_Ins","Institución","Fecha de solicitud","Fecha de entrega","Evaluación"]
[null,{"$f":"B10","v":""},{"$f":"C10","v":""},"2025-08-08",{"$f":"'Notas 2025'!H8","v":"00:00:00"},{"$f":"IFERROR(IF(((NETWORKDAYS(D16,E16))-1)>19,0,VLOOKUP(((NETWORKDAYS(D16,E16))-1),'Base Maestra'!$P$4:$S$26,4,FALSE)),\"Validación DGIS\")","v":"Validación DGIS"}]
[]
[null,"b) Entrega Completa"]
[null,"Cve_FF","Descripción","Número de Registros","Estatus","Evaluación"]
[null,{"$f":"IF($B$10=98,\"A06\",(IFERROR(VLOOKUP($B$10,'Base Maestra'!$A$5:$N$21,14,FALSE),\"\")))","v":""},{"$f":"IF($B20=\"A06\",\"Gasto Estatal\",$C$10)","v":""},{"$f":"IF(B20=\"\",\"\",(COUNTIF('XX.Institución-2024'!E:E,'Resumen de Calidad'!$B$20)))","v":""},{"$f":"IF(B20=\"\",\"\",(IF(D20>=4,\"þ\",\"ý\")))","v":""},{"$f":"IF(E20=\"þ\",(IF(B10=98,25,100)),\"\")","v":""}]
[null,{"$f":"IF($B$10=98,\"A06-ASE_30%\",\"\")","v":""},{"$f":"IF($B21=\"A06-ASE_30%\",\"Aportación Solidaria Estatal en Especie 30%\",\"\")","v":""},{"$f":"IF(B21=\"\",\"\",(COUNTIF('XX.Institución-2024'!E:E,'Resumen de Calidad'!$B$21)))","v":""},{"$f":"IF(B21=\"\",\"\",(IF(D21>=2,\"þ\",\"ý\")))","v":""},{"$f":"IF(E21=\"þ\",25,\"\")","v":""}]
[null,{"$f":"IF($B$10=98,\"A06-ASE_70%\",\"\")","v":""},{"$f":"IF($B22=\"A06-ASE_70%\",\"Aportación Solidaria Estatal Liquida 70%\",\"\")","v":""},{"$f":"IF(B22=\"\",\"\",(COUNTIF('XX.Institución-2024'!E:E,'Resumen de Calidad'!$B$22)))","v":""},{"$f":"IF(B22=\"\",\"\",(IF(D22>=2,\"þ\",\"ý\")))","v":""},{"$f":"IF(E22=\"þ\",25,\"\")","v":""}]
[null,{"$f":"IF($B$10=98,\"A17\",\"\")","v":""},{"$f":"IF($B23=\"A17\",\"Cuotas de recuperación\",\"\")","v":""},{"$f":"IF(B23=\"\",\"\",(COUNTIF('XX.Institución-2024'!E:E,'Resumen de Calidad'!$B$23)))","v":""},{"$f":"IF(B23=\"\",\"\",(IF(D23>=2,\"þ\",\"ý\")))","v":""},{"$f":"IF(E23=\"þ\",25,\"\")","v":""}]
[null,{"$f":"COUNTA(B20:B23)","v":4},"Cobertura",{"$f":"SUM(D20:D23)","v":0},null,{"$f":"IF(SUM(F20:F23)=0,\"\",SUM(F20:F23))","v":""}]
[]
[null,"2. Validez"]
[]
[null,"SF","Cve_Subfunción",{"$f":"IF(OR(B10=33,B10=34,B10=35,B10=36,B10=37,B10=38,B10=39,B10=40,B10=42,B10=44),\"Cuenta Pública 2024\",\"Información Histórica 2023\")","v":"Información Histórica 2023"},"Matriz de Gasto. Ejercicio 2024","Evaluación"]
[null,1,"Prestación de Servicios de Salud a la Comunidad",{"$f":"IFERROR(VLOOKUP($B10,'Base Maestra'!$A$4:$G$21,4,FALSE),\"\")","v":""},{"$f":"IFERROR(VLOOKUP($B10,'Base Maestra'!$A$4:$L$21,9,FALSE),\"\")","v":""},{"$f":"IF(OR(AND(D29=\"\", E29=\"\"), AND(D29=0, E29=0)), \"\",\n   ROUND(\n      IF(E29 >= D29, 100,\n         IF((D29 - E29)/D29 <= 0.03, 100,\n            IF((D29 - E29)/D29 >= 0.11, 0,\n               -12.5*(D29 - E29)/D29*100 + 137.5\n            )\n         )\n      ),\n   0)\n)","v":""}]
[null,2,"Prestación de Servicios de Salud a la Persona",{"$f":"IFERROR(VLOOKUP($B10,'Base Maestra'!$A$4:$G$21,5,FALSE),\"\")","v":""},{"$f":"IFERROR(VLOOKUP($B10,'Base Maestra'!$A$4:$L$21,10,FALSE),\"\")","v":""},{"$f":"IF(OR(AND(D30=\"\", E30=\"\"), AND(D30=0, E30=0)), \"\",\n   ROUND(\n      IF(E30 >= D30, 100,\n         IF((D30 - E30)/D30 <= 0.03, 100,\n            IF((D30 - E30)/D30 >= 0.11, 0,\n               -12.5*(D30 - E30)/D30*100 + 137.5\n            )\n         )\n      ),\n   0)\n)","v":""}]
[null,3,"Generación de Recursos para la Salud",{"$f":"IFERROR(VLOOKUP($B10,'Base Maestra'!$A$4:$G$21,6,FALSE),\"\")","v":""},{"$f":"IFERROR(VLOOKUP($B10,'Base Maestra'!$A$4:$L$21,11,FALSE),\"\")","v":""},{"$f":"IF(OR(AND(D31=\"\", E31=\"\"), AND(D31=0, E31=0)), \"\",\n   ROUND(\n      IF(E31 >= D31, 100,\n         IF((D31 - E31)/D31 <= 0.03, 100,\n            IF((D31 - E31)/D31 >= 0.11, 0,\n               -12.5*(D31 - E31)/D31*100 + 137.5\n            )\n         )\n      ),\n   0)\n)","v":""}]
[null,4,"Rectoría del Sistema de Salud",{"$f":"IFERROR(VLOOKUP($B10,'Base Maestra'!$A$4:$G$21,7,FALSE),\"\")","v":""},{"$f":"IFERROR(VLOOKUP($B10,'Base Maestra'!$A$4:$L$21,12,FALSE),\"\")","v":""},{"$f":"IF(OR(AND(D32=\"\", E32=\"\"), AND(D32=0, E32=0)), \"\",\n   ROUND(\n      IF(E32 >= D32, 100,\n         IF((D32 - E32)/D32 <= 0.03, 100,\n            IF((D32 - E32)/D32 >= 0.11, 0,\n               -12.5*(D32 - E32)/D32*100 + 137.5\n            )\n         )\n      ),\n   0)\n)","v":""}]
[null,null,"Variabilidad",{"$f":"IFERROR(VLOOKUP($B10,'Base Maestra'!$A$4:$H$21,8,FALSE),\"\")","v":""},{"$f":"IFERROR(VLOOKUP($B10,'Base Maestra'!$A$4:$M$21,13,FALSE),\"\")","v":""},{"$f":"IF(OR(AND(D33=\"\", E33=\"\"), AND(D33=0, E33=0)), \"\",\n   ROUND(\n      IF(E33 >= D33, 100,\n         IF((D33 - E33)/D33 <= 0.03, 100,\n            IF((D33 - E33)/D33 >= 0.11, 0,\n               -12.5*(D33 - E33)/D33*100 + 137.5\n            )\n         )\n      ),\n   0)\n)","v":""}]
[]
[null,"3.Integridad"]
[]
[null,null,"Criterio","Ponderación","Evaluación","Calificación"]
[null,1,"Codificación en el formato correspondiente",10,{"$f":"IF(D33=\"\",\"ý\",IF(D33<>0,\"þ\",\"ý\"))","v":"ý"},{"$f":"IF(E38=\"þ\",D38,\"\")","v":""}]
[null,2,"Información Presupuestal",10,{"$f":"IF(D33=\"\",\"ý\",(IF(((IF(AND(NOT(ISBLANK('Notas 2025'!B11)), NOT(ISBLANK('Notas 2025'!D11)), NOT(ISBLANK('Notas 2025'!E11)), NOT(ISBLANK('Notas 2025'!F11)), NOT(ISBLANK('Notas 2025'!G11))), \"1\", \"0\"))+(IF(AND(NOT(ISBLANK('Notas 2025'!B12)), NOT(ISBLANK('Notas 2025'!D12)), NOT(ISBLANK('Notas 2025'!E12)), NOT(ISBLANK('Notas 2025'!F12)), NOT(ISBLANK('Notas 2025'!G12))), \"1\", \"0\"))+(IF(AND(NOT(ISBLANK('Notas 2025'!B13)), NOT(ISBLANK('Notas 2025'!D13)), NOT(ISBLANK('Notas 2025'!E13)), NOT(ISBLANK('Notas 2025'!F13)), NOT(ISBLANK('Notas 2025'!G13))), \"1\", \"0\"))+(IF(AND(NOT(ISBLANK('Notas 2025'!B14)), NOT(ISBLANK('Notas 2025'!D14)), NOT(ISBLANK('Notas 2025'!E14)), NOT(ISBLANK('Notas 2025'!F14)), NOT(ISBLANK('Notas 2025'!G14))), \"1\", \"0\")))='Resumen de Calidad'!$B$24,\"þ\", \"ý\")))","v":"ý"},{"$f":"IF(E39=\"þ\",D39,\"\")","v":""}]
[null,3,"Notas a Fuentes de Financiamiento",20,{"$f":"IF(D33=\"\",\"ý\",(IF(\n   SUM(\n     (AND(NOT(ISBLANK('Notas 2025'!B11)), NOT(ISBLANK('Notas 2025'!H11))) * 1),\n     (AND(NOT(ISBLANK('Notas 2025'!B12)), NOT(ISBLANK('Notas 2025'!H12))) * 1),\n     (AND(NOT(ISBLANK('Notas 2025'!B13)), NOT(ISBLANK('Notas 2025'!H13))) * 1),\n     (AND(NOT(ISBLANK('Notas 2025'!B14)), NOT(ISBLANK('Notas 2025'!H14))) * 1)\n   ) = B24,\n\"þ\",\n\"ý\")))","v":"ý"},""]
[null,4,"Clasificación por Objeto de Gasto",20,{"$f":"IF(\n   OR(COUNTA('XX.Institución-2024'!W:W)=0, COUNTA('XX.Institución-2024'!X:X)=0),\n   \"ý\",\n   IF(\n      COUNTA('XX.Institución-2024'!W:W) = COUNTA('XX.Institución-2024'!X:X),\n      IF(COUNTIF('XX.Institución-2024'!X:X, \"Revisar Catálogo\") >= 1, \"ý\", \"þ\"),\n      \"ý\"\n   )\n)","v":"ý"},""]
[null,5,"Clasificación por Actividad Institucional ",20,{"$f":"IF(\n   OR(COUNTA('XX.Institución-2024'!W:W)=0, COUNTA('XX.Institución-2024'!Y:Y)=0),\n   \"ý\",\n   IF(\n      COUNTA('XX.Institución-2024'!W:W) = COUNTA('XX.Institución-2024'!Y:Y),\n      IF(COUNTIF('XX.Institución-2024'!Y:Y, \"Revisar Catálogo\") >= 1, \"ý\", \"þ\"),\n      \"ý\"\n   )\n)","v":"ý"},{"$f":"IF(E42=\"þ\",D42,\"\")","v":""}]
[null,6,"Clasificación por Funciones de atención",20,{"$f":"IF(\n   OR(COUNTA('XX.Institución-2024'!W:W)=0, COUNTA('XX.Institución-2024'!Z:Z)=0),\n   \"ý\",\n   IF(\n      COUNTA('XX.Institución-2024'!W:W) = COUNTA('XX.Institución-2024'!Z:Z),\n      IF(COUNTIF('XX.Institución-2024'!Z:Z,\"Revisar Catálogo\") >= 1, \"ý\", \"þ\"),\n      \"ý\"\n   )\n)","v":"ý"},""]
[null,null,"Calificación",{"$f":"SUM(D38:D43)","v":100},null,{"$f":"IF(SUM(F38:F43)=0,\"\",SUM(F38:F43))","v":""}]
[]
[null,"4. Consistencia"]
[]
[null,null,"Criterio","Valoración","Evaluación","Calificación"]
[null,1,"Montos valorados en Miles de pesos",20,{"$f":"'Notas 2025'!D18","v":"þý"},{"$f":"IF(E49=\"þ\",D49,\"\")","v":""}]
[null,2,"Codificación Espacio-Temporal",20,{"$f":"'Notas 2025'!D19","v":0},{"$f":"IF(E50=\"þ\",D50,\"\")","v":""}]
[null,3,"Codificación del clasificador COG",20,{"$f":"'Notas 2025'!D20","v":0},{"$f":"IF(E51=\"þ\",D51,\"\")","v":""}]
[null,4,"Codificación del clasificador CAI",20,{"$f":"'Notas 2025'!D21","v":0},{"$f":"IF(E52=\"þ\",D52,\"\")","v":""}]
[null,5,"Codificación por Funciones de Atención COG=CFA y UM=CAI=CFA",20,{"$f":"'Notas 2025'!D22","v":0},{"$f":"IF(E53=\"þ\",D53,\"\")","v":""}]
[null,null,"Calificación",{"$f":"SUM(D49:D53)","v":100},null,{"$f":"IF(SUM(F49:F53)=0,\"\",SUM(F49:F53))","v":""}]

{"sheet":"XX.Institución-2024","index":3,"n_rows":2,"n_cols":26,"rows_kept":2,"cut":false,"hidden":false,"merged":[]}
["Año","Cve_Entidad Federativa","Cve_Proveedor","Cve_Ins","Cve_FF","Cve_Subfunción","Cve_AI","Cve_H","Actividad Institucional","Cve_PP","Programa Presupuestario","Cve_PI","Programa Institucional","Cve_Capítulo ","Cve_Concepto ","Cve_Partida genérica ó partida específica","CLUES/CLAVE","Nombre de unidad","Cve_Función","Cve_Subf","Cve_Actividad","Cve_Subactividad","Importe/Ejercido ","Estructura COG","Estructura CAI","Estrcutura CFA"]
[null,null,null,null,null,null,null,null,null,null,null,null,null,null,null,null,null,null,null,null,null,null,null,{"$f":"IF(W2<>\"\",(IF(COUNTIFS('Base Maestra'!$A$26:$A$519,N2,'Base Maestra'!$B$26:$B$519,O2,'Base Maestra'!$C$26:$C$519,P2)>0,\"Correcto\",\"Revisar Catálogo\")),\"\")","v":""},{"$f":"IF(W2<>\"\",(IF(OR(E2=\"A09\",E2=\"A04\",E2=\"A01\",E2=\"A03\",E2=\"A10\",E2=\"A11\",D2=98,D2=99),\nIF(COUNTIFS('Base Maestra'!$F$69:$F$178,F2,\n'Base Maestra'!$G$69:$G$178,G2,\n'Base Maestra'!$H$69:$H$178,H2,\n'Base Maestra'!$I$69:$I$178,I2)>0,\n\"Correcto\",\"Revisar Catálogo\"),\n IF(E2=\"A08\",\n    IF(COUNTIFS('Base Maestra'!$F$181:$F$193,F2,\n                          'Base Maestra'!$G$181:$G$193,G2,\n                          'Base Maestra'!$I$181:$I$193,I2,\n                          'Base Maestra'!$J$181:$J$193,J2,\n                          'Base Maestra'!$K$181:$K$193,K2)>0,\n       \"Correcto\",\"Revisar Catálogo\"),\n IF(E2=\"A07\",\n    IF(COUNTIFS('Base Maestra'!$F$196:$F$208,F2,\n                          'Base Maestra'!$G$196:$G$208,G2,\n                          'Base Maestra'!$I$196:$I$208,I2,\n                          'Base Maestra'!$J$196:$J$208,J2,\n                          'Base Maestra'!$K$196:$K$208,K2)>0,\n       \"Correcto\",\"Revisar Catálogo\"),\n \"\")))),\"\")","v":""},{"$f":"IF(W2<>\"\",(IF(SUMPRODUCT(('Base Maestra'!$F$26:$F$65=S2)*('Base Maestra'!$G$26:$G$65=T2)*('Base Maestra'!$H$26:$H$65=U2)*('Base Maestra'!$I$26:$I$65=V2))>0,\"Correcto\",\"Revisar Catálogo\")),\"\")","v":""}]

{"sheet":"Notas 2025","index":4,"n_rows":24,"n_cols":8,"rows_kept":24,"cut":false,"hidden":false,"merged":[[20,4,20,6],[21,4,21,6],[14,1,14,7],[16,4,16,6],[17,4,17,6],[18,4,18,6],[19,4,19,6]]}
[]
[null,null,null,"Subsecretaria de Políticas de Salud y Bienestar Poblacional"]
[null,null,null,"Dirección General de Información en Salud"]
[null,null,null,"Subsistema de Cuentas en Salud a Nivel Federal y Estatal (SICUENTAS)"]
[]
[]
[]
[null,{"$f":"'Resumen de Calidad'!B10","v":""},{"$f":"'Resumen de Calidad'!C10","v":""},null,null,null,"Fecha de Recepción:"]
[]
[null,"Cve_FF","Descripción","Autorizado","Modificado","Ejercido","Autorizado 2026","Notas"]
[null,{"$f":"'Resumen de Calidad'!B20","v":""},{"$f":"'Resumen de Calidad'!C20","v":""},null,null,{"$f":"SUMIFS('XX.Institución-2024'!$W:$W,'XX.Institución-2024'!$E:$E,'Notas 2025'!B11)","v":0}]
[null,"A06-ASE_30%","Aportación Solidaria Estatal en Especie 30%",null,null,{"$f":"SUMIFS('XX.Institución-2024'!$W:$W,'XX.Institución-2024'!$E:$E,'Notas 2025'!B12)","v":0}]
[null,"A06-ASE_70%","Aportación Solidaria Estatal Liquida 70%",null,null,{"$f":"SUMIFS('XX.Institución-2024'!$W:$W,'XX.Institución-2024'!$E:$E,'Notas 2025'!B13)","v":0}]
[null,"A17","Cuotas de recuperación",null,null,{"$f":"SUMIFS('XX.Institución-2024'!$W:$W,'XX.Institución-2024'!$E:$E,'Notas 2025'!B14)","v":0}]
[null,"Notas: En esta  sección, en caso de no reportar o codificar alguna fuente de financiamiento, explique la razón. Asimismo, indique cualquier detalle relevante que deba considerarse para el análisis y la adecuada interpretación de la información. Si no se dispone del valor Autorizado, Modificado o Autorizado del siguiente año de alguna fuente, registre ceros. En caso de no contar con observaciones o comentarios específicos, indicar expresamente: \"Sin comentarios adicionales.\""]
[]
[null,null,"Criterio","Evaluación","Observación",null,null,"Respuesta de la unidad"]
[null,1,"Montos valorados en Miles de pesos","þý"]
[null,2,"Codificación Espacio-Temporal"]
[null,3,"Codificación del clasificador COG"]
[null,4,"Codificación del clasificador CAI"]
[null,5,"Codificación por Funciones de Atención COG=CFA y UM=CAI=CFA"]
[]
[null,"Notas:"]

{"sheet":"1.Catálogo Espacio Temporal","index":5,"n_rows":37,"n_cols":15,"rows_kept":37,"cut":false,"hidden":false,"merged":[[11,12,13,14]]}
[]
[null,"1. Catálogo Espacio-Temporal de Institutuciones, Fuentes de Financiamiento, entidades federativas y tipos de unidad"]
[]
[null,"a) Institución",null,null,null,null,"b) Fuente de Financiamiento",null,null,"c) Entidad Federativa",null,null,"d) Claves para unidades sin CLUES"]
[null,"Cve_Proveedor","Cve_Ins","Nombre de unidad","Acrónimo ",null,"Cve_FF_VM ","Descripción",null,"Cve_Entidad Federativa","Descripción",null,"Tipo de Establecimiento","Nivel de atención","CLUES/CLAVE"]
[null,"ISS",33,"Instituto Mexicano del Seguro Social","IMSS",null,"A01","Ramo 07 (SEDENA)",null,1,"Aguascalientes",null,"Unidad Hospitalaria Especializada","Tercer Nivel de Atención","UTNA"]
[null,"ISS",34,"Instituto de Seguridad y Servicios Sociales de los Trabajadores del Estado","ISSSTE",null,"A03","Ramo 13 (SEMAR)",null,2,"Baja California",null,"Unidad Hospitalaria General","Segundo Nivel de Atención","USNA"]
[null,"ISS",35,"Petroleos Mexicanos","PEMEX",null,"A04","Ramo 19 (IMSS-BIENESTAR)",null,3,"Baja California Sur",null,"Unidad de Consulta Externa","Primer Nivel de Atención","UPNA"]
[null,"ISS",36,"Programa IMSS-Bienestar","IMSS-Bienestar",null,"A07","Instituto de Seguridad y Servicios Sociales de los Trabajadores del Estado (ISSSTE)",null,4,"Campeche",null,"Establecimiento de Apoyo (de tipología Oficinas Administrativas)","No aplica","UAC"]
[null,"ISS",39,"Instituto de Seguridad Social para las Fuerzas Armadas Mexicanas","ISSFAM",null,"A08","Instituto Mexicano del Seguro Social (IMSS)",null,5,"Coahuila",null,"Establecimiento de Apoyo","No aplica","UA"]
[null,"FA",37,"Secretaria de la Defensa Nacional","SEDENA",null,"A09","Petróleos Mexicanos (PEMEX)",null,6,"Colima"]
[null,"FA",38,"Secretaria de Marina","SEMAR",null,"A11","Instituciones de Seguridad Social de las Entidades Federativas (ISSES)",null,7,"Chiapas",null,"Nota: Para las unidades que no cuenten con CLUES se codificara la columna Q con las CLAVES de la Tabla anterior, según el tipo de unidad y respectando el nombre asignado por el proveedor de atención."]
[null,"ISSES",40,"Instituto de Seguridad y Servicios Sociales de los Trabajadores del Gobierno y Municipios del Estado de Baja California","ISSSTECALI",null,"A06","Gasto Estatal",null,8,"Chihuahua"]
[null,"ISSES",41,"Instituto de Seguridad Social de los Trabajadores del Estado de Campeche","ISSTECAM",null,"A06-ASE_30%","Aportación Solidaria Estatal en Especie 30%",null,9,"Ciudad de México"]
[null,"ISSES",42,"Servicio Médico de los Trabajadores de la Educación de Coahuila","SMTECoah",null,"A06-ASE_70%","Aportación Solidaria Estatal Liquida 70%",null,10,"Durango"]
[null,"ISSES",43,"Instituto de Seguridad Social de los Trabajadores del Estado de Chiapas","ISSTECH",null,"A17","Cuotas de recuperación",null,11,"Guanajuato"]
[null,"ISSES",44,"Instituto de Seguridad Social del Estado de México y Municipios","ISSEMyM",null,null,null,null,12,"Guerrero"]
[null,"ISSES",45,"Instituto de Seguridad y Servicios Sociales de los Trabajadores del Estado de Nuevo León","ISSSTELEON",null,null,null,null,13,"Hidalgo"]
[null,"ISSES",46,"Instituto de Seguridad y Servicios Sociales de los Trabajadores del Estado de Sonora","ISSSTESON",null,null,null,null,14,"Jalisco"]
[null,"ISSES",47,"Instituto de Seguridad Social de los Trabajadores del Estado de Yucatán","ISSTEY",null,null,null,null,15,"Estado de México"]
[null,"OPDE",98,"Hospital del Niño Morelense","HNM",null,null,null,null,16,"Michoacán"]
[null,"OPDE",99,"Instituto Materno Infantil del Estado de México","IMIEM",null,null,null,null,17,"Morelos"]
[null,null,null,null,null,null,null,null,null,18,"Nayarit"]
[null,null,null,null,null,null,null,null,null,19,"Nuevo León"]
[null,null,null,null,null,null,null,null,null,20,"Oaxaca"]
[null,null,null,null,null,null,null,null,null,21,"Puebla"]
[null,null,null,null,null,null,null,null,null,22,"Querétaro"]
[null,null,null,null,null,null,null,null,null,23,"Quintana Roo"]
[null,null,null,null,null,null,null,null,null,24,"San Luis Potosí"]
[null,null,null,null,null,null,null,null,null,25,"Sinaloa"]
[null,null,null,null,null,null,null,null,null,26,"Sonora"]
[null,null,null,null,null,null,null,null,null,27,"Tabasco"]
[null,null,null,null,null,null,null,null,null,28,"Tamaulipas"]
[null,null,null,null,null,null,null,null,null,29,"Tlaxcala"]
[null,null,null,null,null,null,null,null,null,30,"Veracruz"]
[null,null,null,null,null,null,null,null,null,31,"Yucatán"]
[null,null,null,null,null,null,null,null,null,32,"Zacatecas"]

{"sheet":"2.Catálgo CAI","index":6,"n_rows":176,"n_cols":10,"rows_kept":176,"cut":false,"hidden":false,"merged":[]}
[]
[null,"2. Estructura Programática Funcional del Instituto Mexicano del Seguro Social 2024"]
[]
[null,"Cve_Sub \nfunción","Cve_AI","Cve_H","Actividad Institucional","Cve_PP","Programa Presupuestario","Cve_PI","Programa Institucional","Indicador"]
[null,2,null,null,"Prestación de Servicios de Salud a la Persona"]
[null,null,2,null,"Servicios de apoyo administrativo"]
[null,2,2,null,"Servicios de apoyo administrativo","M001","Actividades de apoyo administrativo",null,null,"VR"]
[null,2,2,null,"Servicios de apoyo administrativo","W001","Operaciones ajenas",null,null,"VR"]
[null,null,3,null,"Eficacia en la atención médica preventiva"]
[null,2,3,null,"Eficacia en la atención médica preventiva","E001","Prevención y control de enfermedades",null,null,"VR"]
[null,null,4,null,"Oportunidad en la atención curativa, quirúrgica, hospitalaria y de rehabilitación"]
[null,2,4,null,"Oportunidad en la atención curativa, quirúrgica, hospitalaria y de rehabilitación","E003","Atención a la Salud en el Trabajo",null,null,"VR"]
[null,2,4,null,"Oportunidad en la atención curativa, quirúrgica, hospitalaria y de rehabilitación","E011","Atención a la Salud",null,null,"VR"]
[null,2,4,null,"Oportunidad en la atención curativa, quirúrgica, hospitalaria y de rehabilitación","K012","Proyectos de infraestructura social de asistencia y seguridad social",null,null,"VR"]
[null,2,4,null,"Oportunidad en la atención curativa, quirúrgica, hospitalaria y de rehabilitación","K027","Mantenimiento de infraestructura",null,null,"VR"]
[null,2,4,null,"Oportunidad en la atención curativa, quirúrgica, hospitalaria y de rehabilitación","K028","Estudios de preinversión",null,null,"VR"]
[null,2,4,null,"Oportunidad en la atención curativa, quirúrgica, hospitalaria y de rehabilitación","K029","Programas de adquisiciones",null,null,"VR"]
[null,2,4,null,"Oportunidad en la atención curativa, quirúrgica, hospitalaria y de rehabilitación","M001","Actividades de apoyo administrativo",null,null,"VR"]
[null,3,null,null,"Generación de Recursos para la Salud"]
[null,null,5,null,"Servicios de incorporación y recaudación"]
[null,3,5,null,"Servicios de incorporación y recaudación","E006","Recaudación de ingresos obrero patronales",null,null,"VR"]
[null,3,5,null,"Servicios de incorporación y recaudación","M001","Actividades de apoyo administrativo",null,null,"VR"]
[]
[null,"2. Estructura Programática Funcional del Instituto de Seguridad y Servicios Sociales de los Trabajadores del Estado 2024"]
[]
[null,"Cve_Sub\nfunción","Cve_AI","Cve_H","Actividad Institucional","Cve_PP","Programa Presupuestario","Cve_PI","Programa Institucional","Indicador"]
[null,2,null,null,"Prestación de Servicios de Salud a la Persona"]
[null,2,2,null,"Servicios de apoyo administrativo","K029","Programa de Adquisiciones",null,null,"VR"]
[null,2,3,null,"Cobertura de la atención médica preventiva"]
[null,2,3,null,"Cobertura de la atención médica preventiva","E043","Prevención y control de enfermedades",null,null,"VR"]
[null,2,4,null,"Cobertura de la atención médica curativa"]
[null,2,4,null,"Cobertura de la atención médica curativa","E044","Atención a la Salud",null,null,"VR"]
[null,2,5,null,"Otros Servicios de Salud"]
[null,2,5,null,"Otros Servicios de Salud","E018","Suministro de Claves de Medicamentos",null,null,"VR"]
[null,2,5,null,"Otros Servicios de Salud","E044","Atención a la Salud",null,null,"VR"]
[null,2,5,null,"Otros Servicios de Salud","K011","Proyectos de infraestructura social",null,null,"VR"]
[null,2,5,null,"Otros Servicios de Salud","K027","Mantenimiento de infraestructura",null,null,"VR"]
[null,2,5,null,"Otros Servicios de Salud","K028","Estudios de preinversión",null,null,"VR"]
[null,2,5,null,"Otros Servicios de Salud","K029","Programa de Adquisiciones",null,null,"VR"]
[null,2,5,null,"Otros Servicios de Salud","M002","Gastos Administrativos por Operación de Fondos y Seguros",null,null,"VR"]
[null,2,5,null,"Otros Servicios de Salud","R001","Provisiones para el Programa de Fortalecimiento del ISSSTE",null,null,"VR"]
[null,2,5,null,"Otros Servicios de Salud","W001","Operaciones ajenas",null,null,"VR"]
[]
[null,"2. Estructura Programática Funcional de las Entidades a nivel Actividad Homologada 2024 (Aplicable a ISSES, PEMEX, IMSS-Bienestar, SEDENA, SEMAR e ISSFAM)"]
[]
[null,"Cve_Subfunción","Cve_AI","Cve_H","Actividad Institucional","Cve_PP","Programa Presupuestario","Cve_PI","Programa Institucional","Indicador"]
[null,1,null,null,"Prestación de Servicios de Salud a la Comunidad"]
[null,1,2,null,"Servicios de apoyo administrativos"]
[null,1,2,"H10","Apoyar los servicios administrativos",null,null,null,null,"VR"]
[null,1,2,"H19","Apoyar a otras instituciones públicas del sector para atender las necesidades propias de sus funciones",null,null,null,null,"VR"]
[null,1,2,"H57","Fortalecer y apoyar a las Jurisdicciones Sanitarias",null,null,null,null,"VR"]
[null,1,12,null,"Asistencia social, comunitaria y beneficencia pública justa y equitativa"]
[null,1,12,"H94","Promover programas para procurar el bienestar de los grupos vulnerables de la población",null,null,null,null,"VR"]
[null,1,15,null,"Promoción de la salud y prevención y control de enfermedades fortalecidas e integradas sectorial e intersectorialmente"]
[null,1,15,"H11","Promover los determinantes personales de salud, en los entornos escolares, con énfasis en la alimentación saludable y la activación física para una mejor salud",null,null,null,null,"VR"]
[null,1,15,"H12","Promover los determinantes colectivos de salud",null,null,null,null,"VR"]
[null,1,15,"H13","Fortalecer la promoción de la salud y determinantes sociales de la salud",null,null,null,null,"VR"]
[null,1,15,"H14","Prevenir las lesiones de causa externa intencionales y no intencionales y fortalecer la seguridad vial",null,null,null,null,"VR"]
[null,1,15,"H15","Proteger la salud de la población migrante y sus familias",null,null,null,null,"VR"]
[null,1,15,"H16","Promocionar una mejor salud y nutrición de manera integral a la población indígena y otros grupos vulnerables",null,null,null,null,"VR"]
[null,1,15,"H17","Prevenir, controlar y disminuir las enfermedades cardiometabólicas (sobrepeso, obesidad, diabetes, hipertension, dislipidemias, riesgo cardiovascular)",null,null,null,null,"VR"]
[null,1,15,"H18","Fortalecer el programa de planificación familiar y anticoncepción",null,null,null,null,"VR"]
[null,1,15,"H20","Fortalecer el programa de prevención y control de cáncer de la mujer",null,null,null,null,"VR"]
[null,1,15,"H21","Reforzar el programa de prevención, promoción, detección y atención de cáncer de próstata",null,null,null,null,"VR"]
[null,1,15,"H22","Fortalecer la donación y el trasplante de órganos y tejidos",null,null,null,null,"VR"]
[null,1,15,"H23","Desarrollar acciones integrales para prevenir, detectar, diagnosticar y atender los problemas de salud mental y adicciones",null,null,null,null,"VR"]
[null,1,15,"H25","Fortalecer el programa de acceso universal a sangre segura",null,null,null,null,"VR"]
[null,1,15,"H26","Fortalecer las acciones de salud a población en condiciones de pobreza y en comunidades de difícil acceso",null,null,null,null,"VR"]
[null,1,15,"H27","Fortalecer el programa de salud materna y perinatal",null,null,null,null,"VR"]
[null,1,15,"H29","Desarrollar acciones integrales para mejorar la salud de la infancia y la adolescencia",null,null,null,null,"VR"]
[null,1,15,"H30","Desarrollar acciones de salud sexual y reproductiva para los adolescentes, con perspectiva de derechos humanos y de género",null,null,null,null,"VR"]
[null,1,15,"H31","Reforzar la prevención, control y atención integral de las infecciones respiratorias agudas.(Neumonías, Influenza, COVID-19) y las enfermedades respiratorias crónicas (ASMA Y EPOC).",null,null,null,null,"VR"]
[null,1,15,"H36","Fortalecer el Programa de VIH-SIDA e ITS de manera integral",null,null,null,null,"VR"]
[null,1,15,"H37","Atender de manera integral los efectos del envejecimiento de las personas adultas y personas adultas mayores",null,null,null,null,"VR"]
[null,1,15,"H42","Promover, prevenir, diagnosticar y reestablecer la salud bucal",null,null,null,null,"VR"]
[null,1,15,"H50","Desarrollar acciones integrales para fortalecer el programa de igualdad de género en salud",null,null,null,null,"VR"]
[null,1,15,"H55","Mejorar la atención obstétrica, durante el embarazo, parto y puerperio para reducir la mortalidad materna y perinatal",null,null,null,null,"VR"]
[null,1,15,"H59","Fortalecer el programa de prevención y atención médica integral (rehabilitación)  de discapacidades y malformaciones congénitas",null,null,null,null,"VR"]
[null,1,15,"H66","Fortalecer la atención médica del primer nivel de atención",null,null,null,null,"VR"]
[null,1,15,"H71","Fortalecer el programa de prevención y atención de la violencia familiar y de género, con capacidad de respuesta efectiva",null,null,null,null,"VR"]
[null,1,15,"H78","Fortalecer el Programa Nacional de Eliminación de la Hepatitis C",null,null,null,null,"VR"]
[null,1,16,null,"Enfermedades emergentes, urgencias epidemiológicas y desastres naturales prevenidos, controlados y atendidos oportunamente"]
[null,1,16,"H32","Prevenir, detectar y controlar las micobacteriosis (Tuberculosis y Lepra)",null,null,null,null,"VR"]
[null,1,16,"H33","Combatir las enfermedades de problemas de rezago (EDA - cólera)",null,null,null,null,"VR"]
[null,1,16,"H34","Prevenir, detectar, combatir y brindar atención integral a las enfermedades transmitidas por vector (dengue, paludismo, chagas, leishmaniasis, oncocercosis, chikungunya, zika, mayaro, fiebre amarilla y oeste del nilo)",null,null,null,null,"VR"]
[null,1,16,"H35","Fortalecer el Programa de Zoonosis de manera integral (Rabia, Brucelosis, Leptospirosis, Rickettsiosis, Teniasis-cisticercosis)",null,null,null,null,"VR"]
[null,1,16,"H39","Atender las intoxicaciones por mordedura de artrópodos y serpientes con dotación suficiente de antídotos",null,null,null,null,"VR"]
[null,1,16,"H40","Fortalecer la vigilancia epidemiológica a través del análisis y diagnóstico de referencia",null,null,null,null,"VR"]
[null,1,16,"H41","Atender oportunamente los desastres y urgencias epidemiológicas",null,null,null,null,"VR"]
[null,1,16,"H43","Fortalecer el sistema de vigilancia epidemiológica",null,null,null,null,"VR"]
[null,1,17,null,"Protección control riesgos sanitarios fortalecida y modernizada"]
[null,1,17,"H44","Análisis de riesgos sanitarios",null,null,null,null,"VR"]
[null,1,17,"H45","Fortalecer el control y la vigilancia sanitaria, ambiental, ocupacional y saneamiento básico",null,null,null,null,"VR"]
[null,1,17,"H46","Promover la cultura de prevención contra riesgos sanitarios",null,null,null,null,"VR"]
[null,1,17,"H47","Coordinar las acciones entre órdenes de gobierno para el control de emergencias y alertas sanitarias",null,null,null,null,"VR"]
[null,1,17,"H48","Fortalecer la capacidad analítica con enfoque de riesgos sanitarios",null,null,null,null,"VR"]
[null,2,null,null,"Prestación de Servicios de Salud a la Persona"]
[null,2,2,null,"Servicios de apoyo administrativos"]
[null,2,2,"H10","Apoyar los servicios administrativos",null,null,null,null,"VR"]
[null,2,2,"H19","Apoyar a otras instituciones públicas del sector para atender las necesidades propias de sus funciones",null,null,null,null,"VR"]
[null,2,12,null,"Asistencia social, comunitaria y beneficencia pública justa y equitativa"]
[null,2,12,"H93","Otorgar servicios de asistencia social integral",null,null,null,null,"VR"]
[null,2,18,null,"Prestación de servicios del Sistema Nacional de Salud organizados e integrados"]
[null,2,18,"H100","Fortalecer el abasto oportuno de medicamentos gratuitos y otros insumos para la salud para la población sin seguridad social laboral",null,null,null,null,"VR"]
[null,2,18,"H14","Prevenir las lesiones de causa externa intencionales y no intencionales y fortalecer la seguridad vial",null,null,null,null,"VR"]
[null,2,18,"H17","Prevenir, controlar y disminuir las enfermedades cardiometabólicas (sobrepeso, obesidad, diabetes, hipertension, dislipidemias, riesgo cardiovascular)",null,null,null,null,"VR"]
[null,2,18,"H18","Fortalecer el programa de planificación familiar y anticoncepción",null,null,null,null,"VR"]
[null,2,18,"H20","Fortalecer el programa de prevención y control de cáncer de la mujer",null,null,null,null,"VR"]
[null,2,18,"H21","Reforzar el programa de prevención, promoción, detección y atención de cáncer de próstata",null,null,null,null,"VR"]
[null,2,18,"H22","Fortalecer la donación y el trasplante de órganos y tejidos",null,null,null,null,"VR"]
[null,2,18,"H23","Desarrollar acciones integrales para prevenir, detectar, diagnosticar y atender los problemas de salud mental y adicciones",null,null,null,null,"VR"]
[null,2,18,"H25","Fortalecer el programa de acceso universal a sangre segura",null,null,null,null,"VR"]
[null,2,18,"H26","Fortalecer las acciones de salud a población en condiciones de pobreza y en comunidades de difícil acceso",null,null,null,null,"VR"]
[null,2,18,"H27","Fortalecer el programa de salud materna y perinatal",null,null,null,null,"VR"]
[null,2,18,"H28","Fortalecer el programa de vacunación universal",null,null,null,null,"VR"]
[null,2,18,"H29","Desarrollar acciones integrales para mejorar la salud de la infancia y la adolescencia",null,null,null,null,"VR"]
[null,2,18,"H30","Desarrollar acciones de salud sexual y reproductiva para los adolescentes, con perspectiva de derechos humanos y de género",null,null,null,null,"VR"]
[null,2,18,"H31","Reforzar la prevención, control y atención integral de las infecciones respiratorias agudas.(Neumonías, Influenza, COVID-19) y las enfermedades respiratorias crónicas (ASMA Y EPOC).",null,null,null,null,"VR"]
[null,2,18,"H32","Prevenir, detectar y controlar las micobacteriosis (Tuberculosis y Lepra)",null,null,null,null,"VR"]
[null,2,18,"H33","Combatir las enfermedades de problemas de rezago (EDA - cólera)",null,null,null,null,"VR"]
[null,2,18,"H34","Prevenir, detectar, combatir y brindar atención integral a las enfermedades transmitidas por vector (dengue, paludismo, chagas, leishmaniasis, oncocercosis, chikungunya, zika, mayaro, fiebre amarilla y oeste del nilo)",null,null,null,null,"VR"]
[null,2,18,"H35","Fortalecer el Programa de Zoonosis de manera integral (Rabia, Brucelosis, Leptospirosis, Rickettsiosis, Teniasis-cisticercosis)",null,null,null,null,"VR"]
[null,2,18,"H36","Fortalecer el Programa de VIH-SIDA e ITS de manera integral",null,null,null,null,"VR"]
[null,2,18,"H37","Atender de manera integral los efectos del envejecimiento de las personas adultas y personas adultas mayores",null,null,null,null,"VR"]
[null,2,18,"H39","Atender las intoxicaciones por mordedura de artrópodos y serpientes con dotación suficiente de antídotos",null,null,null,null,"VR"]
[null,2,18,"H42","Promover, prevenir, diagnosticar y reestablecer la salud bucal",null,null,null,null,"VR"]
[null,2,18,"H55","Mejorar la atención obstétrica, durante el embarazo, parto y puerperio para reducir la mortalidad materna y perinatal",null,null,null,null,"VR"]
[null,2,18,"H56","Brindar servicios de atención médica integral a las personas que padecen de labio leporino y paladar hendido ",null,null,null,null,"VR"]
[null,2,18,"H59","Fortalecer el programa de prevención y atención médica integral (rehabilitación)  de discapacidades y malformaciones congénitas",null,null,null,null,"VR"]
[null,2,18,"H60","Brindar servicios de Atención médica a través de Unidades médicas móviles",null,null,null,null,"VR"]
[null,2,18,"H61","Brindar atención médica de primer nivel de atención",null,null,null,null,"VR"]
[null,2,18,"H62","Brindar atención médica de segundo nivel de atención",null,null,null,null,"VR"]
[null,2,18,"H63","Brindar atención médica de tercer nivel de atención",null,null,null,null,"VR"]
[null,2,18,"H64","Brindar servicios y atención de urgencias médicas ",null,null,null,null,"VR"]
[null,2,18,"H65","Fortalecer los laboratorios clínicos de apoyo a la atención médica",null,null,null,null,"VR"]
[null,2,18,"H71","Fortalecer el programa de prevención y atención de la violencia familiar y de género, con capacidad de respuesta efectiva",null,null,null,null,"VR"]
[null,2,18,"H76","Fortalecer la detección temprana y la atención integral de la insuficiencia renal crónica",null,null,null,null,"VR"]
[null,2,18,"H77","Fortalecer el diagnóstico oportuno y tratamiento de tumores malignos",null,null,null,null,"VR"]
[null,2,18,"H78","Fortalecer el Programa Nacional de Eliminación de la Hepatitis C",null,null,null,null,"VR"]
[null,3,null,null,"Generación de Recursos para la Salud"]
[null,3,2,null,"Servicios de apoyo administrativos"]
[null,3,2,"H10","Apoyar los servicios administrativos",null,null,null,null,"VR"]
[null,3,19,null,"Formación y capacitación de recursos humanos acordes a las necesidades y demandas de atención a la salud"]
[null,3,19,"H09","Capacitar al personal administrativo y directivo a nivel técnico y gerencial",null,null,null,null,"VR"]
[null,3,19,"H49","Capacitar y sensibilizar a agentes y personal de salud en acciones de interculturalidad, no discriminación e igualdad de género",null,null,null,null,"VR"]
[null,3,19,"H84","Capacitar a los prestadores de servicios de la salud",null,null,null,null,"VR"]
[null,3,19,"H85","Formar especialistas en materia de salud (enseñanza)",null,null,null,null,"VR"]
[null,3,20,null,"Infraestructura suficiente, equipamiento optimo e insumos seguros para la salud"]
[null,3,20,"H03","Diseñar y/o coordinar programas de fortalecimiento de la oferta de servicios (planes maestros de Infraestructura en salud)",null,null,null,null,"VR"]
[null,3,20,"H38","Fortalecer el equipamiento y la infraestructura física",null,null,null,null,"VR"]
[null,3,20,"H54","Mantener y ampliar la certificación de las unidades de salud  con supervisión integral",null,null,null,null,"VR"]
[null,3,20,"H87","Desarrollar acciones de conservación y mantenimiento",null,null,null,null,"VR"]
[null,3,20,"H88","Fortalecer la obra pública y rehabilitación",null,null,null,null,"VR"]
[null,3,24,null,"Investigación en salud pertinente y de excelencia académica"]
[null,3,24,"H08","Fortalecer el diseño, implementación y mantenimiento de los sistemas de información para facilitar la accesibilidad a los servicios de salud",null,null,null,null,"VR"]
[null,3,24,"H86","Fomentar la Investigación en salud",null,null,null,null,"VR"]
[null,4,null,null,"Rectoría del Sistema de Salud"]
[null,4,2,null,"Servicios de apoyo administrativos"]
[null,4,2,"H10","Apoyar los servicios administrativos",null,null,null,null,"VR"]
[null,4,14,null,"Sistema Nacional de Salud organizado e integrado"]
[null,4,14,"H04","Atender asuntos jurídicos y Derechos Humanos",null,null,null,null,"VR"]
[null,4,14,"H05","Monitorear la operación, control interno, la protección de datos personales y la rendición de cuentas",null,null,null,null,"VR"]
[null,4,14,"H07","Fortalecer el sistema de evaluación del desempeño, la transparencia y la rendición de cuentas.",null,null,null,null,"VR"]
[null,4,14,"H51","Prevenir y atender oportunamente los conflictos derivados de la relación médico - paciente (Arbitraje Médico)",null,null,null,null,"VR"]
[null,4,14,"H92","Promover la cooperación internacional en salud",null,null,null,null,"VR"]
[null,4,25,null,"Políticas de calidad implementadas en el Sistema Nacional de Salud"]
[null,4,25,"H01","Fortalecer el papel de la rectoria de los Servicios de Salud",null,null,null,null,"VR"]
[null,4,25,"H02","Ampliar la participación ciudadana en la planeación, desarrollo y operación eficiente de los servicios de salud",null,null,null,null,"VR"]
[null,4,25,"H06","Fortalecer el sistema integral y universal de información en salud",null,null,null,null,"VR"]
[null,4,25,"H52","Fortalecer la calidad efectiva de los servicios de salud",null,null,null,null,"VR"]
[null,4,25,"H53","Fortalecer el sistema de seguimiento y respuesta a solicitudes de atención.",null,null,null,null,"VR"]
[null,4,25,"H54","Mantener y ampliar la certificación de las unidades de salud  con supervisión integral",null,null,null,null,"VR"]
[null,4,25,"H90","Emitir, regular, supervisar y difundir normatividad y regulaciones de políticas y programas de salud",null,null,null,null,"VR"]
[null,4,25,"H91","Impulsar acciones de coordinación entre instituciones de salud, entidades federativas, municipios y jurisdicciones, así como con otros sectores y/o organismos autónomos",null,null,null,null,"VR"]
[null,"Notas:"]
[null,null,"Actualización de Nomenclatura, Ejercicio 2024 (Comparación respecto a 2023)"]

{"sheet":"3.Catálogo COG","index":7,"n_rows":631,"n_cols":6,"rows_kept":631,"cut":false,"hidden":false,"merged":[]}
[]
[null,"3. Catálogo del Clasificador por Objeto de Gasto"]
[]
[null,"Cve_Capítulo ","Cve_Concepto ","Cve_Partida genérica ó partida específica","Descripción","Indicador "]
[null,1,null,null,"Gasto corriente"]
[null,1000,null,null,"Servicios Personales"]
[null,1000,1100,null,"Remuneraciones al personal de carácter permanente"]
[null,1000,1100,1110,"Dietas","VR"]
[null,1000,1100,1120,"Haberes","VR"]
[null,1000,1100,1130,"Sueldos base al personal permanente","VR"]
[null,1000,1100,1140,"Remuneraciones por adscripción laboral en el extranjero","VR"]
[null,1000,1200,null,"Remuneraciones al personal de carácter transitorio"]
[null,1000,1200,1210,"Honorarios asimilables a salarios","VR"]
[null,1000,1200,1220,"Sueldos base al personal eventual"]
[null,1000,1200,12201,"Remuneraciones al personal eventual ","VR"]
[null,1000,1200,12202,"Compensaciones a sustitutos de profesores","VR"]
[null,1000,1200,1230,"Retribuciones por servicios de carácter social"]
[null,1000,1200,12301,"Retribuciones por servicios en período de formación profesional","VR"]
[null,1000,1200,1240,"Retribución a los representantes de los trabajadores y de los patrones en la Junta de Conciliación y Arbitraje","VR"]
[null,1000,1300,null,"Remuneraciones adicionales y especiales"]
[null,1000,1300,1310,"Primas por años de servicios efectivos prestados"]
[null,1000,1300,13101,"Prima quinquenal por años de servicios efectivos prestados","VR"]
[null,1000,1300,13102,"Acreditación por años de servicio en la docencia y al personal administrativo de las instituciones de educación superior","VR"]
[null,1000,1300,13103,"Prima de perseverancia por años de servicio activo en el Ejército, Fuerza Aérea y Armada Mexicanos","VR"]
[null,1000,1300,13104,"Antigüedad","VR"]
[null,1000,1300,1320,"Primas de vacaciones, dominical y gratificación de fin de año"]
[null,1000,1300,13201,"Primas de vacaciones y dominical","VR"]
[null,1000,1300,13202,"Gratificación de fin de año","VR"]
[null,1000,1300,1330,"Horas extraordinarias","VR"]
[null,1000,1300,1340,"Compensaciones"]
[null,1000,1300,13401,"Acreditación por titulación en la docencia","VR"]
[null,1000,1300,13402,"Acreditación al personal docente por años de estudio de licenciatura","VR"]
[null,1000,1300,13403,"Compensaciones por servicios especiales","VR"]
[null,1000,1300,13404,"Compensaciones por servicios eventuales","VR"]
[null,1000,1300,13405,"Compensaciones de retiro","VR"]
[null,1000,1300,13406,"Compensaciones de servicios","VR"]
[null,1000,1300,13407,"Compensaciones adicionales por servicios especiales","VR"]
[null,1000,1300,13408,"Asignaciones docentes, pedagógicas genéricas y específicas","VR"]
[null,1000,1300,13409,"Compensación por adquisición de material didáctico","VR"]
[null,1000,1300,13410,"Compensación por actualización y formación académica","VR"]
[null,1000,1300,13411,"Compensaciones a médicos residentes","VR"]
[null,1000,1300,13412,"Gastos contingentes para el personal radicado en el extranjero","VR"]
[null,1000,1300,13413,"Asignaciones para la conclusión de servicios en la Administración Pública Federal","VR"]
[null,1000,1300,13414,"Asignaciones conforme al régimen laboral","VR"]
[null,1000,1300,1350,"Sobrehaberes","VR"]
[null,1000,1300,1360,"Asignaciones de técnico, de mando, por comisión, de vuelo y de técnico especial"]
[null,1000,1300,13601,"Asignaciones de técnico","VR"]
[null,1000,1300,13602,"Asignaciones de mando","VR"]
[null,1000,1300,13603,"Asignaciones por comisión","VR"]
[null,1000,1300,13604,"Asignaciones de vuelo","VR"]
[null,1000,1300,13605,"Asignaciones de técnico especial","VR"]
[null,1000,1300,1370,"Honorarios especiales","VR"]
[null,1000,1300,1380,"Participaciones por vigilancia en el cumplimiento de las leyes y custodia de valores","VR"]
[null,1000,1400,null,"Seguridad Social"]
[null,1000,1400,1410,"Aportaciones de seguridad social"]
[null,1000,1400,14101,"Aportaciones al ISSSTE","VR"]
[null,1000,1400,14102,"Aportaciones al ISSFAM","VR"]
[null,1000,1400,14103,"Aportaciones al IMSS","VR"]
[null,1000,1400,14104,"Aportaciones de seguridad social contractuales","VR"]
[null,1000,1400,14105,"Aportaciones al seguro de cesantía en edad avanzada y vejez","VR"]
[null,1000,1400,1420,"Aportaciones a fondos de vivienda"]
[null,1000,1400,14201,"Aportaciones al FOVISSSTE","VR"]
[null,1000,1400,14202,"Aportaciones al INFONAVIT","VR"]
[null,1000,1400,1430,"Aportaciones al sistema para el retiro"]
[null,1000,1400,14301,"Aportaciones al sistema de ahorro para el retiro","VR"]
[null,1000,1400,14302,"Depósitos para el ahorro solidario","VR"]
[null,1000,1400,1440,"Aportaciones para seguros"]
[null,1000,1400,14401,"Cuotas para el seguro de vida del personal civil","VR"]
[null,1000,1400,14402,"Cuotas para el seguro de vida del personal militar","VR"]
[null,1000,1400,14403,"Cuotas para el seguro de gastos médicos del personal civil","VR"]
[null,1000,1400,14404,"Cuotas para el seguro de separación individualizado","VR"]
[null,1000,1400,14405,"Cuotas para el seguro colectivo de retiro","VR"]
[null,1000,1400,14406,"Seguro de responsabilidad civil, asistencia legal y otros seguros","VR"]
[null,1000,1500,null,"Otras prestaciones sociales y económicas"]
[null,1000,1500,1510,"Cuotas para el fondo de ahorro y fondo de trabajo"]
[null,1000,1500,15101,"Cuotas para el fondo de ahorro del personal civil","VR"]
[null,1000,1500,15102,"Cuotas para el fondo de ahorro de generales, almirantes, jefes y oficiales","VR"]
[null,1000,1500,15103,"Cuotas para el fondo de trabajo del personal del Ejército, Fuerza Aérea y Armada Mexicanos","VR"]
[null,1000,1500,1520,"Indemnizaciones"]
[null,1000,1500,15201,"Indemnizaciones por accidentes en el trabajo","VR"]
[null,1000,1500,15202," Pago de liquidaciones","VR"]
[null,1000,1500,1530,"Prestaciones y haberes de retiro","VR"]
[null,1000,1500,1540,"Prestaciones contractuales"]
[null,1000,1500,15401,"Prestaciones establecidas por condiciones generales de trabajo o contratos colectivos de trabajo","VR"]
[null,1000,1500,15402,"Compensación garantizada","VR"]
[null,1000,1500,15403,"Asignaciones adicionales al sueldo","VR"]
[null,1000,1500,1550,"Apoyos a la capacitación de los servidores públicos","VR"]
[null,1000,1500,1590,"Otras prestaciones sociales y económicas"]
[null,1000,1500,15901,"Otras prestaciones","VR"]
[null,1000,1500,15902,"Pago extraordinario por riesgo","VR"]
[null,1000,1600,null,"Previsiones"]
[null,1000,1600,1610,"Previsiones de carácter laboral, económica y de seguridad social"]
[null,1000,1600,16101,"Incrementos a las percepciones","VR"]
[null,1000,1600,16102,"Creación de plazas","VR"]
[null,1000,1600,16103,"Otras medidas de carácter laboral y económico","VR"]
[null,1000,1600,16104,"Previsiones para aportaciones al ISSSTE","VR"]
[null,1000,1600,16105,"Previsiones para aportaciones al FOVISSSTE","VR"]
[null,1000,1600,16106,"Previsiones para aportaciones al Sistema de Ahorro para el Retiro","VR"]
[null,1000,1600,16107,"Previsiones para aportaciones al seguro de cesantía en edad avanzada y vejez","VR"]
[null,1000,1600,16108,"Previsiones para los depósitos al ahorro solidario","VR"]
[null,1000,1600,16109,"Previsiones por adecuaciones a las estructuras ocupacionales","VR"]
[null,1000,1700,null,"Pago de estímulos a servidores públicos"]
[null,1000,1700,1710,"Estímulos"]
[null,1000,1700,17101,"Estímulos por productividad y eficiencia","VR"]
[null,1000,1700,17102,"Estímulos al personal operativo","VR"]
[null,1000,1700,1720,"Recompensas","VR"]
[null,2000,null,null,"Materiales y Suministros"]
[null,2000,2100,null,"Materiales de administración, emisión de documentos y articulos oficiales"]
[null,2000,2100,2110,"Materiales, útiles y equipos menores de oficina","VR"]
[null,2000,2100,2120,"Materiales y útiles de impresión y reproducción","VR"]
[null,2000,2100,2130,"Material estadístico y geográfico","VR"]
[null,2000,2100,2140,"Materiales, útiles y equipos menores de tecnologías de la información y comunicaciones","VR"]
[null,2000,2100,2150,"Material impreso e información digital"]
[null,2000,2100,21501,"Material de apoyo informativo","VR"]
[null,2000,2100,21502,"Material para información en actividades de investigación científica y tecnológica","VR"]
[null,2000,2100,2160,"Material de limpieza","VR"]
[null,2000,2100,2170,"Materiales y útiles de enseñanza","VR"]
[null,2000,2100,2180,"Materiales para el registro e identificación de bienes y personas","VR"]
[null,2000,2200,null,"Alimentos y Utensilios"]
[null,2000,2200,2210,"Productos alimenticios para personas"]
[null,2000,2200,22101,"Productos alimenticios para el Ejército, Fuerza Aérea y Armada Mexicanos, y para los efectivos que participen en programas de seguridad pública","VR"]
[null,2000,2200,22102,"Productos alimenticios para personas derivado de la prestación de servicios públicos en unidades de salud, educativas, de readaptación social y otras","VR"]
[null,2000,2200,22103,"Productos alimenticios para el personal que realiza labores en campo o de supervisión","VR"]
[null,2000,2200,22104,"Productos alimenticios para el personal en las instalaciones de las dependencias y entidades","VR"]
[null,2000,2200,22105,"Productos alimenticios para la población en caso de desastres naturales","VR"]
[null,2000,2200,22106,"Productos alimenticios para el personal derivado de actividades extraordinarias","VR"]
[null,2000,2200,2220,"Productos alimenticios para animales","VR"]
[null,2000,2200,2230,"Utensilios para el servicio de alimentación","VR"]
[null,2000,2300,null,"Materias primas y de producción y comercialización"]
[null,2000,2300,2310,"Productos alimenticios, agropecuarios y forestales adquiridos como materia prima","VR"]
[null,2000,2300,2320,"Insumos textiles adquiridos como materia prima","VR"]
[null,2000,2300,2330,"Productos de papel, cartón e impresos adquiridos como materia prima","VR"]
[null,2000,2300,2340,"Combustibles, lubricantes, aditivos, carbón y sus derivados adquiridos como materia prima","VR"]
[null,2000,2300,2350,"Productos químicos, farmacéuticos y de laboratorio adquiridos como materia prima","VR"]
[null,2000,2300,2360,"Productos metálicos y a base de minerales no metálicos adquiridos como materia prima","VR"]
[null,2000,2300,2370,"Productos de cuero, piel, plástico y hule adquiridos como materia prima","VR"]
[null,2000,2300,2380,"Mercancías adquiridas para su comercialización","VR"]
[null,2000,2300,2390,"Otros productos adquiridos como materia prima"]
[null,2000,2300,23901,"Otros productos adquiridos como materia prima","VR"]
[null,2000,2300,23902,"Petróleo, gas y sus derivados adquiridos como materia prima","VR"]
[null,2000,2400,null,"Materiales y artículos de construcción y de reparación"]
[null,2000,2400,2410,"Productos minerales no metálicos","VR"]
[null,2000,2400,2420,"Cemento y productos de concreto","VR"]
[null,2000,2400,2430,"Cal, yeso y productos de yeso","VR"]
[null,2000,2400,2440,"Madera y productos de madera","VR"]
[null,2000,2400,2450,"Vidrio y productos de vidrio","VR"]
[null,2000,2400,2460,"Material eléctrico y electrónico","VR"]
[null,2000,2400,2470,"Artículos metálicos para la construcción","VR"]
[null,2000,2400,2480,"Materiales complementarios","VR"]
[null,2000,2400,2490,"Otros materiales y artículos de construcción y reparación","VR"]
[null,2000,2500,null,"Productos químicos, farmacéuticos y de laboratorio"]
[null,2000,2500,2510,"Productos químicos básicos","VR"]
[null,2000,2500,2520,"Fertilizantes, pesticidas y otros agroquímicos","VR"]
[null,2000,2500,2530,"Medicinas y productos farmacéuticos","VR"]
[null,2000,2500,2540,"Materiales, accesorios y suministros médicos","VR"]
[null,2000,2500,2550,"Materiales, accesorios y suministros de laboratorio","VR"]
[null,2000,2500,2560,"Fibras sintéticas, hules, plásticos y derivados","VR"]
[null,2000,2500,2590,"Otros productos químicos","VR"]
[null,2000,2600,null,"Combustibles, lubricantes y aditivos"]
[null,2000,2600,2610,"Combustibles, lubricantes y aditivos"]
[null,2000,2600,26101,"Combustibles, lubricantes y aditivos para vehículos terrestres, aéreos, marítimos, lacustres y fluviales destinados a la ejecución de programas de seguridad pública y nacional","VR"]
[null,2000,2600,26102,"Combustibles, lubricantes y aditivos para vehículos terrestres, aéreos, marítimos, lacustres y fluviales destinados a servicios públicos y la operación de programas públicos","VR"]
[null,2000,2600,26103,"Combustibles, lubricantes y aditivos para vehículos terrestres, aéreos, marítimos, lacustres y fluviales destinados a servicios administrativos","VR"]
[null,2000,2600,26104,"Combustibles, lubricantes y aditivos para vehículos terrestres, aéreos, marítimos, lacustres y fluviales asignados a servidores públicos","VR"]
[null,2000,2600,26105,"Combustibles, lubricantes y aditivos para maquinaria, equipo de producción y servicios administrativos","VR"]
[null,2000,2600,26106,"PIDIREGAS cargos variables","VR"]
[null,2000,2600,26107,"Combustibles nacionales para plantas productivas","VR"]
[null,2000,2600,26108,"Combustibles de importación para plantas productivas","VR"]
[null,2000,2600,2620,"Carbón y sus derivados","VR"]
[null,2000,2700,null,"Vestuario, blancos, prendas de protección y artículos deportivos"]
[null,2000,2700,2710,"Vestuario y uniformes","VR"]
[null,2000,2700,2720,"Prendas de seguridad y protección personal","VR"]
[null,2000,2700,2730,"Artículos deportivos","VR"]
[null,2000,2700,2740,"Productos textiles","VR"]
[null,2000,2700,2750,"Blancos y otros productos textiles, excepto prendas de vestir","VR"]
[null,2000,2800,null,"Materiales y suministros para seguridad"]
[null,2000,2800,2810,"Sustancias y materiales explosivos","VR"]
[null,2000,2800,2820,"Materiales de seguridad pública","VR"]
[null,2000,2800,2830,"Prendas de protección para seguridad pública y nacional","VR"]
[null,2000,2900,null,"Herramientas, refacciones y accesorios menores"]
[null,2000,2900,2910,"Herramientas menores","VR"]
[null,2000,2900,2920,"Refacciones y accesorios menores de edificios","VR"]
[null,2000,2900,2930,"Refacciones y accesorios menores de mobiliario y equipo de administración, educacional y recreativo","VR"]
[null,2000,2900,2940,"Refacciones y accesorios menores de equipo de cómputo y tecnologías de la información","VR"]
[null,2000,2900,2950,"Refacciones y accesorios menores de equipo e instrumental médico y de laboratorio","VR"]
[null,2000,2900,2960,"Refacciones y accesorios menores de equipo de transporte","VR"]
[null,2000,2900,2970,"Refacciones y accesorios menores de equipo de defensa y seguridad","VR"]
[null,2000,2900,2980,"Refacciones y accesorios menores de maquinaria y otros equipos","VR"]
[null,2000,2900,2990,"Refacciones y accesorios menores otros bienes muebles","VR"]
[null,3000,null,null,"Servicios Generales"]
[null,3000,3100,null,"Servicios básicos"]
[null,3000,3100,3110,"Energía eléctrica","VR"]
[null,3000,3100,3120,"Gas","VR"]
[null,3000,3100,3130,"Agua","VR"]
[null,3000,3100,3140,"Telefonía tradicional","VR"]
[null,3000,3100,3150,"Telefonía celular","VR"]
[null,3000,3100,3160,"Servicios de telecomunicaciones y satélites"]
[null,3000,3100,31601,"Servicio de radiolocalización","VR"]
[null,3000,3100,31602,"Servicios de telecomunicaciones","VR"]
[null,3000,3100,31603,"Servicios de internet","VR"]
[null,3000,3100,3170,"Servicios de acceso de Internet, redes y procesamiento de información","VR"]
[null,3000,3100,3180,"Servicios postales y telegráficos"]
[null,3000,3100,31801,"Servicio postal","VR"]
[null,3000,3100,31802,"Servicio telegráfico","VR"]
[null,3000,3100,3190,"Servicios integrales y otros servicios"]
[null,3000,3100,31901,"Servicios integrales de telecomunicación","VR"]
[null,3000,3100,31902,"Contratación de otros servicios","VR"]
[null,3000,3100,31903,"Servicios generales para planteles educativos","VR"]
[null,3000,3100,31904,"Servicios integrales de infraestructura de cómputo","VR"]
[null,3000,3200,null,"Servicios de arrendamiento"]
[null,3000,3200,3210,"Arrendamiento de terrenos","VR"]
[null,3000,3200,3220,"Arrendamiento de edificios","VR"]
[null,3000,3200,3230,"Arrendamiento de mobiliario y equipo de administración, educacional y recreativo"]
[null,3000,3200,32301,"Arrendamiento de equipo y bienes informáticos","VR"]
[null,3000,3200,32302,"Arrendamiento de mobiliario","VR"]
[null,3000,3200,32303,"Arrendamiento de equipo de telecomunicaciones","VR"]
[null,3000,3200,3240,"Arrendamiento de equipo e instrumental médico y de laboratorio","VR"]
[null,3000,3200,3250,"Arrendamiento de equipo de transporte"]
[null,3000,3200,32501,"Arrendamiento de vehículos terrestres, aéreos, marítimos, lacustres y fluviales para la ejecución de programas de seguridad pública y nacional","VR"]
[null,3000,3200,32502,"Arrendamiento de vehículos terrestres, aéreos, marítimos, lacustres y fluviales para servicios públicos y la operación de programas públicos","VR"]
[null,3000,3200,32503,"Arrendamiento de vehículos terrestres, aéreos, marítimos, lacustres y fluviales para servicios administrativos","VR"]
[null,3000,3200,32504,"Arrendamiento de vehículos terrestres, aéreos, marítimos, lacustres y fluviales para desastres naturales","VR"]
[null,3000,3200,32505,"Arrendamiento de vehículos terrestres, aéreos, marítimos, lacustres y fluviales para servidores públicos","VR"]
[null,3000,3200,3260,"Arrendamiento de maquinaria, otros equipos y herramientas","VR"]
[null,3000,3200,3270,"Arrendamiento de activos intangibles","VR"]
[null,3000,3200,3280,"Arrendamiento financiero","VR"]
[null,3000,3200,3290,"Otros arrendamientos"]
[null,3000,3200,32901,"Arrendamiento de sustancias y productos químicos","VR"]
[null,3000,3200,32902,"PIDIREGAS cargos fijos","VR"]
[null,3000,3200,32903,"Otros Arrendamientos","VR"]
[null,3000,3300,null,"Servicios profesionales, científicos, técnicos y otros servicios"]
[null,3000,3300,3310,"Servicios legales, de contabilidad, auditoría y relacionados"]
[null,3000,3300,33101,"Asesorías asociadas a convenios, tratados o acuerdos","VR"]
[null,3000,3300,33102,"Asesorías por controversias en el marco de los tratados internacionales","VR"]
[null,3000,3300,33103,"Consultorías para programas o proyectos financiados por organismos internacionales","VR"]
[null,3000,3300,33104,"Otras asesorías para la operación de programas","VR"]
[null,3000,3300,33105,"Servicios relacionados con procedimientos jurisdiccionales","VR"]
[null,3000,3300,3320,"Servicios de diseño, arquitectura, ingeniería y actividades relacionadas","VR"]
[null,3000,3300,3330,"Servicios de consultoría administrativa, procesos, técnica y en tecnologías de la información"]
[null,3000,3300,33301,"Servicios de desarrollo de aplicaciones informáticas","VR"]
[null,3000,3300,33302,"Servicios estadísticos y geográficos","VR"]
[null,3000,3300,33303,"Servicios relacionados con certificación de procesos","VR"]
[null,3000,3300,33304,"Servicios de mantenimiento de aplicaciones informáticas","VR"]
[null,3000,3300,3340,"Servicios de capacitación","VR"]
[null,3000,3300,3350,"Servicios de investigación científica y desarrollo","VR"]
[null,3000,3300,3360,"Servicios de apoyo administrativo, traducción, fotocopiado e impresión"]
[null,3000,3300,33601,"Servicios relacionados con traducciones","VR"]
[null,3000,3300,33602,"Otros servicios comerciales","VR"]
[null,3000,3300,33603,"Impresiones de documentos oficiales para la prestación de servicios públicos, identificación, formatos administrativos y fiscales, formas valoradas, certificados y títulos","VR"]
[null,3000,3300,33604,"Impresión y elaboración de material informativo derivado de la operación y administración de las dependencias y entidades","VR"]
[null,3000,3300,33605,"Información en medios masivos derivada de la operación y administración de las dependencias y entidades","VR"]
[null,3000,3300,33606,"Servicios de digitalización","VR"]
[null,3000,3300,3370,"Servicios de protección y seguridad"]
[null,3000,3300,33701,"Gastos de seguridad pública y nacional","VR"]
[null,3000,3300,33702,"Gastos en actividades de seguridad y logística del Estado Mayor Presidencial","VR"]
[null,3000,3300,3380,"Servicios de vigilancia","VR"]
[null,3000,3300,3390,"Servicios profesionales, científicos y técnicos integrales"]
[null,3000,3300,33901,"Subcontratación de servicios con terceros","VR"]
[null,3000,3300,33902,"Proyectos para prestación de servicios","VR"]
[null,3000,3300,33903,"Servicios integrales","VR"]
[null,3000,3300,33904,"Asignaciones derivadas de proyectos de asociación público privada","VR"]
[null,3000,3300,33905,"Servicios integrales en materia de seguridad pública y nacional","VR"]
[null,3000,3300,33906,"Asignaciones para cubrir el pago de obligaciones derivadas de títulos de concesión o de asignación.","VR"]
[null,3000,3400,null,"Servicios financieros, bancarios y comerciales"]
[null,3000,3400,3410,"Servicios financieros y bancarios","VR"]
[null,3000,3400,3420,"Servicios de cobranza, investigación crediticia y similar","VR"]
[null,3000,3400,3430,"Servicios de recaudación, traslado y custodia de valores","VR"]
[null,3000,3400,3440,"Seguros de responsabilidad patrimonial y fianzas","VR"]
[null,3000,3400,3450,"Seguro de bienes patrimoniales","VR"]
[null,3000,3400,3460,"Almacenaje, envase y embalaje","VR"]
[null,3000,3400,3470,"Fletes y maniobras","VR"]
[null,3000,3400,3480,"Comisiones por ventas","VR"]
[null,3000,3400,3490,"Servicios financieros, bancarios y comerciales integrales","VR"]
[null,3000,3500,null,"Servicios de instalación, reparación, mantenimiento y conservación"]
[null,3000,3500,3510,"Conservación y mantenimineto menor de inmuebles"]
[null,3000,3500,35101,"Mantenimiento y conservación de inmuebles para la prestación de servicios administrativos","VR"]
[null,3000,3500,35102,"Mantenimiento y conservación de inmuebles para la prestación de servicios públicos","VR"]
[null,3000,3500,3520,"Instalación, reparación y mantenimiento de mobiliario y equipo de administración, educacional y recreativo","VR"]
[null,3000,3500,3530,"Instalación, reparación y mantenimiento de equipo de cómputo y tecnología de la información","VR"]
[null,3000,3500,3540,"Instalación, reparación y mantenimiento de equipo e instrumental médico y de laboratorio","VR"]
[null,3000,3500,3550,"Reparación y mantenimiento de equipo de transporte","VR"]
[null,3000,3500,3560,"Reparación y mantenimiento de equipo de defensa y seguridad","VR"]
[null,3000,3500,3570,"Instalación, reparación y mantenimiento de maquinaria, otros equipos y herramienta"]
[null,3000,3500,35701,"Mantenimiento y conservación de maquinaria y equipo","VR"]
[null,3000,3500,35702,"Mantenimiento y conservación de plantas e instalaciones productivas","VR"]
[null,3000,3500,3580,"Servicios de limpieza y manejo de desechos","VR"]
[null,3000,3500,3590,"Servicios de jardinería y fumigación","VR"]
[null,3000,3600,null,"Servicios de comunicación social y publicidad"]
[null,3000,3600,3610,"Difusión por radio, televisión y otros medios de mensajes sobre programas y actividades gubernamentales","VR"]
[null,3000,3600,3620,"Difusión por radio, televisión y otros medios de mensajes comerciales para promover la venta de bienes o servicios","VR"]
[null,3000,3600,3630,"Servicios de creatividad, preproducción y producción de publicidad, excepto Internet","VR"]
[null,3000,3600,3640,"Servicios de revelado de fotografías","VR"]
[null,3000,3600,3650,"Servicios de la industria fílmica, del sonido y del video","VR"]
[null,3000,3600,3660,"Servicio de creación y difusión de contenido exclusivamente a través de Internet","VR"]
[null,3000,3600,3690,"Otros servicios de información","VR"]
[null,3000,3700,null,"Servicios de traslado y viáticos"]
[null,3000,3700,3710,"Pasajes aéreos"]
[null,3000,3700,37101,"Pasajes aéreos nacionales para labores en campo y de supervisión","VR"]
[null,3000,3700,37102,"Pasajes aéreos nacionales asociados a los programas de seguridad pública y nacional","VR"]
[null,3000,3700,37103,"Pasajes aéreos nacionales asociados a desastres naturales","VR"]
[null,3000,3700,37104,"Pasajes aéreos nacionales para servidores públicos de mando en el desempeño de comisiones y funciones oficiales","VR"]
[null,3000,3700,37105,"Pasajes aéreos internacionales asociados a los programas de seguridad pública y nacional","VR"]
[null,3000,3700,37106,"Pasajes aéreos internacionales para servidores públicos en el desempeño de comisiones y funciones oficiales","VR"]
[null,3000,3700,3720,"Pasajes terrestres"]
[null,3000,3700,37201,"Pasajes terrestres nacionales para labores en campo y de supervisión","VR"]
[null,3000,3700,37202,"Pasajes terrestres nacionales asociados a los programas de seguridad pública y nacional","VR"]
[null,3000,3700,37203,"Pasajes terrestres nacionales asociados a desastres naturales","VR"]
[null,3000,3700,37204,"Pasajes terrestres nacionales para servidores públicos de mando en el desempeño de comisiones y funciones oficiales","VR"]
[null,3000,3700,37205,"Pasajes terrestres internacionales asociados a los programas de seguridad pública y nacional","VR"]
[null,3000,3700,37206,"Pasajes terrestres internacionales para servidores públicos en el desempeño de comisiones y funciones oficiales","VR"]
[null,3000,3700,37207,"Pasajes terrestres nacionales por medio electrónico","VR"]
[null,3000,3700,3730,"Pasajes marítimos, lacustres y fluviales"]
[null,3000,3700,37301,"Pasajes terrestres nacionales para labores en campo y de supervisión","VR"]
[null,3000,3700,37302,"Pasajes terrestres nacionales asociados a los programas de seguridad pública y nacional","VR"]
[null,3000,3700,37303,"Pasajes terrestres nacionales asociados a desastres naturales","VR"]
[null,3000,3700,37304,"Pasajes terrestres nacionales para servidores públicos de mando en el desempeño de comisiones y funciones oficiales","VR"]
[null,3000,3700,3740,"Autotransporte","VR"]
[null,3000,3700,3750,"Viáticos en el país"]
[null,3000,3700,37501,"Viáticos nacionales para labores en campo y de supervisión","VR"]
[null,3000,3700,37502,"Viáticos nacionales asociados a los programas de seguridad pública y nacional","VR"]
[null,3000,3700,37503,"Viáticos nacionales asociados a desastres naturales","VR"]
[null,3000,3700,37504,"Viáticos nacionales para servidores públicos en el desempeño de funciones oficiales","VR"]
[null,3000,3700,3760,"Viáticos en el extranjero"]
[null,3000,3700,37601,"Viáticos en el extranjero asociados a los programas de seguridad pública y nacional","VR"]
[null,3000,3700,37602,"Viáticos en el extranjero para servidores públicos en el desempeño de comisiones y funciones oficiales","VR"]
[null,3000,3700,3770,"Gastos de instalación y traslado de menaje","VR"]
[null,3000,3700,3780,"Servicios integrales de traslado y viáticos"]
[null,3000,3700,37801,"Servicios integrales nacionales para servidores públicos en el desempeño de comisiones y funciones oficiales","VR"]
[null,3000,3700,37802,"Servicios integrales en el extranjero para servidores públicos en el desempeño de comisiones y funciones oficiales","VR"]
[null,3000,3700,3790,"Otros servicios de traslado y hospedaje","VR"]
[null,3000,3800,null,"Servicios Oficiales"]
[null,3000,3800,3810,"Gastos de ceremonial"]
[null,3000,3800,38101,"Gastos de ceremonial del titular del Ejecutivo Federal","VR"]
[null,3000,3800,38102,"Gastos de ceremonial de los titulares de las dependencias y entidades","VR"]
[null,3000,3800,38103,"Gastos inherentes a la investidura presidencial","VR"]
[null,3000,3800,3820,"Gastos de orden social y cultural","VR"]
[null,3000,3800,3830,"Congresos y convenciones","VR"]
[null,3000,3800,3840,"Exposiciones","VR"]
[null,3000,3800,3850,"Gastos de representación","VR"]
[null,3000,3900,null,"Otros Servicios Generales"]
[null,3000,3900,3910,"Servicios funerarios y de cementerios","VR"]
[null,3000,3900,3920,"Impuestos y derechos"]
[null,3000,3900,39201,"Impuestos y derechos de exportación","VR"]
[null,3000,3900,39202,"Otros impuestos y derechos","VR"]
[null,3000,3900,3930,"Impuestos y derechos de importación","VR"]
[null,3000,3900,3940,"Sentencias y resoluciones por autoridad competente"]
[null,3000,3900,39401,"Erogaciones por resoluciones por autoridad competente","VR"]
[null,3000,3900,39402,"Indemnizaciones por expropiación de predios","VR"]
[null,3000,3900,39403,"Otras asignaciones derivadas de resoluciones de ley","VR"]
[null,3000,3900,3950,"Penas, multas, accesorios y actualizaciones","VR"]
[null,3000,3900,3960,"Otros gastos por responsabilidades"]
[null,3000,3900,39601,"Pérdidas del erario federal","VR"]
[null,3000,3900,39602,"Otros gastos por responsabilidades","VR"]
[null,3000,3900,3970,"Utilidades","VR"]
[null,3000,3900,3980,"Impuesto sobre nóminas y otros que se deriven de una relación laboral","VR"]
[null,3000,3900,3990,"Otros servicios generales"]
[null,3000,3900,39901,"Gastos de las Comisiones Internacionales de Límites y Aguas","VR"]
[null,3000,3900,39902,"Gastos de las oficinas del Servicio Exterior Mexicano","VR"]
[null,3000,3900,39904,"Participaciones en Órganos de Gobierno","VR"]
[null,3000,3900,39905,"Actividades de Coordinación con el Presidente Electo","VR"]
[null,3000,3900,39906,"Servicios Corporativos prestados por las Entidades Paraestatales a sus organismos","VR"]
[null,3000,3900,39907,"Servicios prestados entre Organismos de una Entidad Paraestatal","VR"]
[null,3000,3900,39908,"Erogaciones por cuenta de terceros","VR"]
[null,3000,3900,39909,"Erogaciones recuperables","VR"]
[null,3000,3900,39910,"Apertura de Fondo Rotatorio","VR"]
[null,4000,null,null,"Transferencias, Asignaciones, Subsidios y Otras Ayudas"]
[null,4000,4100,null,"Transferencias internas y asignaciones al sector público"]
[null,4000,4100,4110,"Asignaciones presupuestarias al Poder Ejecutivo","VR"]
[null,4000,4100,4120,"Asignaciones presupuestarias al Poder Legislativo","VR"]
[null,4000,4100,4130,"Asignaciones presupuestarias al Poder Judicial","VR"]
[null,4000,4100,4140,"Asignaciones presupuestarias a Órganos Autónomos","VR"]
[null,4000,4100,4150,"Transferencias internas otorgadas a entidades paraestatales no empresariales y no financieras","VR"]
[null,4000,4100,4160,"Transferencias internas otorgadas a entidades paraestatales empresariales y no financieras","VR"]
[null,4000,4100,4170,"Transferencias internas otorgadas a fideicomisos públicos empresariales y no financieros","VR"]
[null,4000,4100,4180,"Transferencias internas otorgadas a instituciones paraestatales públicas financieras","VR"]
[null,4000,4100,4190,"Transferencias internas otorgadas a fideicomisos públicos financieros","VR"]
[null,4000,4200,null,"Transferencias al resto del sector público"]
[null,4000,4200,4210,"Transferencias otorgadas a entidades paraestatales no empresariales y no financieras","VR"]
[null,4000,4200,4220,"Transferencias otorgadas para entidades paraestatales empresariales y no financieras","VR"]
[null,4000,4200,4230,"Transferencias otorgadas para instituciones paraestatales públicas financieras","VR"]
[null,4000,4200,4240,"Transferencias otorgadas a entidades federativas y municipios","VR"]
[null,4000,4200,4250,"Transferencias a fideicomisos de entidades federativas y municipios","VR"]
[null,4000,4300,null,"Subsidios y Subvenciones"]
[null,4000,4300,4310,"Subsidios a la producción","VR"]
[null,4000,4300,4320,"Subsidios a la distribución","VR"]
[null,4000,4300,4330,"Subsidios a la inversión","VR"]
[null,4000,4300,4340,"Subsidios a la prestación de servicios públicos","VR"]
[null,4000,4300,4350,"Subsidios para cubrir diferenciales de tasas de interés","VR"]
[null,4000,4300,4360,"Subsidios a la vivienda","VR"]
[null,4000,4300,4370,"Subvenciones al consumo","VR"]
[null,4000,4300,4380,"Subsidios a las Entidades Federativas y Municipios","VR"]
[null,4000,4300,4390,"Otros Subsidios"]
[null,4000,4300,43901,"Subsidios para capacitación y becas","VR"]
[null,4000,4300,43902,"Subsidios a fideicomisos privados y estatales","VR"]
[null,4000,4400,null,"Ayudas Sociales"]
[null,4000,4400,4410,"Ayudas sociales a personas"]
[null,4000,4400,44101,"Gastos relacionados con actividades culturales, deportivas y de ayuda extraordinaria","VR"]
[null,4000,4400,44102,"Gastos por servicios de traslado de personas","VR"]
[null,4000,4400,44103,"Premios, recompensas, pensiones de gracia y pensión recreativa estudiantil","VR"]
[null,4000,4400,44104,"Premios, estímulos, recompensas, becas y seguros a deportistas","VR"]
[null,4000,4400,44105,"Apoyo a voluntarios que participan en diversos programas federales","VR"]
[null,4000,4400,44106,"Compensaciones por servicios de carácter social","VR"]
[null,4000,4400,4420,"Becas y otras ayudas para programas de capacitación","VR"]
[null,4000,4400,4430,"Ayudas sociales a instituciones de enseñanza","VR"]
[null,4000,4400,4440,"Ayudas sociales a actividades científicas o académicas"]
[null,4000,4400,44401,"Apoyos a la investigación científica y tecnológica de instituciones académicas y sector público","VR"]
[null,4000,4400,44402,"Apoyos a la investigación científica y tecnológica en instituciones sin fines de lucro","VR"]
[null,4000,4400,4450,"Ayudas sociales a instituciones sin fines de lucro","VR"]
[null,4000,4400,4460,"Ayudas sociales a cooperativas","VR"]
[null,4000,4400,4470,"Ayudas sociales a entidades de interés público","VR"]
[null,4000,4400,4480,"Ayudas por desastres naturales y otros siniestros","VR"]
[null,4000,4500,null,"Pensiones y Jubilaciones"]
[null,4000,4500,4510,"Pensiones","VR"]
[null,4000,4500,4520,"Jubilaciones"]
[null,4000,4500,45201,"Pago de pensiones y jubilaciones","VR"]
[null,4000,4500,45202,"Pago de pensiones y jubilaciones contractuales","VR"]
[null,4000,4500,45203,"Transferencias para el pago de pensiones y jubilaciones","VR"]
[null,4000,4500,4590,"Otras pensiones y jubilaciones"]
[null,4000,4500,45901,"Pago de sumas aseguradas","VR"]
[null,4000,4500,45902,"Prestaciones económicas distintas de pensiones y jubilaciones","VR"]
[null,4000,4600,null,"Transferencias a Fideicomisos, Mandatos y Otros Análogos"]
[null,4000,4600,4610,"Transferencias a fideicomisos del Poder Ejecutivo"]
[null,4000,4600,46101,"Aportaciones a fideicomisos públicos","VR"]
[null,4000,4600,46102,"Aportaciones a mandatos públicos","VR"]
[null,4000,4600,4620,"Transferencias a fideicomisos del Poder Legislativo","VR"]
[null,4000,4600,4630,"Transferencias a fideicomisos del Poder Judicial","VR"]
[null,4000,4600,4640,"Transferencias a fideicomisos públicos de entidades paraestatales no empresariales y no financieras","VR"]
[null,4000,4600,4650,"Transferencias a fideicomisos públicos de entidades paraestatales empresariales y no financieras","VR"]
[null,4000,4600,4660,"Transferencias a fideicomisos de instituciones públicas financieras","VR"]
[null,4000,4600,4690,"Otras transferencias a fideicomisos","VR"]
[null,4000,4700,null,"Transferencias a la Seguridad Social"]
[null,4000,4700,4710,"Transferencias por obligación de ley"]
[null,4000,4700,47101,"Trasferencias para cuotas y aportaciones de seguridad social para el IMSS, ISSSTE e ISSFAM por obligación del Estado","VR"]
[null,4000,4700,47102,"Transferencias para cuotas y aportaciones a los seguros de retiro, cesantía en edad avanzada y vejez","VR"]
[null,4000,4800,null,"Donativos"]
[null,4000,4800,4810,"Donativos a instituciones sin fines de lucro","VR"]
[null,4000,4800,4820,"Donativos a entidades federativas","VR"]
[null,4000,4800,4830,"Donativos a fideicomisos privados","VR"]
[null,4000,4800,4840,"Donativos a fideicomisos estatales","VR"]
[null,4000,4800,4850,"Donativos internacionales","VR"]
[null,4000,4900,null,"Transferencias al Exterior"]
[null,4000,4900,4910,"Transferencias para gobiernos extranjeros","VR"]
[null,4000,4900,4920,"Transferencias para organismos internacionales"]
[null,4000,4900,49201,"Cuotas y aportaciones a organismos internacionales","VR"]
[null,4000,4900,49202,"Otras aportaciones internacionales","VR"]
[null,4000,4900,4930,"Transferencias para el sector privado externo","VR"]
[null,7000,null,null,"Inversiones Financieras y Otras Provisiones"]
[null,7000,7100,null,"Inversiones para el Fomento de Actividades Productivas"]
[null,7000,7100,7110,"Créditos otorgados por entidades federativas y municipios al sector social y privado para el fomento de actividades productivas","VR"]
[null,7000,7100,7120,"Créditos otorgados por las entidades federativas a municipios para el fomento de actividades productivas","VR"]
[null,7000,7200,null,"Acciones y Participaciones de Capital"]
[null,7000,7200,7210,"Acciones y participaciones de capital en entidades paraestatales no empresariales y no financieras con fines de política económica","VR"]
[null,7000,7200,7220,"Acciones y participaciones de capital en entidades paraestatales empresariales y no financieras con fines de política económica","VR"]
[null,7000,7200,7230,"Acciones y participaciones de capital en instituciones paraestatales públicas financieras con fines de política económica","VR"]
[null,7000,7200,7240,"Acciones y participaciones de capital en el sector privado con fines de política económica","VR"]
[null,7000,7200,7250,"Acciones y participaciones de capital en organismos internacionales con fines de política económica","VR"]
[null,7000,7200,7260,"Acciones y participaciones de capital en el sector externo con fines de política económica","VR"]
[null,7000,7200,7270,"Acciones y participaciones de capital en el sector público con fines de gestión de liquidez","VR"]
[null,7000,7200,7280,"Acciones y participaciones de capital en el sector privado con fines de gestión de liquidez","VR"]
[null,7000,7200,7290,"Acciones y participaciones de capital en el sector externo con fines de gestión de liquidez","VR"]
[null,7000,7300,null,"Compra de Títulos y Valores"]
[null,7000,7300,7310,"Bonos","VR"]
[null,7000,7300,7320,"Valores representativos de deuda adquiridos con fines de política económica","VR"]
[null,7000,7300,7330,"Valores representativos de deuda adquiridos con fines de gestión de liquidez","VR"]
[null,7000,7300,7340,"Obligaciones negociables adquiridas con fines de política económica","VR"]
[null,7000,7300,7350,"Obligaciones negociables adquiridas con fines de gestión de liquidez","VR"]
[null,7000,7300,7390,"Otros valores"]
[null,7000,7300,73901,"Fideicomisos para adquisición de títulos de crédito","VR"]
[null,7000,7300,73902,"Adquisición de acciones","VR"]
[null,7000,7300,73903,"Adquisición de otros valores","VR"]
[null,7000,7400,null,"Concesión de Préstamos"]
[null,7000,7400,7410,"Concesión de préstamos a entidades paraestatales no empresariales y no financieras con fines de política económica","VR"]
[null,7000,7400,7420,"Concesión de préstamos a entidades paraestatales empresariales y no financieras con fines de política económica","VR"]
[null,7000,7400,7430,"Concesión de préstamos a instituciones paraestatales públicas financieras con fines de política económica","VR"]
[null,7000,7400,7440,"Concesión de préstamos a entidades federativas y municipios con fines de política económica","VR"]
[null,7000,7400,7450,"Concesión de préstamos al sector privado con fines de política económica"]
[null,7000,7400,74501,"Créditos directos para actividades productivas otorgados al sector privado con fines de política económica","VR"]
[null,7000,7400,74502,"Fideicomisos para financiamiento de obras","VR"]
[null,7000,7400,74503,"Fideicomisos para financiamientos agropecuarios","VR"]
[null,7000,7400,74504,"Fideicomisos para financiamientos industriales","VR"]
[null,7000,7400,74505,"Fideicomisos para financiamientos al comercio y otros servicios","VR"]
[null,7000,7400,74506,"Fideicomisos para financiamientos de vivienda","VR"]
[null,7000,7400,7460,"Concesión de préstamos al sector externo con fines de política económica","VR"]
[null,7000,7400,7470,"Concesión de préstamos al sector público con fines de gestión de liquidez","VR"]
[null,7000,7400,7480,"Concesión de préstamos al sector privado con fines de gestión de liquidez","VR"]
[null,7000,7400,7490,"Concesión de préstamos al sector externo con fines de gestión de liquidez","VR"]
[null,7000,7500,null,"Inversiones en Fideicomisos, Mandatos y Otros Análogos"]
[null,7000,7500,7510,"Inversiones en fideicomisos del Poder Ejecutivo","VR"]
[null,7000,7500,7520,"Inversiones en fideicomisos del Poder Legislativo","VR"]
[null,7000,7500,7530,"Inversiones en fideicomisos del Poder Judicial","VR"]
[null,7000,7500,7540,"Inversiones en fideicomisos públicos no empresariales y no financieros","VR"]
[null,7000,7500,7550,"Inversiones en fideicomisos públicos empresariales y no financieros","VR"]
[null,7000,7500,7560,"Inversiones en fideicomisos públicos financieros"]
[null,7000,7500,75601,"Inversiones en fideicomisos públicos considerados entidades paraestatales","VR"]
[null,7000,7500,75602,"Inversiones en mandatos y otros análogos","VR"]
[null,7000,7500,7570,"Inversiones en fideicomisos de entidades federativas","VR"]
[null,7000,7500,7580,"Inversiones en fideicomisos de municipios","VR"]
[null,7000,7500,7590,"Otras inversiones en fideicomisos","VR"]
[null,7000,7600,null,"Otras Inversiones Financieras"]
[null,7000,7600,7610,"Depósitos a largo plazo en moneda nacional","VR"]
[null,7000,7600,7620,"Depósitos a largo plazo en moneda extranjera","VR"]
[null,7000,7900,null,"Provisiones para Contingencias y Otras Erogaciones Especiales"]
[null,7000,7900,7910,"Contingencias por fenómenos naturales","VR"]
[null,7000,7900,7920,"Contingencias socioeconómicas","VR"]
[null,7000,7900,7990,"Otras erogaciones especiales"]
[null,7000,7900,79901,"Erogaciones contingentes","VR"]
[null,7000,7900,79902,"Provisiones para Erogaciones Especiales","VR"]
[null,2,null,null,"Gasto de inversión"]
[null,5000,null,null,"Bienes Muebles, Inmuebles e Intangibles"]
[null,5000,5100,null,"Mobiliario y Equipo de Administración"]
[null,5000,5100,5110,"Muebles de oficina y estantería","VR"]
[null,5000,5100,5120,"Muebles, excepto de oficina y estantería","VR"]
[null,5000,5100,5130,"Bienes artísticos, culturales y científicos","VR"]
[null,5000,5100,5140,"Objetos de valor","VR"]
[null,5000,5100,5150,"Equipo de cómputo y de tecnologías de la información","VR"]
[null,5000,5100,5190,"Otros mobiliarios y equipos de administración"]
[null,5000,5100,51901,"Equipo de administración","VR"]
[null,5000,5100,51902,"Adjudicaciones, expropiaciones e indemnizaciones de bienes muebles","VR"]
[null,5000,5200,null,"Mobiliario y Equipo Educacional y Recreativo"]
[null,5000,5200,5210,"Equipos y aparatos audiovisuales","VR"]
[null,5000,5200,5220,"Aparatos deportivos","VR"]
[null,5000,5200,5230,"Cámaras fotográficas y de video","VR"]
[null,5000,5200,5290,"Otro mobiliario y equipo educacional y recreativo","VR"]
[null,5000,5300,null,"Equipo e Instrumental Médico y de Laboratorio"]
[null,5000,5300,5310,"Equipo médico y de laboratorio","VR"]
[null,5000,5300,5320,"Instrumental médico y de laboratorio","VR"]
[null,5000,5400,null,"Vehículos y Equipo de Transporte"]
[null,5000,5400,5410,"Vehículos y Equipo Terrestre"]
[null,5000,5400,54101,"Vehículos y equipo terrestres, para la ejecución de programas de seguridad pública y nacional","VR"]
[null,5000,5400,54102,"Vehículos y equipo terrestres, destinados exclusivamente para desastres naturales","VR"]
[null,5000,5400,54103,"Vehículos y equipo terrestres, destinados a servicios públicos y la operación de programas públicos","VR"]
[null,5000,5400,54104,"Vehículos y equipo terrestres, destinados a servicios administrativos","VR"]
[null,5000,5400,54105,"Vehículos y equipo terrestres, destinados a servidores públicos","VR"]
[null,5000,5400,5420,"Carrocerías y remolques","VR"]
[null,5000,5400,5430,"Equipo aeroespacial"]
[null,5000,5400,54301,"Vehículos y equipo aéreo, para la ejecución de programas de seguridad pública y nacional","VR"]
[null,5000,5400,54302,"Vehículos y equipo aéreo, destinados exclusivamente para desastres naturales","VR"]
[null,5000,5400,54303,"Vehículos y equipo aéreo, destinados a servicios públicos y la operación de programas públicos","VR"]
[null,5000,5400,5440,"Equipo ferroviario","VR"]
[null,5000,5400,5450,"Embarcaciones"]
[null,5000,5400,54501,"Vehículos y equipo marítimo, para la ejecución de programas de seguridad pública y nacional","VR"]
[null,5000,5400,54502,"Vehículos y equipo marítimo, destinados a servicios públicos y la operación de programas públicos","VR"]
[null,5000,5400,54503,"Construcción de embarcaciones","VR"]
[null,5000,5400,5490,"Otros equipos de transporte","VR"]
[null,5000,5500,null,"Equipo de Defensa y Seguridad"]
[null,5000,5500,5510,"Equipo de defensa y seguridad"]
[null,5000,5500,55101,"Maquinaria y equipo de defensa y seguridad pública","VR"]
[null,5000,5500,55102,"Equipo de seguridad pública y nacional","VR"]
[null,5000,5600,null,"Maquinaria, Otros Equipos y Herramientas"]
[null,5000,5600,5610,"Maquinaria y equipo agropecuario","VR"]
[null,5000,5600,5620,"Maquinaria y equipo industrial","VR"]
[null,5000,5600,5630,"Maquinaria y equipo de construcción","VR"]
[null,5000,5600,5640,"Sistemas de aire acondicionado, calefacción y de refrigeración industrial y comercial","VR"]
[null,5000,5600,5650,"Equipo de comunicación y telecomunicación","VR"]
[null,5000,5600,5660,"Equipos de generación eléctrica, aparatos y accesorios eléctricos","VR"]
[null,5000,5600,5670,"Herramientas y máquinas-herramienta","VR"]
[null,5000,5600,5690,"Otros equipos"]
[null,5000,5600,56901,"Bienes muebles por arrendamiento financiero","VR"]
[null,5000,5600,56902,"Otros bienes muebles","VR"]
[null,5000,5700,null,"Activos Biológicos"]
[null,5000,5700,5710,"Bovinos","VR"]
[null,5000,5700,5720,"Porcinos","VR"]
[null,5000,5700,5730,"Aves","VR"]
[null,5000,5700,5740,"Ovinos y caprinos","VR"]
[null,5000,5700,5750,"Peces y acuicultura","VR"]
[null,5000,5700,5760,"Equinos","VR"]
[null,5000,5700,5770,"Especies menores y de zoológico","VR"]
[null,5000,5700,5780,"Árboles y plantas","VR"]
[null,5000,5700,5790,"Otros activos biológicos","VR"]
[null,5000,5800,null,"Bienes Inmuebles"]
[null,5000,5800,5810,"Terrenos","VR"]
[null,5000,5800,5820,"Viviendas","VR"]
[null,5000,5800,5830,"Edificios no residenciales","VR"]
[null,5000,5800,5890,"Otros bienes inmuebles"]
[null,5000,5800,58901,"Adjudicaciones, expropiaciones e indemnizaciones de inmuebles","VR"]
[null,5000,5800,58902,"Bienes inmuebles en la modalidad de proyectos de infraestructura productiva de largo plazo","VR"]
[null,5000,5800,58903,"Bienes inmuebles por arrendamiento financiero","VR"]
[null,5000,5800,58904,"Otros bienes inmuebles","VR"]
[null,5000,5900,null,"Activos Intangibles"]
[null,5000,5900,5910,"Software","VR"]
[null,5000,5900,5920,"Patentes","VR"]
[null,5000,5900,5930,"Marcas","VR"]
[null,5000,5900,5940,"Derechos","VR"]
[null,5000,5900,5950,"Concesiones","VR"]
[null,5000,5900,5960,"Franquicias","VR"]
[null,5000,5900,5970,"Licencias informáticas e intelectuales","VR"]
[null,5000,5900,5980,"Licencias industriales, comerciales y otras","VR"]
[null,5000,5900,5990,"Otros activos intangibles","VR"]
[null,6000,null,null,"Inversión Pública"]
[null,6000,6100,null,"Obra Pública en Bienes de Dominio Público"]
[null,6000,6100,6110,"Edificación habitacional","VR"]
[null,6000,6100,6120,"Edificación no habitacional","VR"]
[null,6000,6100,6130,"Construcción de obras para el abastecimiento de agua, petróleo, gas, electricidad y telecomunicaciones","VR"]
[null,6000,6100,6140,"División de terrenos y construcción de obras de urbanización","VR"]
[null,6000,6100,6150,"Construcción de vías de comunicación","VR"]
[null,6000,6100,6160,"Otras construcciones de ingeniería civil u obra pesada","VR"]
[null,6000,6100,6170,"Instalaciones y equipamiento en construcciones","VR"]
[null,6000,6100,6190,"Trabajos de acabados en edificaciones y otros trabajos especializados","VR"]
[null,6000,6200,null,"Obra Pública en Bienes Propios"]
[null,6000,6200,6210,"Edificación habitacional"]
[null,6000,6200,62101,"Obras de construcción para edificios habitacionales","VR"]
[null,6000,6200,62102,"Mantenimiento y rehabilitación de edificaciones habitacionales","VR"]
[null,6000,6200,6220,"Edificación no habitacional"]
[null,6000,6200,62201,"Obras de construcción para edificios no habitacionales","VR"]
[null,6000,6200,62202,"Mantenimiento y rehabilitación de edificaciones no habitacionales","VR"]
[null,6000,6200,6230,"Construcción de obras para el abastecimiento de agua, petróleo, gas, electricidad y telecomunicaciones"]
[null,6000,6200,62301,"Construcción de obras para el abastecimiento de agua, petróleo, gas, electricidad y telecomunicaciones","VR"]
[null,6000,6200,62302,"Mantenimiento y rehabilitación de obras para el abastecimiento de agua, petróleo, gas, electricidad y telecomunicaciones","VR"]
[null,6000,6200,6240,"División de terrenos y construcción de obras de urbanización"]
[null,6000,6200,62401,"Obras de preedificación en terrenos de construcción","VR"]
[null,6000,6200,62402,"Construcción de obras de urbanización","VR"]
[null,6000,6200,62403,"Mantenimiento y rehabilitación de obras de urbanización","VR"]
[null,6000,6200,6250,"Construcción de vías de comunicación"]
[null,6000,6200,62501,"Construcción de vías de comunicación","VR"]
[null,6000,6200,62502,"Mantenimiento y rehabilitación de las vías de comunicación","VR"]
[null,6000,6200,6260,"Otras construcciones de ingeniería civil u obra pesada"]
[null,6000,6200,62601,"Otras construcciones de ingeniería civil u obra pesada","VR"]
[null,6000,6200,62602,"Mantenimiento y rehabilitación de otras obras de ingeniería civil u obras pesadas","VR"]
[null,6000,6200,6270,"Instalaciones y equipamiento en construcciones","VR"]
[null,6000,6200,6290,"Trabajos de acabados en edificaciones y otros trabajos especializados"]
[null,6000,6200,62901,"Ensamble y edificación de construcciones prefabricadas","VR"]
[null,6000,6200,62902,"Obras de terminación y acabado de edificios","VR"]
[null,6000,6200,62903,"Servicios de supervisión de obras","VR"]
[null,6000,6200,62904,"Servicios para la liberación de derechos de vía","VR"]
[null,6000,6200,62905,"Otros servicios relacionados con obras públicas","VR"]
[null,6000,6300,null,"Proyectos Productivos y Acciones de Fomento"]
[null,6000,6300,6310,"Estudios, formulación y evaluación de proyectos productivos no incluidos en conceptos anteriores de este capítulo","VR"]
[null,6000,6300,6320,"Ejecución de proyectos productivos no incluidos en conceptos anteriores de este capítulo","VR"]
[null,9000,null,null,"Deuda pública"]
[null,9000,9900,null,"Adeudos De Ejercicios Fiscales Anteriores (ADEFAS)"]
[null,9000,9900,9910,"ADEFAS","VR"]

{"sheet":"4.Equivalencias COG=CFA","index":8,"n_rows":97,"n_cols":7,"rows_kept":97,"cut":false,"hidden":false,"merged":[]}
[]
[null,"4. Catálogo de equivalencias COG=CFA, primer criterio (Gasto de Capital)"]
[]
[null,"Cve_Partida genérica ó partida específica","Descripción","Cve_Función","Cve_Subf","Cve_Actividad","Cve_Subactividad"]
[null,5110,"Muebles de oficina y estantería","HK.1","HK.1.1","HK.1.1.2","HK.1.1.2.4"]
[null,5120,"Muebles, excepto de oficina y estantería","HK.1","HK.1.1","HK.1.1.2","HK.1.1.2.4"]
[null,5130,"Bienes artísticos, culturales y científicos","HK.1","HK.1.1","HK.1.1.2","HK.1.1.2.4"]
[null,5140,"Objetos de valor","HK.1","HK.1.1","HK.1.1.2","HK.1.1.2.4"]
[null,5150,"Equipo de cómputo y de tecnologías de la información","HK.1","HK.1.1","HK.1.1.3","HK.1.1.3.1"]
[null,51901,"Equipo de administración","HK.1","HK.1.1","HK.1.1.2","HK.1.1.2.4"]
[null,51902,"Adjudicaciones, expropiaciones e indemnizaciones de bienes muebles","HK.1","HK.1.1","HK.1.1.2","HK.1.1.2.4"]
[null,5210,"Equipos y aparatos audiovisuales","HK.1","HK.1.1","HK.1.1.3","HK.1.1.3.1"]
[null,5220,"Aparatos deportivos","HK.1","HK.1.1","HK.1.1.2","HK.1.1.2.4"]
[null,5230,"Cámaras fotográficas y de video","HK.1","HK.1.1","HK.1.1.2","HK.1.1.2.3"]
[null,5290,"Otro mobiliario y equipo educacional y recreativo","HK.1","HK.1.1","HK.1.1.2","HK.1.1.2.4"]
[null,5310,"Equipo médico y de laboratorio","HK.1","HK.1.1","HK.1.1.2","HK.1.1.2.1"]
[null,5320,"Instrumental médico y de laboratorio","HK.1","HK.1.1","HK.1.1.2","HK.1.1.2.1"]
[null,54101,"Vehículos y equipo terrestres, para la ejecución de programas de seguridad pública y nacional","HK.1","HK.1.1","HK.1.1.2","HK.1.1.2.2"]
[null,54102,"Vehículos y equipo terrestres, destinados exclusivamente para desastres naturales","HK.1","HK.1.1","HK.1.1.2","HK.1.1.2.2"]
[null,54103,"Vehículos y equipo terrestres, destinados a servicios públicos y la operación de programas públicos","HK.1","HK.1.1","HK.1.1.2","HK.1.1.2.2"]
[null,54104,"Vehículos y equipo terrestres, destinados a servicios administrativos","HK.1","HK.1.1","HK.1.1.2","HK.1.1.2.2"]
[null,54105,"Vehículos y equipo terrestres, destinados a servidores públicos","HK.1","HK.1.1","HK.1.1.2","HK.1.1.2.2"]
[null,5420,"Carrocerías y remolques","HK.1","HK.1.1","HK.1.1.2","HK.1.1.2.2"]
[null,54301,"Vehículos y equipo aéreo, para la ejecución de programas de seguridad pública y nacional","HK.1","HK.1.1","HK.1.1.2","HK.1.1.2.2"]
[null,54302,"Vehículos y equipo aéreo, destinados exclusivamente para desastres naturales","HK.1","HK.1.1","HK.1.1.2","HK.1.1.2.2"]
[null,54303,"Vehículos y equipo aéreo, destinados a servicios públicos y la operación de programas públicos","HK.1","HK.1.1","HK.1.1.2","HK.1.1.2.2"]
[null,5440,"Equipo ferroviario","HK.1","HK.1.1","HK.1.1.2","HK.1.1.2.2"]
[null,54501,"Vehículos y equipo marítimo, para la ejecución de programas de seguridad pública y nacional","HK.1","HK.1.1","HK.1.1.2","HK.1.1.2.2"]
[null,54502,"Vehículos y equipo marítimo, destinados a servicios públicos y la operación de programas públicos","HK.1","HK.1.1","HK.1.1.2","HK.1.1.2.2"]
[null,54503,"Construcción de embarcaciones","HK.1","HK.1.1","HK.1.1.2","HK.1.1.2.2"]
[null,5490,"Otros equipos de transporte","HK.1","HK.1.1","HK.1.1.2","HK.1.1.2.2"]
[null,55101,"Maquinaria y equipo de defensa y seguridad pública","HK.1","HK.1.1","HK.1.1.2","HK.1.1.2.4"]
[null,55102,"Equipo de seguridad pública y nacional","HK.1","HK.1.1","HK.1.1.2","HK.1.1.2.4"]
[null,5610,"Maquinaria y equipo agropecuario","HK.1","HK.1.1","HK.1.1.2","HK.1.1.2.4"]
[null,5620,"Maquinaria y equipo industrial","HK.1","HK.1.1","HK.1.1.2","HK.1.1.2.4"]
[null,5630,"Maquinaria y equipo de construcción","HK.1","HK.1.1","HK.1.1.2","HK.1.1.2.4"]
[null,5640,"Sistemas de aire acondicionado, calefacción y de refrigeración industrial y comercial","HK.1","HK.1.1","HK.1.1.2","HK.1.1.2.4"]
[null,5650,"Equipo de comunicación y telecomunicación","HK.1","HK.1.1","HK.1.1.2","HK.1.1.2.3"]
[null,5660,"Equipos de generación eléctrica, aparatos y accesorios eléctricos","HK.1","HK.1.1","HK.1.1.2","HK.1.1.2.4"]
[null,5670,"Herramientas y máquinas-herramienta","HK.1","HK.1.1","HK.1.1.2","HK.1.1.2.4"]
[null,56901,"Bienes muebles por arrendamiento financiero","HK.1","HK.1.1","HK.1.1.2","HK.1.1.2.4"]
[null,56902,"Otros bienes muebles","HK.1","HK.1.1","HK.1.1.2","HK.1.1.2.4"]
[null,5710,"Bovinos","HKR.4"]
[null,5720,"Porcinos","HKR.4"]
[null,5730,"Aves","HKR.4"]
[null,5740,"Ovinos y caprinos","HKR.4"]
[null,5750,"Peces y acuicultura","HKR.4"]
[null,5760,"Equinos","HKR.4"]
[null,5770,"Especies menores y de zoológico","HKR.4"]
[null,5780,"Árboles y plantas","HKR.4"]
[null,5790,"Otros activos biológicos","HKR.4"]
[null,5810,"Terrenos","HK.2","HK.2.1","HK.2","HK.2.1"]
[null,5820,"Viviendas","HK.2","HK.2.1","HK.2","HK.2.1"]
[null,5830,"Edificios no residenciales","HK.1","HK.1.1","HK.1.1.1","HK.1.1.1.1"]
[null,58901,"Adjudicaciones, expropiaciones e indemnizaciones de inmuebles","HK.1","HK.1.1","HK.1.1.1","HK.1.1.1.1"]
[null,58902,"Bienes inmuebles en la modalidad de proyectos de infraestructura productiva de largo plazo","HK.1","HK.1.1","HK.1.1.1","HK.1.1.1.1"]
[null,58903,"Bienes inmuebles por arrendamiento financiero","HK.1","HK.1.1","HK.1.1.1","HK.1.1.1.1"]
[null,58904,"Otros bienes inmuebles","HK.1","HK.1.1","HK.1.1.1","HK.1.1.1.1"]
[null,5910,"Software","HK.1","HK.1.1","HK.1.1.3","HK.1.1.3.1"]
[null,5920,"Patentes","HK.1","HK.1.1","HK.1.1.3","HK.1.1.3.2"]
[null,5930,"Marcas","HK.1","HK.1.1","HK.1.1.3","HK.1.1.3.2"]
[null,5940,"Derechos","HK.1","HK.1.1","HK.1.1.3","HK.1.1.3.2"]
[null,5950,"Concesiones","HK.1","HK.1.1","HK.1.1.3","HK.1.1.3.2"]
[null,5960,"Franquicias","HK.1","HK.1.1","HK.1.1.3","HK.1.1.3.2"]
[null,5970,"Licencias informáticas e intelectuales","HK.1","HK.1.1","HK.1.1.3","HK.1.1.3.1"]
[null,5980,"Licencias industriales, comerciales y otras","HK.1","HK.1.1","HK.1.1.3","HK.1.1.3.2"]
[null,5990,"Otros activos intangibles","HK.1","HK.1.1","HK.1.1.3","HK.1.1.3.2"]
[null,6110,"Edificación habitacional","HK.1","HK.1.1","HK.1.1.1","HK.1.1.1.1"]
[null,6120,"Edificación no habitacional","HK.1","HK.1.1","HK.1.1.1","HK.1.1.1.1"]
[null,6130,"Construcción de obras para el abastecimiento de agua, petróleo, gas, electricidad y telecomunicaciones","HK.1","HK.1.1","HK.1.1.1","HK.1.1.1.1"]
[null,6140,"División de terrenos y construcción de obras de urbanización","HK.1","HK.1.1","HK.1.1.1","HK.1.1.1.1"]
[null,6150,"Construcción de vías de comunicación","HK.1","HK.1.1","HK.1.1.1","HK.1.1.1.1"]
[null,6160,"Otras construcciones de ingeniería civil u obra pesada","HK.1","HK.1.1","HK.1.1.1","HK.1.1.1.1"]
[null,6170,"Instalaciones y equipamiento en construcciones","HK.1","HK.1.1","HK.1.1.1","HK.1.1.1.1"]
[null,6190,"Trabajos de acabados en edificaciones y otros trabajos especializados","HK.1","HK.1.1","HK.1.1.1","HK.1.1.1.1"]
[null,62101,"Obras de construcción para edificios habitacionales","HK.1","HK.1.1","HK.1.1.1","HK.1.1.1.1"]
[null,62102,"Mantenimiento y rehabilitación de edificaciones habitacionales","HK.1","HK.1.1","HK.1.1.1","HK.1.1.1.1"]
[null,62201,"Obras de construcción para edificios no habitacionales","HK.1","HK.1.1","HK.1.1.1","HK.1.1.1.1"]
[null,62202,"Mantenimiento y rehabilitación de edificaciones no habitacionales","HK.1","HK.1.1","HK.1.1.1","HK.1.1.1.1"]
[null,62301,"Construcción de obras para el abastecimiento de agua, petróleo, gas, electricidad y telecomunicaciones","HK.1","HK.1.1","HK.1.1.1","HK.1.1.1.1"]
[null,62302,"Mantenimiento y rehabilitación de obras para el abastecimiento de agua, petróleo, gas, electricidad y telecomunicaciones","HK.1","HK.1.1","HK.1.1.1","HK.1.1.1.1"]
[null,62401,"Obras de pre-edificación en terrenos de construcción","HK.1","HK.1.1","HK.1.1.1","HK.1.1.1.1"]
[null,62402,"Construcción de obras de urbanización","HK.1","HK.1.1","HK.1.1.1","HK.1.1.1.1"]
[null,62403,"Mantenimiento y rehabilitación de obras de urbanización","HK.1","HK.1.1","HK.1.1.1","HK.1.1.1.1"]
[null,62501,"Construcción de vías de comunicación","HK.1","HK.1.1","HK.1.1.1","HK.1.1.1.1"]
[null,62502,"Mantenimiento y rehabilitación de las vías de comunicación","HK.1","HK.1.1","HK.1.1.1","HK.1.1.1.1"]
[null,62601,"Otras construcciones de ingeniería civil u obra pesada","HK.1","HK.1.1","HK.1.1.1","HK.1.1.1.1"]
[null,62602,"Mantenimiento y rehabilitación de otras obras de ingeniería civil u obras pesadas","HK.1","HK.1.1","HK.1.1.1","HK.1.1.1.1"]
[null,6270,"Instalaciones y equipamiento en construcciones","HK.1","HK.1.1","HK.1.1.1","HK.1.1.1.1"]
[null,62901,"Ensamble y edificación de construcciones prefabricadas","HK.1","HK.1.1","HK.1.1.1","HK.1.1.1.1"]
[null,62902,"Obras de terminación y acabado de edificios","HK.1","HK.1.1","HK.1.1.1","HK.1.1.1.1"]
[null,62903,"Servicios de supervisión de obras","HK.1","HK.1.1","HK.1.1.1","HK.1.1.1.1"]
[null,62904,"Servicios para la liberación de derechos de vía","HK.1","HK.1.1","HK.1.1.1","HK.1.1.1.1"]
[null,62905,"Otros servicios relacionados con obras públicas","HK.1","HK.1.1","HK.1.1.1","HK.1.1.1.1"]
[null,6310,"Estudios, formulación y evaluación de proyectos productivos no incluidos en conceptos anteriores de este capítulo","HK.1","HK.1.1","HK.1.1.1","HK.1.1.1.1"]
[null,6320,"Ejecución de proyectos productivos no incluidos en conceptos anteriores de este capítulo","HK.1","HK.1.1","HK.1.1.1","HK.1.1.1.1"]
[null,9910,"ADEFAS","HK.2","HK.2.2"]

{"sheet":"5.Equivalencias CAI=CFA","index":9,"n_rows":157,"n_cols":28,"rows_kept":157,"cut":false,"hidden":false,"merged":[[48,1,156,1],[5,1,22,1],[46,24,46,27],[25,8,25,11],[25,12,25,15],[25,16,25,19],[25,20,25,23],[46,8,46,11],[46,12,46,15],[46,16,46,19],[46,20,46,23],[25,24,25,27],[27,1,43,1],[3,8,3,11],[3,12,3,15],[3,16,3,19],[3,20,3,23],[3,24,3,27]]}
[]
[null,"5. Catálogo de equivalencias COG=CFA, segundo criterio (Gasto Corriente y tipo de unidad)"]
[]
[null,null,null,null,null,null,null,null,"De hospitalización General ",null,null,null,"Hospitales Especializados (tercer nivel)",null,null,null,"De Consulta Externa",null,null,null,"Unidades administrativas/Delegaciones",null,null,null,"Establecimientos de apoyo"]
[null,null,"Cve_Subfunción","Cve_AI","Cve_H","Actividad Institucional","Cve_PP","Programa Presupuestario","Cve_Función","Cve_Subf","Cve_Actividad","Cve_Subactividad","Cve_Función","Cve_Subf","Cve_Actividad","Cve_Subactividad","Cve_Función","Cve_Subf","Cve_Actividad","Cve_Subactividad","Cve_Función","Cve_Subf","Cve_Actividad","Cve_Subactividad","Cve_Función","Cve_Subf","Cve_Actividad","Cve_Subactividad"]
[null,"Estructura Funcional del IMSS",2,null,null,"Prestación de Servicios de Salud a la Persona",null,"Prestación de Servicios de Salud a la Persona"]
[null,null,null,2,null,"Servicios de apoyo administrativo",null,"Servicios de apoyo administrativo"]
[null,null,2,2,null,"Servicios de apoyo administrativo","M001","Actividades de apoyo administrativo","HC.1","HC.1.1","HC.1.1.1",null,"HC.1","HC.1.1","HC.1.1.2",null,"HC.1","HC.1.3","HC.1.3.1",null,"HC.7","HC.7.1",null,null,"HC.9"]
[null,null,2,2,null,"Servicios de apoyo administrativo","W001","Operaciones ajenas","HC.1","HC.1.1","HC.1.1.1",null,"HC.1","HC.1.1","HC.1.1.2",null,"HC.1","HC.1.3","HC.1.3.1",null,"HC.7","HC.7.1",null,null,"HC.9"]
[null,null,null,3,null,"Eficacia en la atención médica preventiva",null,"Eficacia en la atención médica preventiva"]
[null,null,2,3,null,"Eficacia en la atención médica preventiva","E001","Prevención y control de enfermedades","HC.6","HC.6.1",null,null,"HC.6","HC.6.1",null,null,"HC.6","HC.6.1",null,null,"HC.6","HC.6.1",null,null,"HC.6","HC.6.1"]
[null,null,null,4,null,"Oportunidad en la atención curativa, quirúrgica, hospitalaria y de rehabilitación",null,"Oportunidad en la atención curativa, quirúrgica, hospitalaria y de rehabilitación"]
[null,null,2,4,null,"Oportunidad en la atención curativa, quirúrgica, hospitalaria y de rehabilitación","E003","Atención a la Salud en el Trabajo","HC.1","HC.1.1","HC.1.1.1",null,"HC.1","HC.1.1","HC.1.1.2",null,"HC.1","HC.1.3","HC.1.3.1",null,"HC.1","HC.1.3","HC.1.3.1",null,"HC.1","HC.1.3","HC.1.3.1"]
[null,null,2,4,null,"Oportunidad en la atención curativa, quirúrgica, hospitalaria y de rehabilitación","E011","Atención a la Salud","HC.1","HC.1.1","HC.1.1.1",null,"HC.1","HC.1.1","HC.1.1.2",null,"HC.1","HC.1.3","HC.1.3.1",null,"HC.1","HC.1.3","HC.1.3.1",null,"HC.1","HC.1.3","HC.1.3.1"]
[null,null,2,4,null,"Oportunidad en la atención curativa, quirúrgica, hospitalaria y de rehabilitación","K012","Proyectos de infraestructura social de asistencia y seguridad social","HC.1","HC.1.1","HC.1.1.1",null,"HC.1","HC.1.1","HC.1.1.2",null,"HC.1","HC.1.3","HC.1.3.1",null,"HC.7","HC.7.1",null,null,"HC.9"]
[null,null,2,4,null,"Oportunidad en la atención curativa, quirúrgica, hospitalaria y de rehabilitación","K027","Mantenimiento de infraestructura","HC.1","HC.1.1","HC.1.1.1",null,"HC.1","HC.1.1","HC.1.1.2",null,"HC.1","HC.1.3","HC.1.3.1",null,"HC.7","HC.7.1",null,null,"HC.9"]
[null,null,2,4,null,"Oportunidad en la atención curativa, quirúrgica, hospitalaria y de rehabilitación","K028","Estudios de preinversión","HC.1","HC.1.1","HC.1.1.1",null,"HC.1","HC.1.1","HC.1.1.2",null,"HC.1","HC.1.3","HC.1.3.1",null,"HC.7","HC.7.1",null,null,"HC.9"]
[null,null,2,4,null,"Oportunidad en la atención curativa, quirúrgica, hospitalaria y de rehabilitación","K029","Programas de adquisiciones","HC.1","HC.1.1","HC.1.1.1",null,"HC.1","HC.1.1","HC.1.1.2",null,"HC.1","HC.1.3","HC.1.3.1",null,"HC.7","HC.7.1",null,null,"HC.9"]
[null,null,2,4,null,"Oportunidad en la atención curativa, quirúrgica, hospitalaria y de rehabilitación","M001","Actividades de apoyo administrativo","HC.1","HC.1.1","HC.1.1.1",null,"HC.1","HC.1.1","HC.1.1.2",null,"HC.1","HC.1.3","HC.1.3.1",null,"HC.7","HC.7.1",null,null,"HC.9"]
[null,null,3,null,null,"Generación de Recursos para la Salud",null,"Generación de Recursos para la Salud"]
[null,null,null,5,null,"Servicios de incorporación y recaudación",null,"Servicios de incorporación y recaudación"]
[null,null,3,5,null,"Servicios de incorporación y recaudación","E006","Recaudación de ingresos obrero patronales","HC.1","HC.1.1","HC.1.1.1",null,"HC.1","HC.1.1","HC.1.1.2",null,"HC.1","HC.1.3","HC.1.3.1",null,"HC.7","HC.7.1",null,null,"HC.9"]
[null,null,3,5,null,null,"M001","Actividades de apoyo administrativo","HC.1","HC.1.1","HC.1.1.1",null,"HC.1","HC.1.1","HC.1.1.2",null,"HC.1","HC.1.3","HC.1.3.1",null,"HC.7","HC.7.1",null,null,"HC.9"]
[]
[]
[null,null,null,null,null,null,null,null,"De hospitalización",null,null,null,"Hospitales Especializados (tercer nivel)",null,null,null,"De Consulta Externa",null,null,null,"Unidades administrativas/Delegaciones",null,null,null,"Establecimientos de apoyo"]
[null,null,"Cve_Subfunción","Cve_AI","Cve_H","Actividad Institucional","Cve_PP","Programa Presupuestario","Cve_Función","Cve_Subf","Cve_Actividad","Cve_Subactividad","Cve_Función","Cve_Subf","Cve_Actividad","Cve_Subactividad","Cve_Función","Cve_Subf","Cve_Actividad","Cve_Subactividad","Cve_Función","Cve_Subf","Cve_Actividad","Cve_Subactividad","Cve_Función","Cve_Subf","Cve_Actividad","Cve_Subactividad"]
[null,"Estructura Funcional del ISSSTE",2,null,null,"Prestación de Servicios de Salud a la Persona",null,"Prestación de Servicios de Salud a la Persona"]
[null,null,2,null,null,"Prestación de Servicios de Salud a la Persona"]
[null,null,2,2,null,"Servicios de apoyo administrativo","K029","Programa de Adquisiciones","HC.1","HC.1.1","HC.1.1.1",null,"HC.1","HC.1.1","HC.1.1.2",null,"HC.1","HC.1.3","HC.1.3.1",null,"HC.7","HC.7.1",null,null,"HC.9"]
[null,null,null,3,null,"Cobertura de la atención médica preventiva",null,"Cobertura de la atención médica preventiva"]
[null,null,2,3,null,"Cobertura de la atención médica preventiva","E043","Prevención y control de enfermedades","HC.6","HC.6.1",null,null,"HC.6","HC.6.1",null,null,"HC.6","HC.6.1",null,null,"HC.6","HC.6.1",null,null,"HC.6","HC.6.1"]
[null,null,null,4,null,"Cobertura de la atención médica curativa",null,"Cobertura de la atención médica curativa"]
[null,null,2,4,null,"Cobertura de la atención médica curativa","E044","Atención a la Salud","HC.1","HC.1.1","HC.1.1.1",null,"HC.1","HC.1.1","HC.1.1.2",null,"HC.1","HC.1.3","HC.1.3.1",null,"HC.1","HC.1.3","HC.1.3.1",null,"HC.1","HC.1.3","HC.1.3.1"]
[null,null,null,5,null,"Otros Servicios de Salud",null,"Otros Servicios de Salud"]
[null,null,2,5,null,"Otros Servicios de Salud","E018","Suministro de Claves de Medicamentos","HC.1","HC.1.1","HC.1.1.1",null,"HC.1","HC.1.1","HC.1.1.2",null,"HC.1","HC.1.3","HC.1.3.1",null,"HC.1","HC.1.3","HC.1.3.1",null,"HC.1","HC.1.3","HC.1.3.1"]
[null,null,2,5,null,"Otros Servicios de Salud","E044","Atención a la Salud","HC.1","HC.1.1","HC.1.1.1",null,"HC.1","HC.1.1","HC.1.1.2",null,"HC.1","HC.1.3","HC.1.3.1",null,"HC.1","HC.1.3","HC.1.3.1",null,"HC.1","HC.1.3","HC.1.3.1"]
[null,null,2,5,null,"Otros Servicios de Salud","K011","Proyectos de infraestructura social.","HC.1","HC.1.1","HC.1.1.1",null,"HC.1","HC.1.1","HC.1.1.2",null,"HC.1","HC.1.3","HC.1.3.1",null,"HC.7","HC.7.1",null,null,"HC.9"]
[null,null,2,5,null,"Otros Servicios de Salud","K027","Mantenimiento de infraestructura","HC.1","HC.1.1","HC.1.1.1",null,"HC.1","HC.1.1","HC.1.1.2",null,"HC.1","HC.1.3","HC.1.3.1",null,"HC.7","HC.7.1",null,null,"HC.9"]
[null,null,2,5,null,"Otros Servicios de Salud","K028","Estudios de preinversión","HC.1","HC.1.1","HC.1.1.1",null,"HC.1","HC.1.1","HC.1.1.2",null,"HC.1","HC.1.3","HC.1.3.1",null,"HC.7","HC.7.1",null,null,"HC.9"]
[null,null,2,5,null,"Otros Servicios de Salud","K029","Programa de Adquisiciones","HC.1","HC.1.1","HC.1.1.1",null,"HC.1","HC.1.1","HC.1.1.2",null,"HC.1","HC.1.3","HC.1.3.1",null,"HC.7","HC.7.1",null,null,"HC.9"]
[null,null,2,5,null,"Otros Servicios de Salud","M002","Gastos Administrativos por Operación de Fondos y Seguros","HC.1","HC.1.1","HC.1.1.1",null,"HC.1","HC.1.1","HC.1.1.2",null,"HC.1","HC.1.3","HC.1.3.1",null,"HC.7","HC.7.1",null,null,"HC.9"]
[null,null,2,5,null,"Otros Servicios de Salud","R001","Provisiones para el Programa de Fortalecimiento del ISSSTE","HC.1","HC.1.1","HC.1.1.1",null,"HC.1","HC.1.1","HC.1.1.2",null,"HC.1","HC.1.3","HC.1.3.1",null,"HC.7","HC.7.1",null,null,"HC.9"]
[null,null,2,5,null,"Otros Servicios de Salud","W001","Operaciones ajenas","HC.1","HC.1.1","HC.1.1.1",null,"HC.1","HC.1.1","HC.1.1.2",null,"HC.1","HC.1.3","HC.1.3.1",null,"HC.7","HC.7.1",null,null,"HC.9"]
[]
[]
[null,null,null,null,null,null,null,null,"Hospitales Generales",null,null,null,"Hospitales Especializados",null,null,null,"Unidades de consulta externa",null,null,null,"Unidades Administrativas",null,null,null,"Laboratorios/Centros de transfusión sanguínea/Bancos de Sagre"]
[null,null,"Cve_Sub\nfunción","Cve_AI","Cve_H","Actividad Institucional","Cve_PP","Programa Presupuestario","Cve_Función","Cve_Subf","Cve_Actividad","Cve_Subactividad","Cve_Función","Cve_Subf","Cve_Actividad","Cve_Subactividad","Cve_Función","Cve_Subf","Cve_Actividad","Cve_Subactividad","Cve_Función","Cve_Subf","Cve_Actividad","Cve_Subactividad","Cve_Función","Cve_Subf","Cve_Actividad","Cve_Subactividad"]
[null,"Estructura Funcional apmicable para PEMEX e IMSS-Bienestar",1,2,"H10","Apoyar los servicios administrativos",null,null,"HC.1","HC.1.1","HC.1.1.1",null,"HC.1","HC.1.1","HC.1.1.2",null,"HC.1","HC.1.3","HC.1.3.1",null,"HC.7","HC.7.1",null,null,"HC.4","HC.4.1"]
[null,null,1,2,"H19","Apoyar a otras instituciones públicas del sector para atender las necesidades propias de sus funciones",null,null,"HC.1","HC.1.1","HC.1.1.1",null,"HC.1","HC.1.1","HC.1.1.2",null,"HC.1","HC.1.3","HC.1.3.1",null,"HC.7","HC.7.1",null,null,"HC.4","HC.4.1"]
[null,null,1,2,"H57","Fortalecer y apoyar a las Jurisdicciones Sanitarias",null,null,"HC.1","HC.1.1","HC.1.1.1",null,"HC.1","HC.1.1","HC.1.1.2",null,"HC.1","HC.1.3","HC.1.3.1",null,"HC.7","HC.7.1",null,null,"HC.4","HC.4.1"]
[null,null,1,12,"H94","Promover programas para procurar el bienestar de los grupos vulnerables de la población",null,null,"HC.6","HC.6.4",null,null,"HC.6","HC.6.4",null,null,"HC.6","HC.6.4",null,null,"HC.6","HC.6.4",null,null,"HC.6","HC.6.4"]
[null,null,1,15,"H11","Promover los determinantes personales de salud, en los entornos escolares, con énfasis en la alimentación saludable y la activación física para una mejor salud",null,null,"HC.6","HC.6.1",null,null,"HC.6","HC.6.1",null,null,"HC.6","HC.6.1",null,null,"HC.6","HC.6.1",null,null,"HC.6","HC.6.1"]
[null,null,1,15,"H12","Promover los determinantes colectivos de salud",null,null,"HC.6","HC.6.1",null,null,"HC.6","HC.6.1",null,null,"HC.6","HC.6.1",null,null,"HC.6","HC.6.1",null,null,"HC.6","HC.6.1"]
[null,null,1,15,"H13","Fortalecer la promoción de la salud y determinantes sociales de la salud",null,null,"HC.6","HC.6.1",null,null,"HC.6","HC.6.1",null,null,"HC.6","HC.6.1",null,null,"HC.6","HC.6.1",null,null,"HC.6","HC.6.1"]
[null,null,1,15,"H14","Prevenir las lesiones de causa externa intencionales y no intencionales y fortalecer la seguridad vial",null,null,"HC.6","HC.6.3",null,null,"HC.6","HC.6.3",null,null,"HC.6","HC.6.3",null,null,"HC.6","HC.6.3",null,null,"HC.6","HC.6.3"]
[null,null,1,15,"H15","Proteger la salud de la población migrante y sus familias",null,null,"HC.6","HC.6.4",null,null,"HC.6","HC.6.4",null,null,"HC.6","HC.6.4",null,null,"HC.6","HC.6.4",null,null,"HC.6","HC.6.4"]
[null,null,1,15,"H16","Promocionar una mejor salud y nutrición de manera integral a la población indígena y otros grupos vulnerables",null,null,"HC.6","HC.6.4",null,null,"HC.6","HC.6.4",null,null,"HC.6","HC.6.4",null,null,"HC.6","HC.6.4",null,null,"HC.6","HC.6.4"]
[null,null,1,15,"H17","Prevenir, controlar y disminuir las enfermedades cardiometabólicas (sobrepeso, obesidad, diabetes, hipertension, dislipidemias, riesgo cardiovascular)",null,null,"HC.6","HC.6.3",null,null,"HC.6","HC.6.3",null,null,"HC.6","HC.6.3",null,null,"HC.6","HC.6.3",null,null,"HC.6","HC.6.3"]
[null,null,1,15,"H18","Fortalecer el programa de planificación familiar y anticoncepción",null,null,"HC.6","HC.6.1",null,null,"HC.6","HC.6.1",null,null,"HC.6","HC.6.1",null,null,"HC.6","HC.6.1",null,null,"HC.6","HC.6.1"]
[null,null,1,15,"H20","Fortalecer el programa de prevención y control de cáncer de la mujer",null,null,"HC.1","HC.1.3","HC.1.3.3",null,"HC.1","HC.1.3","HC.1.3.3",null,"HC.1","HC.1.3","HC.1.3.3",null,"HC.1","HC.1.3","HC.1.3.3",null,"HC.1","HC.1.3","HC.1.3.3"]
[null,null,1,15,"H21","Reforzar el programa de prevención, promoción, detección y atención de cáncer de próstata",null,null,"HC.1","HC.1.3","HC.1.3.3",null,"HC.1","HC.1.3","HC.1.3.3",null,"HC.1","HC.1.3","HC.1.3.3",null,"HC.1","HC.1.3","HC.1.3.3",null,"HC.1","HC.1.3","HC.1.3.3"]
[null,null,1,15,"H22","Fortalecer la donación y el trasplante de órganos y tejidos",null,null,"HC.4","HC.4.1",null,null,"HC.4","HC.4.1",null,null,"HC.4","HC.4.1",null,null,"HC.4","HC.4.1",null,null,"HC.4","HC.4.1"]
[null,null,1,15,"H23","Desarrollar acciones integrales para prevenir, detectar, diagnosticar y atender los problemas de salud mental y adicciones",null,null,"HC.1","HC.1.3","HC.1.3.3",null,"HC.1","HC.1.3","HC.1.3.3",null,"HC.1","HC.1.3","HC.1.3.3",null,"HC.1","HC.1.3","HC.1.3.3",null,"HC.1","HC.1.3","HC.1.3.3"]
[null,null,1,15,"H25","Fortalecer el programa de acceso universal a sangre segura",null,null,"HC.4","HC.4.1",null,null,"HC.4","HC.4.1",null,null,"HC.4","HC.4.1",null,null,"HC.4","HC.4.1",null,null,"HC.4","HC.4.1"]
[null,null,1,15,"H26","Fortalecer las acciones de salud a población en condiciones de pobreza y en comunidades de difícil acceso",null,null,"HC.6","HC.6.4",null,null,"HC.6","HC.6.4",null,null,"HC.6","HC.6.4",null,null,"HC.6","HC.6.4",null,null,"HC.6","HC.6.4"]
[null,null,1,15,"H27","Fortalecer el programa de salud materna y perinatal",null,null,"HC.1","HC.1.3","HC.1.3.3",null,"HC.1","HC.1.3","HC.1.3.3",null,"HC.1","HC.1.3","HC.1.3.1",null,"HC.1","HC.1.3","HC.1.3.1",null,"HC.1","HC.1.3","HC.1.3.1"]
[null,null,1,15,"H29","Desarrollar acciones integrales para mejorar la salud de la infancia y la adolescencia",null,null,"HC.6","HC.6.4",null,null,"HC.6","HC.6.4",null,null,"HC.6","HC.6.4",null,null,"HC.6","HC.6.4",null,null,"HC.6","HC.6.4"]
[null,null,1,15,"H30","Desarrollar acciones de salud sexual y reproductiva para los adolescentes, con perspectiva de derechos humanos y de género",null,null,"HC.6","HC.6.1",null,null,"HC.6","HC.6.1",null,null,"HC.6","HC.6.1",null,null,"HC.6","HC.6.1",null,null,"HC.6","HC.6.1"]
[null,null,1,15,"H31","Reforzar la prevención, control y atención integral de las infecciones respiratorias agudas.(Neumonías, Influenza, COVID-19) y las enfermedades respiratorias crónicas (ASMA Y EPOC).",null,null,"HC.6","HC.6.3",null,null,"HC.6","HC.6.3",null,null,"HC.6","HC.6.3",null,null,"HC.6","HC.6.3",null,null,"HC.6","HC.6.3"]
[null,null,1,15,"H36","Fortalecer el Programa de VIH-SIDA e ITS de manera integral",null,null,"HC.6","HC.6.3",null,null,"HC.6","HC.6.3",null,null,"HC.6","HC.6.3",null,null,"HC.6","HC.6.3",null,null,"HC.6","HC.6.3"]
[null,null,1,15,"H37","Atender de manera integral los efectos del envejecimiento de las personas adultas y personas adultas mayores",null,null,"HC.6","HC.6.4",null,null,"HC.6","HC.6.4",null,null,"HC.6","HC.6.4",null,null,"HC.6","HC.6.4",null,null,"HC.6","HC.6.4"]
[null,null,1,15,"H42","Promover, prevenir, diagnosticar y reestablecer la salud bucal",null,null,"HC.1","HC.1.3","HC.1.3.2",null,"HC.1","HC.1.3","HC.1.3.2",null,"HC.1","HC.1.3","HC.1.3.2",null,"HC.1","HC.1.3","HC.1.3.2",null,"HC.1","HC.1.3","HC.1.3.2"]
[null,null,1,15,"H50","Desarrollar acciones integrales para fortalecer el programa de igualdad de género en salud",null,null,"HC.6","HC.6.4",null,null,"HC.6","HC.6.4",null,null,"HC.6","HC.6.4",null,null,"HC.6","HC.6.4",null,null,"HC.6","HC.6.4"]
[null,null,1,15,"H55","Mejorar la atención obstétrica, durante el embarazo, parto y puerperio para reducir la mortalidad materna y perinatal",null,null,"HC.1","HC.1.3","HC.1.3.3",null,"HC.1","HC.1.3","HC.1.3.3",null,"HC.1","HC.1.3","HC.1.3.1",null,"HC.1","HC.1.3","HC.1.3.1",null,"HC.1","HC.1.3","HC.1.3.1"]
[null,null,1,15,"H59","Fortalecer el programa de prevención y atención médica integral (rehabilitación)  de discapacidades y malformaciones congénitas",null,null,"HC.2","HC.2.1",null,null,"HC.2","HC.2.1",null,null,"HC.2","HC.2.1",null,null,"HC.2","HC.2.1",null,null,"HC.2","HC.2.1"]
[null,null,1,15,"H66","Fortalecer la atención médica del primer nivel de atención",null,null,"HC.1","HC.1.3","HC.1.3.1",null,"HC.1","HC.1.3","HC.1.3.1",null,"HC.1","HC.1.3","HC.1.3.1",null,"HC.1","HC.1.3","HC.1.3.1",null,"HC.1","HC.1.3","HC.1.3.1"]
[null,null,1,15,"H71","Fortalecer el programa de prevención y atención de la violencia familiar y de género, con capacidad de respuesta efectiva",null,null,"HC.6","HC.6.1",null,null,"HC.6","HC.6.1",null,null,"HC.6","HC.6.1",null,null,"HC.6","HC.6.1",null,null,"HC.6","HC.6.1"]
[null,null,1,15,"H78","Fortalecer el Programa Nacional de Eliminación de la Hepatitis C",null,null,"HC.6","HC.6.3",null,null,"HC.6","HC.6.3",null,null,"HC.6","HC.6.3",null,null,"HC.6","HC.6.3",null,null,"HC.6","HC.6.3"]
[null,null,1,16,"H32","Prevenir, detectar y controlar las micobacteriosis (Tuberculosis y Lepra)",null,null,"HC.6","HC.6.3",null,null,"HC.6","HC.6.3",null,null,"HC.6","HC.6.3",null,null,"HC.6","HC.6.3",null,null,"HC.6","HC.6.3"]
[null,null,1,16,"H33","Combatir las enfermedades de problemas de rezago (EDA - cólera)",null,null,"HC.6","HC.6.3",null,null,"HC.6","HC.6.3",null,null,"HC.6","HC.6.3",null,null,"HC.6","HC.6.3",null,null,"HC.6","HC.6.3"]
[null,null,1,16,"H34","Prevenir, detectar, combatir y brindar atención integral a las enfermedades transmitidas por vector (dengue, paludismo, chagas, leishmaniasis, oncocercosis, chikungunya, zika, mayaro, fiebre amarilla y oeste del nilo)",null,null,"HC.6","HC.6.3",null,null,"HC.6","HC.6.3",null,null,"HC.6","HC.6.3",null,null,"HC.6","HC.6.3",null,null,"HC.6","HC.6.3"]
[null,null,1,16,"H35","Fortalecer el Programa de Zoonosis de manera integral (Rabia, Brucelosis, Leptospirosis, Rickettsiosis, Teniasis-cisticercosis)",null,null,"HC.6","HC.6.3",null,null,"HC.6","HC.6.3",null,null,"HC.6","HC.6.3",null,null,"HC.6","HC.6.3",null,null,"HC.6","HC.6.3"]
[null,null,1,16,"H39","Atender las intoxicaciones por mordedura de artrópodos y serpientes con dotación suficiente de antídotos",null,null,"HC.6","HC.6.3",null,null,"HC.6","HC.6.3",null,null,"HC.6","HC.6.3",null,null,"HC.6","HC.6.3",null,null,"HC.6","HC.6.3"]
[null,null,1,16,"H40","Fortalecer la vigilancia epidemiológica a través del análisis y diagnóstico de referencia",null,null,"HC.6","HC.6.5",null,null,"HC.6","HC.6.5",null,null,"HC.6","HC.6.5",null,null,"HC.6","HC.6.5",null,null,"HC.6","HC.6.5"]
[null,null,1,16,"H41","Atender oportunamente los desastres y urgencias epidemiológicas",null,null,"HC.6","HC.6.6",null,null,"HC.6","HC.6.6",null,null,"HC.6","HC.6.6",null,null,"HC.6","HC.6.6",null,null,"HC.6","HC.6.6"]
[null,null,1,16,"H43","Fortalecer el sistema de vigilancia epidemiológica",null,null,"HC.6","HC.6.5",null,null,"HC.6","HC.6.5",null,null,"HC.6","HC.6.5",null,null,"HC.6","HC.6.5",null,null,"HC.6","HC.6.5"]
[null,null,1,17,"H44","Análisis de riesgos sanitarios",null,null,"HC.6","HC.6.5",null,null,"HC.6","HC.6.5",null,null,"HC.6","HC.6.5",null,null,"HC.6","HC.6.5",null,null,"HC.6","HC.6.5"]
[null,null,1,17,"H45","Fortalecer el control y la vigilancia sanitaria, ambiental, ocupacional y saneamiento básico",null,null,"HC.6","HC.6.5",null,null,"HC.6","HC.6.5",null,null,"HC.6","HC.6.5",null,null,"HC.6","HC.6.5",null,null,"HC.6","HC.6.5"]
[null,null,1,17,"H46","Promover la cultura de prevención contra riesgos sanitarios",null,null,"HC.6","HC.6.5",null,null,"HC.6","HC.6.5",null,null,"HC.6","HC.6.5",null,null,"HC.6","HC.6.5",null,null,"HC.6","HC.6.5"]
[null,null,1,17,"H47","Coordinar las acciones entre órdenes de gobierno para el control de emergencias y alertas sanitarias",null,null,"HC.6","HC.6.5",null,null,"HC.6","HC.6.5",null,null,"HC.6","HC.6.5",null,null,"HC.6","HC.6.5",null,null,"HC.6","HC.6.5"]
[null,null,1,17,"H48","Fortalecer la capacidad analítica con enfoque de riesgos sanitarios",null,null,"HC.6","HC.6.5",null,null,"HC.6","HC.6.5",null,null,"HC.6","HC.6.5",null,null,"HC.6","HC.6.5",null,null,"HC.6","HC.6.5"]
[null,null,2,2,"H10","Apoyar los servicios administrativos",null,null,"HC.1","HC.1.1","HC.1.1.1",null,"HC.1","HC.1.1","HC.1.1.2",null,"HC.1","HC.1.3","HC.1.3.1",null,"HC.7","HC.7.1",null,null,"HC.4","HC.4.1"]
[null,null,2,2,"H19","Apoyar a otras instituciones públicas del sector para atender las necesidades propias de sus funciones",null,null,"HC.1","HC.1.1","HC.1.1.1",null,"HC.1","HC.1.1","HC.1.1.2",null,"HC.1","HC.1.3","HC.1.3.1",null,"HC.7","HC.7.1",null,null,"HC.4","HC.4.1"]
[null,null,2,12,"H93","Otorgar servicios de asistencia social integral",null,null,"HCR.1","HCR.1.1",null,null,"HCR.1","HCR.1.1",null,null,"HCR.1","HCR.1.1",null,null,"HCR.1","HCR.1.1",null,null,"HCR.1","HCR.1.1"]
[null,null,2,18,"H100","Fortalecer el abasto oportuno de medicamentos gratuitos y otros insumos para la salud para la población sin seguridad social laboral",null,null,"HC.1","HC.1.1","HC.1.1.1",null,"HC.1","HC.1.1","HC.1.1.2",null,"HC.1","HC.1.3","HC.1.3.1",null,"HC.1","HC.1.3","HC.1.3.1",null,"HC.1","HC.1.3","HC.1.3.1"]
[null,null,2,18,"H14","Prevenir las lesiones de causa externa intencionales y no intencionales y fortalecer la seguridad vial",null,null,"HC.1","HC.1.1","HC.1.1.1",null,"HC.1","HC.1.1","HC.1.1.2",null,"HC.1","HC.1.3","HC.1.3.1",null,"HC.1","HC.1.3","HC.1.3.1",null,"HC.1","HC.1.3","HC.1.3.1"]
[null,null,2,18,"H17","Prevenir, controlar y disminuir las enfermedades cardiometabólicas (sobrepeso, obesidad, diabetes, hipertension, dislipidemias, riesgo cardiovascular)",null,null,"HC.1","HC.1.1","HC.1.1.1",null,"HC.1","HC.1.1","HC.1.1.2",null,"HC.1","HC.1.3","HC.1.3.1",null,"HC.1","HC.1.3","HC.1.3.1",null,"HC.1","HC.1.3","HC.1.3.1"]
[null,null,2,18,"H18","Fortalecer el programa de planificación familiar y anticoncepción",null,null,"HC.1","HC.1.1","HC.1.1.1",null,"HC.1","HC.1.1","HC.1.1.2",null,"HC.1","HC.1.3","HC.1.3.1",null,"HC.1","HC.1.3","HC.1.3.1",null,"HC.1","HC.1.3","HC.1.3.1"]
[null,null,2,18,"H20","Fortalecer el programa de prevención y control de cáncer de la mujer",null,null,"HC.1","HC.1.1","HC.1.1.1",null,"HC.1","HC.1.1","HC.1.1.2",null,"HC.1","HC.1.3","HC.1.3.3",null,"HC.1","HC.1.3","HC.1.3.3",null,"HC.1","HC.1.3","HC.1.3.3"]
[null,null,2,18,"H21","Reforzar el programa de prevención, promoción, detección y atención de cáncer de próstata",null,null,"HC.1","HC.1.1","HC.1.1.1",null,"HC.1","HC.1.1","HC.1.1.2",null,"HC.1","HC.1.3","HC.1.3.3",null,"HC.1","HC.1.3","HC.1.3.3",null,"HC.1","HC.1.3","HC.1.3.3"]
[null,null,2,18,"H22","Fortalecer la donación y el trasplante de órganos y tejidos",null,null,"HC.1","HC.1.1","HC.1.1.1",null,"HC.1","HC.1.1","HC.1.1.2",null,"HC.1","HC.1.3","HC.1.3.1",null,"HC.1","HC.1.3","HC.1.3.1",null,"HC.1","HC.1.3","HC.1.3.1"]
[null,null,2,18,"H23","Desarrollar acciones integrales para prevenir, detectar, diagnosticar y atender los problemas de salud mental y adicciones",null,null,"HC.1","HC.1.1","HC.1.1.1",null,"HC.1","HC.1.1","HC.1.1.2",null,"HC.1","HC.1.3","HC.1.3.1",null,"HC.1","HC.1.3","HC.1.3.1",null,"HC.1","HC.1.3","HC.1.3.1"]
[null,null,2,18,"H25","Fortalecer el programa de acceso universal a sangre segura",null,null,"HC.4","HC.4.1",null,null,"HC.4","HC.4.1",null,null,"HC.4","HC.4.1",null,null,"HC.4","HC.4.1",null,null,"HC.4","HC.4.1"]
[null,null,2,18,"H26","Fortalecer las acciones de salud a población en condiciones de pobreza y en comunidades de difícil acceso",null,null,"HC.1","HC.1.1","HC.1.1.1",null,"HC.1","HC.1.1","HC.1.1.2",null,"HC.1","HC.1.3","HC.1.3.1",null,"HC.1","HC.1.3","HC.1.3.1",null,"HC.1","HC.1.3","HC.1.3.1"]
[null,null,2,18,"H27","Fortalecer el programa de salud materna y perinatal",null,null,"HC.1","HC.1.3","HC.1.3.3",null,"HC.1","HC.1.3","HC.1.3.3",null,"HC.1","HC.1.3","HC.1.3.1",null,"HC.1","HC.1.3","HC.1.3.1",null,"HC.1","HC.1.3","HC.1.3.1"]
[null,null,2,18,"H28","Fortalecer el programa de vacunación universal",null,null,"HC.6","HC.6.2",null,null,"HC.6","HC.6.2",null,null,"HC.6","HC.6.2",null,null,"HC.6","HC.6.2",null,null,"HC.6","HC.6.2"]
[null,null,2,18,"H29","Desarrollar acciones integrales para mejorar la salud de la infancia y la adolescencia",null,null,"HC.1","HC.1.1","HC.1.1.1",null,"HC.1","HC.1.1","HC.1.1.2",null,"HC.1","HC.1.3","HC.1.3.1",null,"HC.1","HC.1.3","HC.1.3.1",null,"HC.1","HC.1.3","HC.1.3.1"]
[null,null,2,18,"H30","Desarrollar acciones de salud sexual y reproductiva para los adolescentes, con perspectiva de derechos humanos y de género",null,null,"HC.1","HC.1.1","HC.1.1.1",null,"HC.1","HC.1.1","HC.1.1.2",null,"HC.1","HC.1.3","HC.1.3.1",null,"HC.1","HC.1.3","HC.1.3.1",null,"HC.1","HC.1.3","HC.1.3.1"]
[null,null,2,18,"H31","Reforzar la prevención, control y atención integral de las infecciones respiratorias agudas.(Neumonías, Influenza, COVID-19) y las enfermedades respiratorias crónicas (ASMA Y EPOC).",null,null,"HC.1","HC.1.1","HC.1.1.1",null,"HC.1","HC.1.1","HC.1.1.2",null,"HC.1","HC.1.3","HC.1.3.1",null,"HC.1","HC.1.3","HC.1.3.1",null,"HC.1","HC.1.3","HC.1.3.1"]
[null,null,2,18,"H32","Prevenir, detectar y controlar las micobacteriosis (Tuberculosis y Lepra)",null,null,"HC.1","HC.1.1","HC.1.1.1",null,"HC.1","HC.1.1","HC.1.1.2",null,"HC.1","HC.1.3","HC.1.3.1",null,"HC.1","HC.1.3","HC.1.3.1",null,"HC.1","HC.1.3","HC.1.3.1"]
[null,null,2,18,"H33","Combatir las enfermedades de problemas de rezago (EDA - cólera)",null,null,"HC.1","HC.1.1","HC.1.1.1",null,"HC.1","HC.1.1","HC.1.1.2",null,"HC.1","HC.1.3","HC.1.3.1",null,"HC.1","HC.1.3","HC.1.3.1",null,"HC.1","HC.1.3","HC.1.3.1"]
[null,null,2,18,"H34","Prevenir, detectar, combatir y brindar atención integral a las enfermedades transmitidas por vector (dengue, paludismo, chagas, leishmaniasis, oncocercosis, chikungunya, zika, mayaro, fiebre amarilla y oeste del nilo)",null,null,"HC.1","HC.1.1","HC.1.1.1",null,"HC.1","HC.1.1","HC.1.1.2",null,"HC.1","HC.1.3","HC.1.3.1",null,"HC.1","HC.1.3","HC.1.3.1",null,"HC.1","HC.1.3","HC.1.3.1"]
[null,null,2,18,"H35","Fortalecer el Programa de Zoonosis de manera integral (Rabia, Brucelosis, Leptospirosis, Rickettsiosis, Teniasis-cisticercosis)",null,null,"HC.1","HC.1.1","HC.1.1.1",null,"HC.1","HC.1.1","HC.1.1.2",null,"HC.1","HC.1.3","HC.1.3.1",null,"HC.1","HC.1.3","HC.1.3.1",null,"HC.1","HC.1.3","HC.1.3.1"]
[null,null,2,18,"H36","Fortalecer el Programa de VIH-SIDA e ITS de manera integral",null,null,"HC.1","HC.1.1","HC.1.1.1",null,"HC.1","HC.1.1","HC.1.1.2",null,"HC.1","HC.1.3","HC.1.3.1",null,"HC.1","HC.1.3","HC.1.3.1",null,"HC.1","HC.1.3","HC.1.3.1"]
[null,null,2,18,"H37","Atender de manera integral los efectos del envejecimiento de las personas adultas y personas adultas mayores",null,null,"HC.1","HC.1.1","HC.1.1.1",null,"HC.1","HC.1.1","HC.1.1.2",null,"HC.1","HC.1.3","HC.1.3.1",null,"HC.1","HC.1.3","HC.1.3.1",null,"HC.1","HC.1.3","HC.1.3.1"]
[null,null,2,18,"H39","Atender las intoxicaciones por mordedura de artrópodos y serpientes con dotación suficiente de antídotos",null,null,"HC.1","HC.1.1","HC.1.1.1",null,"HC.1","HC.1.1","HC.1.1.2",null,"HC.1","HC.1.3","HC.1.3.1",null,"HC.1","HC.1.3","HC.1.3.1",null,"HC.1","HC.1.3","HC.1.3.1"]
[null,null,2,18,"H42","Promover, prevenir, diagnosticar y reestablecer la salud bucal",null,null,"HC.1","HC.1.3","HC.1.3.2",null,"HC.1","HC.1.3","HC.1.3.2",null,"HC.1","HC.1.3","HC.1.3.2",null,"HC.1","HC.1.3","HC.1.3.2",null,"HC.1","HC.1.3","HC.1.3.2"]
[null,null,2,18,"H55","Mejorar la atención obstétrica, durante el embarazo, parto y puerperio para reducir la mortalidad materna y perinatal",null,null,"HC.1","HC.1.3","HC.1.3.3",null,"HC.1","HC.1.3","HC.1.3.3",null,"HC.1","HC.1.3","HC.1.3.1",null,"HC.1","HC.1.3","HC.1.3.1",null,"HC.1","HC.1.3","HC.1.3.1"]
[null,null,2,18,"H56","Brindar servicios de atención médica integral a las personas que padecen de labio leporino y paladar hendido ",null,null,"HC.1","HC.1.1","HC.1.1.1",null,"HC.1","HC.1.1","HC.1.1.2",null,"HC.1","HC.1.3","HC.1.3.1",null,"HC.1","HC.1.3","HC.1.3.1",null,"HC.1","HC.1.3","HC.1.3.1"]
[null,null,2,18,"H59","Fortalecer el programa de prevención y atención médica integral (rehabilitación)  de discapacidades y malformaciones congénitas",null,null,"HC.1","HC.1.1","HC.1.1.1",null,"HC.1","HC.1.1","HC.1.1.2",null,"HC.1","HC.1.3","HC.1.3.1",null,"HC.1","HC.1.3","HC.1.3.1",null,"HC.1","HC.1.3","HC.1.3.1"]
[null,null,2,18,"H60","Brindar servicios de Atención médica a través de Unidades médicas móviles",null,null,"HC.1","HC.1.1","HC.1.1.1",null,"HC.1","HC.1.1","HC.1.1.2",null,"HC.1","HC.1.3","HC.1.3.1",null,"HC.1","HC.1.3","HC.1.3.1",null,"HC.1","HC.1.3","HC.1.3.1"]
[null,null,2,18,"H61","Brindar atención médica de primer nivel de atención",null,null,"HC.1","HC.1.3","HC.1.3.1",null,"HC.1","HC.1.3","HC.1.3.3",null,"HC.1","HC.1.3","HC.1.3.1",null,"HC.1","HC.1.3","HC.1.3.1",null,"HC.1","HC.1.3","HC.1.3.1"]
[null,null,2,18,"H62","Brindar atención médica de segundo nivel de atención",null,null,"HC.1","HC.1.1","HC.1.1.1",null,"-","-","-",null,"HC.1","HC.1.1","HC.1.1.1",null,"HC.1","HC.1.1","HC.1.1.1",null,"HC.1","HC.1.1","HC.1.1.1"]
[null,null,2,18,"H63","Brindar atención médica de tercer nivel de atención",null,null,"-","-","-",null,"HC.1","HC.1.1","HC.1.1.2",null,"HC.1","HC.1.1","HC.1.1.2",null,"HC.1","HC.1.1","HC.1.1.2",null,"HC.1","HC.1.1","HC.1.1.2"]
[null,null,2,18,"H64","Brindar servicios y atención de urgencias médicas ",null,null,"HC.1","HC.1.1","HC.1.1.1",null,"HC.1","HC.1.1","HC.1.1.2",null,"HC.1","HC.1.3","HC.1.3.1",null,"HC.1","HC.1.3","HC.1.3.1",null,"HC.1","HC.1.3","HC.1.3.1"]
[null,null,2,18,"H65","Fortalecer los laboratorios clínicos de apoyo a la atención médica",null,null,"HC.4","HC.4.1",null,null,"HC.4","HC.4.1",null,null,"HC.4","HC.4.1",null,null,"HC.4","HC.4.1",null,null,"HC.4","HC.4.1"]
[null,null,2,18,"H71","Fortalecer el programa de prevención y atención de la violencia familiar y de género, con capacidad de respuesta efectiva",null,null,"HC.1","HC.1.1","HC.1.1.1",null,"HC.1","HC.1.1","HC.1.1.2",null,"HC.1","HC.1.3","HC.1.3.1",null,"HC.1","HC.1.3","HC.1.3.1",null,"HC.1","HC.1.3","HC.1.3.1"]
[null,null,2,18,"H76","Fortalecer la detección temprana y la atención integral de la insuficiencia renal crónica",null,null,"HC.1","HC.1.1","HC.1.1.1",null,"HC.1","HC.1.1","HC.1.1.2",null,"HC.1","HC.1.3","HC.1.3.1",null,"HC.1","HC.1.3","HC.1.3.1",null,"HC.1","HC.1.3","HC.1.3.1"]
[null,null,2,18,"H77","Fortalecer el diagnóstico oportuno y tratamiento de tumores malignos",null,null,"HC.1","HC.1.1","HC.1.1.1",null,"HC.1","HC.1.1","HC.1.1.2",null,"HC.1","HC.1.3","HC.1.3.1",null,"HC.1","HC.1.3","HC.1.3.1",null,"HC.1","HC.1.3","HC.1.3.1"]
[null,null,2,18,"H78","Fortalecer el Programa Nacional de Eliminación de la Hepatitis C",null,null,"HC.1","HC.1.1","HC.1.1.1",null,"HC.1","HC.1.1","HC.1.1.2",null,"HC.1","HC.1.3","HC.1.3.1",null,"HC.1","HC.1.3","HC.1.3.1",null,"HC.1","HC.1.3","HC.1.3.1"]
[null,null,3,2,"H10","Apoyar los servicios administrativos",null,null,"HC.1","HC.1.1","HC.1.1.1",null,"HC.1","HC.1.1","HC.1.1.2",null,"HC.1","HC.1.3","HC.1.3.1",null,"HC.7","HC.7.1",null,null,"HC.4","HC.4.1"]
[null,null,3,19,"H09","Capacitar al personal administrativo y directivo a nivel técnico y gerencial",null,null,"HC.1","HC.1.1","HC.1.1.1",null,"HC.1","HC.1.1","HC.1.1.2",null,"HC.1","HC.1.3","HC.1.3.1",null,"HC.7","HC.7.1",null,null,"HC.4","HC.4.1"]
[null,null,3,19,"H49","Capacitar y sensibilizar a agentes y personal de salud en acciones de interculturalidad, no discriminación e igualdad de género",null,null,"HC.1","HC.1.1","HC.1.1.1",null,"HC.1","HC.1.1","HC.1.1.2",null,"HC.1","HC.1.3","HC.1.3.1",null,"HC.7","HC.7.1",null,null,"HC.4","HC.4.1"]
[null,null,3,19,"H84","Capacitar a los prestadores de servicios de la salud",null,null,"HC.1","HC.1.1","HC.1.1.1",null,"HC.1","HC.1.1","HC.1.1.2",null,"HC.1","HC.1.3","HC.1.3.1",null,"HC.7","HC.7.1",null,null,"HC.4","HC.4.1"]
[null,null,3,19,"H85","Formar especialistas en materia de salud (enseñanza)",null,null,"HC.1","HC.1.1","HC.1.1.1",null,"HC.1","HC.1.1","HC.1.1.2",null,"HC.1","HC.1.3","HC.1.3.1",null,"HC.7","HC.7.1",null,null,"HC.4","HC.4.1"]
[null,null,3,20,"H03","Diseñar y/o coordinar programas de fortalecimiento de la oferta de servicios (planes maestros de Infraestructura en salud)",null,null,"HC.1","HC.1.1","HC.1.1.1",null,"HC.1","HC.1.1","HC.1.1.2",null,"HC.1","HC.1.3","HC.1.3.1",null,"HC.7","HC.7.1",null,null,"HC.4","HC.4.1"]
[null,null,3,20,"H38","Fortalecer el equipamiento y la infraestructura física",null,null,"HC.1","HC.1.1","HC.1.1.1",null,"HC.1","HC.1.1","HC.1.1.2",null,"HC.1","HC.1.3","HC.1.3.1",null,"HC.7","HC.7.1",null,null,"HC.4","HC.4.1"]
[null,null,3,20,"H54","Mantener y ampliar la certificación de las unidades de salud  con supervisión integral",null,null,"HC.1","HC.1.1","HC.1.1.1",null,"HC.1","HC.1.1","HC.1.1.2",null,"HC.1","HC.1.3","HC.1.3.1",null,"HC.7","HC.7.1",null,null,"HC.4","HC.4.1"]
[null,null,3,20,"H87","Desarrollar acciones de conservación y mantenimiento",null,null,"HC.1","HC.1.1","HC.1.1.1",null,"HC.1","HC.1.1","HC.1.1.2",null,"HC.1","HC.1.3","HC.1.3.1",null,"HC.7","HC.7.1",null,null,"HC.4","HC.4.1"]
[null,null,3,20,"H88","Fortalecer la obra pública y rehabilitación",null,null,"HC.1","HC.1.1","HC.1.1.1",null,"HC.1","HC.1.1","HC.1.1.2",null,"HC.1","HC.1.3","HC.1.3.1",null,"HC.7","HC.7.1",null,null,"HC.4","HC.4.1"]
[null,null,3,24,"H08","Fortalecer el diseño, implementación y mantenimiento de los sistemas de información para facilitar la accesibilidad a los servicios de salud",null,null,"HC.1","HC.1.1","HC.1.1.1",null,"HC.1","HC.1.1","HC.1.1.2",null,"HC.1","HC.1.3","HC.1.3.1",null,"HC.7","HC.7.1",null,null,"HC.4","HC.4.1"]
[null,null,3,24,"H86","Fomentar la Investigación en salud",null,null,"HC.1","HC.1.1","HC.1.1.1",null,"HC.1","HC.1.1","HC.1.1.2",null,"HC.1","HC.1.3","HC.1.3.1",null,"HC.7","HC.7.1",null,null,"HC.4","HC.4.1"]
[null,null,4,2,"H10","Apoyar los servicios administrativos",null,null,"HC.1","HC.1.1","HC.1.1.1",null,"HC.1","HC.1.1","HC.1.1.2",null,"HC.1","HC.1.3","HC.1.3.1",null,"HC.7","HC.7.1",null,null,"HC.4","HC.4.1"]
[null,null,4,14,"H04","Atender asuntos jurídicos y Derechos Humanos",null,null,"HC.1","HC.1.1","HC.1.1.1",null,"HC.1","HC.1.1","HC.1.1.2",null,"HC.1","HC.1.3","HC.1.3.1",null,"HC.7","HC.7.1",null,null,"HC.4","HC.4.1"]
[null,null,4,14,"H05","Monitorear la operación, control interno, la protección de datos personales y la rendición de cuentas",null,null,"HC.1","HC.1.1","HC.1.1.1",null,"HC.1","HC.1.1","HC.1.1.2",null,"HC.1","HC.1.3","HC.1.3.1",null,"HC.7","HC.7.1",null,null,"HC.4","HC.4.1"]
[null,null,4,14,"H07","Fortalecer el sistema de evaluación del desempeño, la transparencia y la rendición de cuentas.",null,null,"HC.1","HC.1.1","HC.1.1.1",null,"HC.1","HC.1.1","HC.1.1.2",null,"HC.1","HC.1.3","HC.1.3.1",null,"HC.7","HC.7.1",null,null,"HC.4","HC.4.1"]
[null,null,4,14,"H51","Prevenir y atender oportunamente los conflictos derivados de la relación médico - paciente (Arbitraje Médico)",null,null,"HC.1","HC.1.1","HC.1.1.1",null,"HC.1","HC.1.1","HC.1.1.2",null,"HC.1","HC.1.3","HC.1.3.1",null,"HC.7","HC.7.1",null,null,"HC.4","HC.4.1"]
[null,null,4,14,"H92","Promover la cooperación internacional en salud",null,null,"HC.1","HC.1.1","HC.1.1.1",null,"HC.1","HC.1.1","HC.1.1.2",null,"HC.1","HC.1.3","HC.1.3.1",null,"HC.7","HC.7.1",null,null,"HC.4","HC.4.1"]
[null,null,4,25,"H01","Fortalecer el papel de la rectoria de los Servicios de Salud",null,null,"HC.1","HC.1.1","HC.1.1.1",null,"HC.1","HC.1.1","HC.1.1.2",null,"HC.1","HC.1.3","HC.1.3.1",null,"HC.7","HC.7.1",null,null,"HC.4","HC.4.1"]
[null,null,4,25,"H02","Ampliar la participación ciudadana en la planeación, desarrollo y operación eficiente de los servicios de salud",null,null,"HC.1","HC.1.1","HC.1.1.1",null,"HC.1","HC.1.1","HC.1.1.2",null,"HC.1","HC.1.3","HC.1.3.1",null,"HC.7","HC.7.1",null,null,"HC.4","HC.4.1"]
[null,null,4,25,"H06","Fortalecer el sistema integral y universal de información en salud",null,null,"HC.1","HC.1.1","HC.1.1.1",null,"HC.1","HC.1.1","HC.1.1.2",null,"HC.1","HC.1.3","HC.1.3.1",null,"HC.7","HC.7.1",null,null,"HC.4","HC.4.1"]
[null,null,4,25,"H52","Fortalecer la calidad efectiva de los servicios de salud",null,null,"HC.1","HC.1.1","HC.1.1.1",null,"HC.1","HC.1.1","HC.1.1.2",null,"HC.1","HC.1.3","HC.1.3.1",null,"HC.7","HC.7.1",null,null,"HC.4","HC.4.1"]
[null,null,4,25,"H53","Fortalecer el sistema de seguimiento y respuesta a solicitudes de atención.",null,null,"HC.1","HC.1.1","HC.1.1.1",null,"HC.1","HC.1.1","HC.1.1.2",null,"HC.1","HC.1.3","HC.1.3.1",null,"HC.7","HC.7.1",null,null,"HC.4","HC.4.1"]
[null,null,4,25,"H54","Mantener y ampliar la certificación de las unidades de salud  con supervisión integral",null,null,"HC.1","HC.1.1","HC.1.1.1",null,"HC.1","HC.1.1","HC.1.1.2",null,"HC.1","HC.1.3","HC.1.3.1",null,"HC.7","HC.7.1",null,null,"HC.4","HC.4.1"]
[null,null,4,25,"H90","Emitir, regular, supervisar y difundir normatividad y regulaciones de políticas y programas de salud",null,null,"HC.1","HC.1.1","HC.1.1.1",null,"HC.1","HC.1.1","HC.1.1.2",null,"HC.1","HC.1.3","HC.1.3.1",null,"HC.7","HC.7.1",null,null,"HC.4","HC.4.1"]
[null,null,4,25,"H91","Impulsar acciones de coordinación entre instituciones de salud, entidades federativas, municipios y jurisdicciones, así como con otros sectores y/o organismos autónomos",null,null,"HC.1","HC.1.1","HC.1.1.1",null,"HC.1","HC.1.1","HC.1.1.2",null,"HC.1","HC.1.3","HC.1.3.1",null,"HC.7","HC.7.1",null,null,"HC.4","HC.4.1"]